Departmental Family,Entity,Date,Expense Type,Expense Area,Supplier,Transaction Number,Amount
Department for Work and Pensions,Jobcentre Plus,31/05/2011,ACCOMMODATION COSTS,JOBCENTRE PLUS,TELEREAL TRILLIUM,2021107377,"29,510,577.97"
Department for Work and Pensions,Corporate,31/05/2011,COMPUTER SERVICES,CORPORATE IT,SPECIALIST COMPUTER CENTRES PLC,2021107076,"9,763,581.52"
Department for Work and Pensions,Corporate,23/05/2011,COMPUTER SERVICES,CORPORATE IT,BT GLOBAL SERVICES,2020994009,"9,026,071.36"
Department for Work and Pensions,Corporate,16/05/2011,COMPUTER SERVICES,CORPORATE IT,HP ENTERPRISE SERVICES UK LTD,2020891593,"7,029,068.47"
Department for Work and Pensions,Corporate,17/05/2011,DESKTOP SERVICES,CORPORATE IT,HP ENTERPRISE SERVICES UK LTD,2020900355,"6,885,583.11"
Department for Work and Pensions,Corporate,31/05/2011,BANKING AND ENCASHMENT COSTS,GROUP FINANCE,POST OFFICE LTD,1004817,"5,615,569.48"
Department for Work and Pensions,Jobcentre Plus,04/05/2011,MEDICAL SERVICES,JOBCENTRE PLUS,ATOS HEALTHCARE,2020699470,"5,182,696.66"
Department for Work and Pensions,European Social Fund,09/05/2011,HELP FOR UNEMPLOYED PEOPLE OTHER,WWEG EUROPEAN SOCIAL FUND,SOUTH EAST SKILLS FUNDING AGENCY,5000000571,"5,036,630.00"
Department for Work and Pensions,Jobcentre Plus,31/05/2011,ACCOMMODATION COSTS,JOBCENTRE PLUS,TELEREAL TRILLIUM,2021107378,"4,677,919.73"
Department for Work and Pensions,Corporate,31/05/2011,TRADE RECEIVABLES,BALANCE SHEET PAYMENTS,TELEREAL TRILLIUM,2021107377,"4,569,240.50"
Department for Work and Pensions,Corporate,24/05/2011,COMPUTER SERVICES,CORPORATE IT,HP ENTERPRISE SERVICES UK LTD,2021003457,"4,294,965.47"
Department for Work and Pensions,Jobcentre Plus,25/05/2011,MEDICAL SERVICES,JOBCENTRE PLUS,ATOS HEALTHCARE,2021015944,"4,022,333.16"
Department for Work and Pensions,Corporate,24/05/2011,COMPUTER SERVICES,CORPORATE IT,HP ENTERPRISE SERVICES UK LTD,2021003457,"3,419,361.71"
Department for Work and Pensions,Corporate,12/05/2011,COMPUTER SERVICES,CORPORATE IT,HP ENTERPRISE SERVICES UK LTD,2020876496,"3,300,040.12"
Department for Work and Pensions,Corporate,23/05/2011,COMPUTER SERVICES,CORPORATE IT,BT GLOBAL SERVICES,2020994009,"2,931,327.78"
Department for Work and Pensions,Corporate,19/05/2011,GRANTS IN AID,CORPORATE AND SUPPORT SERVICES,PENSION PROTECTION FUND,1004802,"2,720,000.00"
Department for Work and Pensions,Corporate,24/05/2011,COMPUTER SERVICES,GROUP FINANCE,HP ENTERPRISE SERVICES UK LTD,2021003457,"2,693,758.00"
Department for Work and Pensions,Jobcentre Plus,12/05/2011,AOS CONTRACTED OUT SERVICES,JOBCENTRE PLUS,BALFOUR BEATTY WORKPLACE LTD,2020874920,"2,690,357.28"
Department for Work and Pensions,"Pension, Disability Carers Services",31/05/2011,ACCOMMODATION COSTS,PENSIONS & DISABILITY CARERS SERVICE,TELEREAL TRILLIUM,2021107377,"2,439,310.75"
Department for Work and Pensions,Corporate,17/05/2011,COMPUTER SERVICES,CORPORATE IT,HP ENTERPRISE SERVICES UK LTD,2020900355,"2,368,097.59"
Department for Work and Pensions,Employment Programmes,03/05/2011,REMPLOY,WWEG EMPLOYMENT PROGRAMMES,REMPLOY LTD,2020691717,"2,350,000.00"
Department for Work and Pensions,Employment Programmes,27/05/2011,REMPLOY,WWEG EMPLOYMENT PROGRAMMES,REMPLOY LTD,2021096403,"2,350,000.00"
Department for Work and Pensions,Employment Programmes,24/05/2011,YOUNG PERSON'S GUARANTEE,WWEG EMPLOYMENT PROGRAMMES,SALFORD CITY  COUNCIL,2021008214,"2,224,050.00"
Department for Work and Pensions,Jobcentre Plus,31/05/2011,ACCOMMODATION COSTS,JOBCENTRE PLUS,TELEREAL TRILLIUM,2021107377,"2,113,855.48"
Department for Work and Pensions,Corporate,24/05/2011,COMPUTER SERVICES,CORPORATE IT,HP ENTERPRISE SERVICES UK LTD,2021003457,"1,997,699.96"
Department for Work and Pensions,Corporate,27/05/2011,ACCOMMODATION COSTS,GROUP FINANCE,HMRC,2002624,"1,982,468.28"
Department for Work and Pensions,Corporate,23/05/2011,COMPUTER SERVICES,CORPORATE IT,HP ENTERPRISE SERVICES UK LTD,2020996102,"1,867,893.84"
Department for Work and Pensions,Corporate,11/05/2011,COMPUTER SERVICES,CORPORATE IT,HP ENTERPRISE SERVICES UK LTD,2020825950,"1,813,926.70"
Department for Work and Pensions,Corporate,23/05/2011,COMPUTER SERVICES,CORPORATE IT,BT GLOBAL SERVICES,2020994009,"1,780,201.16"
Department for Work and Pensions,Jobcentre Plus,31/05/2011,ACCOMMODATION COSTS,JOBCENTRE PLUS,TELEREAL TRILLIUM,2021107379,"1,764,698.48"
Department for Work and Pensions,Jobcentre Plus,06/05/2011,OTHER RECEIVABLES,BALANCE SHEET PAYMENTS,A4E LTD,2020775387,"1,742,999.58"
Department for Work and Pensions,Jobcentre Plus,05/05/2011,MEDICAL SERVICES,JOBCENTRE PLUS,ATOS ORIGIN MEDICAL SERVICES,2020768474,"1,643,825.85"
Department for Work and Pensions,Jobcentre Plus,06/05/2011,OTHER RECEIVABLES,BALANCE SHEET PAYMENTS,BUSINESS EMPLOYMENT SERVICES TRAINING LTD,2020775576,"1,594,816.54"
Department for Work and Pensions,Employment Programmes,19/05/2011,YOUNG PERSON'S GUARANTEE,WWEG EMPLOYMENT PROGRAMMES,NATIONAL SKILLS ACADEMY FOR SPORT & ACTIVE LEISURE,2020982840,"1,455,750.00"
Department for Work and Pensions,Corporate,24/05/2011,COMPUTER SERVICES,CORPORATE IT,HP ENTERPRISE SERVICES UK LTD,2021003457,"1,436,360.48"
Department for Work and Pensions,Corporate,27/05/2011,COMPUTER SERVICES,GROUP FINANCE,HMRC,2002624,"1,405,957.83"
Department for Work and Pensions,Corporate,17/05/2011,COMPUTER SERVICES,CORPORATE IT,HP ENTERPRISE SERVICES UK LTD,2020900355,"1,351,438.50"
Department for Work and Pensions,Corporate,16/05/2011,COMPUTER SERVICES,CORPORATE IT,XEROX UK LTD 3W,2020893893,"1,303,756.39"
Department for Work and Pensions,Corporate,19/05/2011,POSTAGE,GROUP FINANCE,TNT UK LTD,2020984158,"1,269,971.00"
Department for Work and Pensions,Jobcentre Plus,06/05/2011,OTHER RECEIVABLES,BALANCE SHEET PAYMENTS,CAREERS DEVELOPMENT GROUP LTD,2020775858,"1,258,131.46"
Department for Work and Pensions,Jobcentre Plus,31/05/2011,COMPUTER SERVICES,JOBCENTRE PLUS,ACCENTURE,2021098854,"1,250,871.93"
Department for Work and Pensions,Jobcentre Plus,06/05/2011,OTHER RECEIVABLES,BALANCE SHEET PAYMENTS,WORKING LINKS,2020780622,"1,239,204.64"
Department for Work and Pensions,Corporate,17/05/2011,OTHER GOODS AND SERVICES,WWG SUMMARY,VALUATION OFFICE AGENCY,2002615,"1,200,000.00"
Department for Work and Pensions,Corporate,19/05/2011,BANKING AND ENCASHMENT COSTS,GROUP FINANCE,SANTANDER,1004800,"1,191,476.00"
Department for Work and Pensions,Corporate,31/05/2011,ACCOMMODATION COSTS,GROUP FINANCE,TELEREAL TRILLIUM,2021107377,"1,181,466.63"
Department for Work and Pensions,Corporate,11/05/2011,CONTRACTED OUT SERVICES,GROUP FINANCE,XEROX UK LTD 3W,2020871681,"1,158,250.00"
Department for Work and Pensions,Corporate,23/05/2011,TELEPHONE AND POSTAGE,GROUP FINANCE,UK MAIL,2020997916,"1,130,559.55"
Department for Work and Pensions,Jobcentre Plus,20/05/2011,MEDICAL SERVICES,JOBCENTRE PLUS,ATOS HEALTHCARE,2020987153,"1,121,811.68"
Department for Work and Pensions,Employment Programmes,20/05/2011,YOUNG PERSON'S GUARANTEE,WWEG EMPLOYMENT PROGRAMMES,GROUNDWORK UK,2020989519,"1,086,600.00"
Department for Work and Pensions,Employment Programmes,20/05/2011,EP GENERIC PROVIDER PAYMENTS,WWEG EMPLOYMENT PROGRAMMES,A4E LTD,2020987116,"1,077,915.67"
Department for Work and Pensions,Employment Programmes,17/05/2011,YOUNG PERSON'S GUARANTEE,WWEG EMPLOYMENT PROGRAMMES,3SC,2020894944,"1,075,800.00"
Department for Work and Pensions,Corporate,10/05/2011,APPS DEV,CHANGE MANAGEMENT DIRECTORATE,HP ENTERPRISE SERVICES UK LTD,2020792603,"1,058,098.92"
Department for Work and Pensions,Housing Benefits,13/05/2011,HOUSING BENEFIT ADMIN,WWG HOUSING BENEFIT,BIRMINGHAM CITY COUNCIL,2020887010,"1,032,452.00"
Department for Work and Pensions,Employment Programmes,20/05/2011,EP GENERIC PROVIDER PAYMENTS,WWEG EMPLOYMENT PROGRAMMES,SERCO LTD,2020992134,"1,013,347.50"
Department for Work and Pensions,Corporate,06/05/2011,COMPUTER SERVICES,CORPORATE IT,HP ENTERPRISE SERVICES UK LTD,2020777825,"1,011,209.01"
Department for Work and Pensions,Corporate,31/05/2011,TRADE RECEIVABLES,BALANCE SHEET PAYMENTS,TELEREAL TRILLIUM,2021107378,"980,527.06"
Department for Work and Pensions,Employment Programmes,20/05/2011,EP GENERIC PROVIDER PAYMENTS,WWEG EMPLOYMENT PROGRAMMES,CALDER UK LTD,2020987594,"969,432.09"
Department for Work and Pensions,Jobcentre Plus,03/05/2011,OTHER RECEIVABLES,BALANCE SHEET PAYMENTS,A4E LTD,2020689201,"967,232.53"
Department for Work and Pensions,Corporate,17/05/2011,COMPUTER SERVICES,CORPORATE IT,ACCENTURE UK LTD,2020895706,"938,028.09"
Department for Work and Pensions,Jobcentre Plus,18/05/2011,COMPUTER SERVICES,JOBCENTRE PLUS,ACCENTURE,2020912755,"934,123.73"
Department for Work and Pensions,Jobcentre Plus,26/05/2011,MEDICAL SERVICES,JOBCENTRE PLUS,ATOS HEALTHCARE,2021084568,"932,775.94"
Department for Work and Pensions,Corporate,25/05/2011,COMPUTER SERVICES,CORPORATE IT,DETICA LTD,2021026937,"901,800.00"
Department for Work and Pensions,Corporate,10/05/2011,TELEPHONE AND POSTAGE,GROUP FINANCE,ROYAL MAIL GROUP PLC,2020797235,"892,082.64"
Department for Work and Pensions,Corporate,23/05/2011,DESKTOP SERVICES,CORPORATE IT,HP ENTERPRISE SERVICES UK LTD,2020996102,"886,493.42"
Department for Work and Pensions,Jobcentre Plus,26/05/2011,OTHER RECEIVABLES,BALANCE SHEET PAYMENTS,A4E LTD,2021084538,"866,003.97"
Department for Work and Pensions,Jobcentre Plus,13/05/2011,ACCOMMODATION COSTS,JOBCENTRE PLUS,TELEREAL TRILLIUM,2020886809,"858,283.76"
Department for Work and Pensions,Jobcentre Plus,13/05/2011,CONTRACTED OUT SERVICES,JOBCENTRE PLUS,CAPITA BUSINESS SERVICES LTD,2020882043,"792,743.95"
Department for Work and Pensions,Housing Benefits,13/05/2011,HOUSING BENEFIT ADMIN,WWG HOUSING BENEFIT,CITY OF GLASGOW,2020887058,"789,476.00"
Department for Work and Pensions,Employment Programmes,20/05/2011,EP GENERIC PROVIDER PAYMENTS,WWEG EMPLOYMENT PROGRAMMES,SKILLS TRAINING UK LIMITED,2020992143,"789,110.67"
Department for Work and Pensions,Employment Programmes,20/05/2011,EP GENERIC PROVIDER PAYMENTS,WWEG EMPLOYMENT PROGRAMMES,WORKING LINKS,2020992476,"781,586.96"
Department for Work and Pensions,Employment Programmes,26/05/2011,YOUNG PERSON'S GUARANTEE,WWEG EMPLOYMENT PROGRAMMES,WALES COUNCIL FOR VOLUNTARY ACTION,2021090780,"776,850.00"
Department for Work and Pensions,Employment Programmes,20/05/2011,EP GENERIC PROVIDER PAYMENTS,WWEG EMPLOYMENT PROGRAMMES,A4E LTD,2020987116,"768,953.67"
Department for Work and Pensions,Jobcentre Plus,06/05/2011,OTHER RECEIVABLES,BALANCE SHEET PAYMENTS,SKILLS TRAINING UK LTD,2020780288,"755,665.71"
Department for Work and Pensions,Jobcentre Plus,06/05/2011,OTHER RECEIVABLES,BALANCE SHEET PAYMENTS,SENCIA LTD,2020780269,"752,934.10"
Department for Work and Pensions,Employment Programmes,20/05/2011,EP GENERIC PROVIDER PAYMENTS,WWEG EMPLOYMENT PROGRAMMES,DUDLEY MBC FUTURE SKILLS,2020989148,"746,609.30"
Department for Work and Pensions,Corporate,04/05/2011,COMPUTER SERVICES,CORPORATE IT,ATOS ORIGIN IT SERVICES UK LTD,2020699471,"736,993.00"
Department for Work and Pensions,Employment Programmes,20/05/2011,EP GENERIC PROVIDER PAYMENTS,WWEG EMPLOYMENT PROGRAMMES,A4E LTD,2020987116,"732,710.83"
Department for Work and Pensions,"Pension, Disability Carers Services",12/05/2011,AOS CONTRACTED OUT SERVICES,PENSIONS & DISABILITY CARERS SERVICE,BALFOUR BEATTY WORKPLACE LTD,2020874920,"726,282.76"
Department for Work and Pensions,Corporate,24/05/2011,COMPUTER SERVICES,CORPORATE IT,HP ENTERPRISE SERVICES UK LTD,2021003457,"718,795.55"
Department for Work and Pensions,Jobcentre Plus,06/05/2011,OTHER RECEIVABLES,BALANCE SHEET PAYMENTS,CAREERS DEVELOPMENT GROUP,2020775857,"717,698.52"
Department for Work and Pensions,Employment Programmes,20/05/2011,EP GENERIC PROVIDER PAYMENTS,WWEG EMPLOYMENT PROGRAMMES,WORKING LINKS,2020992476,"697,742.25"
Department for Work and Pensions,Corporate,31/05/2011,ACCOMMODATION COSTS,GROUP FINANCE,TELEREAL TRILLIUM,2021107377,"684,685.89"
Department for Work and Pensions,"Pension, Disability Carers Services",03/05/2011,TEMPORARY (TEMP) STAFF COSTS,PENSIONS & DISABILITY CARERS SERVICE,CLUB 24 LTD T/A VENTURA,2020689429,"684,495.53"
Department for Work and Pensions,Employment Programmes,20/05/2011,EP GENERIC PROVIDER PAYMENTS,WWEG EMPLOYMENT PROGRAMMES,WORKING LINKS,2020992476,"679,445.53"
Department for Work and Pensions,Employment Programmes,20/05/2011,EP GENERIC PROVIDER PAYMENTS,WWEG EMPLOYMENT PROGRAMMES,MAXIMUS EMPLOYMENT UK LTD,2020991000,"668,738.70"
Department for Work and Pensions,Corporate,17/05/2011,COMPUTER SERVICES,CORPORATE IT,HMRC,2020900348,"660,296.53"
Department for Work and Pensions,Jobcentre Plus,19/05/2011,OTHER RECEIVABLES,BALANCE SHEET PAYMENTS,SHAW TRUST LTD,2020983894,"660,117.34"
Department for Work and Pensions,Jobcentre Plus,06/05/2011,OTHER RECEIVABLES,BALANCE SHEET PAYMENTS,SEETEC BUSINESS TECHNOLOGY CENTRE LTD,2020780267,"657,008.40"
Department for Work and Pensions,Employment Programmes,04/05/2011,YOUNG PERSON'S GUARANTEE,WWEG EMPLOYMENT PROGRAMMES,BIRMINGHAM CITY COUNCIL,2020700716,"644,700.00"
Department for Work and Pensions,Employment Programmes,20/05/2011,EP GENERIC PROVIDER PAYMENTS,WWEG EMPLOYMENT PROGRAMMES,A4E LTD,2020987116,"638,575.83"
Department for Work and Pensions,Jobcentre Plus,06/05/2011,AOS CONTRACTED OUT SERVICES,JOBCENTRE PLUS,VERTEX DATA SCIENCE LIMITED,2020780556,"637,940.75"
Department for Work and Pensions,Housing Benefits,13/05/2011,HOUSING BENEFIT ADMIN,WWG HOUSING BENEFIT,LIVERPOOL CITY COUNCIL,2020887160,"625,683.00"
Department for Work and Pensions,Jobcentre Plus,06/05/2011,OTHER RECEIVABLES,BALANCE SHEET PAYMENTS,REED IN PARTNERSHIP,2020779855,"618,647.37"
Department for Work and Pensions,Employment Programmes,20/05/2011,EP GENERIC PROVIDER PAYMENTS,WWEG EMPLOYMENT PROGRAMMES,A4E LTD,2020987116,"614,416.17"
Department for Work and Pensions,Employment Programmes,20/05/2011,EP GENERIC PROVIDER PAYMENTS,WWEG EMPLOYMENT PROGRAMMES,FOURSTAR EMPLOYMENT & SKILLS LTD,2020989337,"608,339.52"
Department for Work and Pensions,Employment Programmes,20/05/2011,EP GENERIC PROVIDER PAYMENTS,WWEG EMPLOYMENT PROGRAMMES,SEETEC BUSINESS TECHNOLOGY CENTRE LTD,2020992131,"598,372.85"
Department for Work and Pensions,Employment Programmes,20/05/2011,YOUNG PERSON'S GUARANTEE,WWEG EMPLOYMENT PROGRAMMES,MERTHYR TYDFIL COUNTY BOROUGH COUNCIL,2020993612,"594,750.00"
Department for Work and Pensions,Employment Programmes,20/05/2011,EP GENERIC PROVIDER PAYMENTS,WWEG EMPLOYMENT PROGRAMMES,INGEUS UK LTD,2020989681,"587,831.56"
Department for Work and Pensions,Corporate,24/05/2011,COMPUTER SERVICES,CORPORATE IT,HP ENTERPRISE SERVICES UK LTD,2021003457,"576,332.45"
Department for Work and Pensions,Employment Programmes,20/05/2011,EP GENERIC PROVIDER PAYMENTS,WWEG EMPLOYMENT PROGRAMMES,REMPLOY LTD,2020991679,"564,331.51"
Department for Work and Pensions,Housing Benefits,13/05/2011,HOUSING BENEFIT ADMIN,WWG HOUSING BENEFIT,LEEDS CITY COUNCIL,2020887155,"559,512.00"
Department for Work and Pensions,Corporate,13/05/2011,COMPUTER SERVICES,SHARED SERVICES,FUJITSU SERVICES,2020884068,"552,860.00"
Department for Work and Pensions,Corporate,11/05/2011,COMPUTER SERVICES,CORPORATE IT,HP ENTERPRISE SERVICES UK LTD,2020825950,"542,601.06"
Department for Work and Pensions,Corporate,31/05/2011,ACCOMMODATION COSTS,GROUP FINANCE,TELEREAL TRILLIUM,2021107377,"526,732.30"
Department for Work and Pensions,Employment Programmes,20/05/2011,EP GENERIC PROVIDER PAYMENTS,WWEG EMPLOYMENT PROGRAMMES,INGEUS UK LTD,2020989681,"525,899.10"
Department for Work and Pensions,Corporate,31/05/2011,ACCOMMODATION COSTS,GROUP FINANCE,TELEREAL TRILLIUM,2021107377,"524,741.80"
Department for Work and Pensions,Employment Programmes,24/05/2011,YOUNG PERSON'S GUARANTEE,WWEG EMPLOYMENT PROGRAMMES,NORTH TYNESIDE COUNCIL,2021006380,"522,450.00"
Department for Work and Pensions,Housing Benefits,13/05/2011,HOUSING BENEFIT ADMIN,WWG HOUSING BENEFIT,MANCHESTER CITY COUNCIL,2020887193,"521,148.00"
Department for Work and Pensions,Jobcentre Plus,20/05/2011,COMPUTER SERVICES,JOBCENTRE PLUS,STERIA,2020992165,"519,705.00"
Department for Work and Pensions,Corporate,11/05/2011,COMPUTER SERVICES,CORPORATE IT,HP ENTERPRISE SERVICES UK LTD,2020825950,"507,792.79"
Department for Work and Pensions,Corporate,31/05/2011,ACCOMMODATION COSTS,SHARED SERVICES,TELEREAL TRILLIUM,2021107377,"504,013.85"
Department for Work and Pensions,Jobcentre Plus,06/05/2011,OTHER RECEIVABLES,BALANCE SHEET PAYMENTS,BTCV ENTERPRISES LTD,2020775575,"497,982.68"
Department for Work and Pensions,Jobcentre Plus,06/05/2011,OTHER RECEIVABLES,BALANCE SHEET PAYMENTS,SHAW TRUST LTD,2020780277,"486,055.22"
Department for Work and Pensions,Jobcentre Plus,03/05/2011,OTHER RECEIVABLES,BALANCE SHEET PAYMENTS,REED IN PARTNERSHIP,2020691714,"480,058.38"
Department for Work and Pensions,Employment Programmes,20/05/2011,EP GENERIC PROVIDER PAYMENTS,WWEG EMPLOYMENT PROGRAMMES,THE WISE GROUP,2020992331,"478,842.33"
Department for Work and Pensions,Corporate,10/05/2011,APPS DEV,GROUP FINANCE,HP ENTERPRISE SERVICES UK LTD,2020792603,"473,467.36"
Department for Work and Pensions,Employment Programmes,20/05/2011,EP GENERIC PROVIDER PAYMENTS,WWEG EMPLOYMENT PROGRAMMES,SERCO LTD,2020992134,"472,365.17"
Department for Work and Pensions,Employment Programmes,20/05/2011,EP GENERIC PROVIDER PAYMENTS,WWEG EMPLOYMENT PROGRAMMES,SERCO LTD,2020992134,"470,488.83"
Department for Work and Pensions,Employment Programmes,26/05/2011,EMPLOYMENT INITIATIVES,WWEG EMPLOYMENT PROGRAMMES,REED IN PARTNERSHIP HACKNEY LTD,2021089679,"468,344.00"
Department for Work and Pensions,Corporate,26/05/2011,COMPUTER SERVICES,CORPORATE IT,BT GLOBAL SERVICES,2021084734,"466,362.31"
Department for Work and Pensions,Jobcentre Plus,19/05/2011,OTHER RECEIVABLES,BALANCE SHEET PAYMENTS,WORKING LINKS,2020984350,"464,560.60"
Department for Work and Pensions,Jobcentre Plus,06/05/2011,OTHER RECEIVABLES,BALANCE SHEET PAYMENTS,TRAINING WEST LANCASHIRE LTD,2020780497,"459,972.32"
Department for Work and Pensions,Employment Programmes,10/05/2011,YOUNG PERSON'S GUARANTEE,WWEG EMPLOYMENT PROGRAMMES,SOUTH LANARKSHIRE COUNCIL,2020798339,"457,200.00"
Department for Work and Pensions,Jobcentre Plus,27/05/2011,AOS CONTRACTED OUT SERVICES,JOBCENTRE PLUS,VERTEX DATA SCIENCE LIMITED,2021096812,"451,066.22"
Department for Work and Pensions,Jobcentre Plus,06/05/2011,OTHER RECEIVABLES,BALANCE SHEET PAYMENTS,WORKING LINKS,2020780620,"449,710.43"
Department for Work and Pensions,Housing Benefits,13/05/2011,HOUSING BENEFIT ADMIN,WWG HOUSING BENEFIT,DURHAM COUNCIL,2020887088,"446,708.00"
Department for Work and Pensions,Housing Benefits,13/05/2011,HOUSING BENEFIT ADMIN,WWG HOUSING BENEFIT,BRADFORD METROPOLITAN BOROUGH COUNCIL,2020887023,"443,966.00"
Department for Work and Pensions,Employment Programmes,20/05/2011,EP GENERIC PROVIDER PAYMENTS,WWEG EMPLOYMENT PROGRAMMES,WORKING LINKS,2020992476,"443,844.23"
Department for Work and Pensions,Jobcentre Plus,16/05/2011,COMPUTER SERVICES,JOBCENTRE PLUS,HP ENTERPRISE SERVICES UK LTD,2020891593,"441,660.64"
Department for Work and Pensions,European Social Fund,09/05/2011,ESF NON-PREFUNDED EXPENDITURE,WWEG EUROPEAN SOCIAL FUND,CORNWALL COLLEGE,5000000563,"436,668.00"
Department for Work and Pensions,Employment Programmes,19/05/2011,JSP ESF DEL P COSTS,WWEG EMPLOYMENT PROGRAMMES,INGEUS UK LTD,2020981219,"426,393.24"
Department for Work and Pensions,"Pension, Disability Carers Services",31/05/2011,ACCOMMODATION COSTS,PENSIONS & DISABILITY CARERS SERVICE,TELEREAL TRILLIUM,2021107378,"420,561.02"
Department for Work and Pensions,Employment Programmes,26/05/2011,EMPLOYMENT INITIATIVES,WWEG EMPLOYMENT PROGRAMMES,REED IN PARTNERSHIP HACKNEY LTD,2021089679,"416,622.00"
Department for Work and Pensions,Jobcentre Plus,19/05/2011,OTHER RECEIVABLES,BALANCE SHEET PAYMENTS,WORKING LINKS EMPLOYMENT LTD,2020984352,"416,263.13"
Department for Work and Pensions,Employment Programmes,31/05/2011,EP GENERIC PROVIDER PAYMENTS,WWEG EMPLOYMENT PROGRAMMES,SHAW TRUST,2021107048,"413,833.00"
Department for Work and Pensions,Jobcentre Plus,06/05/2011,OTHER RECEIVABLES,BALANCE SHEET PAYMENTS,BTCV,2020775573,"410,629.66"
Department for Work and Pensions,Corporate,27/05/2011,AOS CONTRACTED OUT SERVICES,SHARED SERVICES,CAPITA BUSINESS SERVICES LTD,2021093026,"402,130.23"
Department for Work and Pensions,Jobcentre Plus,06/05/2011,OTHER RECEIVABLES,BALANCE SHEET PAYMENTS,INGEUS UK LTD,2020777893,"400,051.50"
Department for Work and Pensions,Employment Programmes,12/05/2011,EP GENERIC PROVIDER PAYMENTS,WWEG EMPLOYMENT PROGRAMMES,A4E LTD,2020874760,"398,889.40"
Department for Work and Pensions,Corporate,16/05/2011,GRANTS IN AID,CORPORATE AND SUPPORT SERVICES,THE PENSIONS OMBUDSMAN,1004797,"393,000.00"
Department for Work and Pensions,Corporate,17/05/2011,COMPUTER SERVICES,UNIVERSAL CREDIT,HP ENTERPRISE SERVICES UK LTD,2020900355,"392,600.60"
Department for Work and Pensions,Housing Benefits,13/05/2011,HOUSING BENEFIT ADMIN,WWG HOUSING BENEFIT,LONDON BOROUGH OF TOWER HAMLETS,2020887186,"388,535.00"
Department for Work and Pensions,Corporate,26/05/2011,COMPUTER SERVICES,CORPORATE IT,ATOS ORIGIN IT SERVICES UK LTD,2021084569,"383,775.58"
Department for Work and Pensions,Housing Benefits,13/05/2011,HOUSING BENEFIT ADMIN,WWG HOUSING BENEFIT,SHEFFIELD CITY COUNCIL,2020887273,"382,037.00"
Department for Work and Pensions,Corporate,31/05/2011,TRADE RECEIVABLES,BALANCE SHEET PAYMENTS,TELEREAL TRILLIUM,2021107379,"379,771.79"
Department for Work and Pensions,Employment Programmes,06/05/2011,YOUNG PERSON'S GUARANTEE,WWEG EMPLOYMENT PROGRAMMES,TNG LTD,2020780485,"379,559.00"
Department for Work and Pensions,Employment Programmes,20/05/2011,EMPLOYMENT INITIATIVES,WWEG EMPLOYMENT PROGRAMMES,WORKING LINKS,2020992475,"378,480.00"
Department for Work and Pensions,"Pension, Disability Carers Services",12/05/2011,INTANGIBLE ASSETS,PENSIONS & DISABILITY CARERS SERVICE,ATOS ORIGIN IT SERVICES UK,2020874811,"375,976.28"
Department for Work and Pensions,Employment Programmes,20/05/2011,EP GENERIC PROVIDER PAYMENTS,WWEG EMPLOYMENT PROGRAMMES,TNG LTD,2020992337,"373,569.61"
Department for Work and Pensions,Jobcentre Plus,03/05/2011,OTHER RECEIVABLES,BALANCE SHEET PAYMENTS,THE INTRAINING GROUP,2020691963,"373,399.71"
Department for Work and Pensions,Jobcentre Plus,17/05/2011,APPS DEV,JOBCENTRE PLUS,HP ENTERPRISE SERVICES UK LTD,2020900355,"370,660.03"
Department for Work and Pensions,Housing Benefits,13/05/2011,HOUSING BENEFIT ADMIN,WWG HOUSING BENEFIT,LONDON BOROUGH OF LAMBETH,2020887178,"370,235.00"
Department for Work and Pensions,Employment Programmes,04/05/2011,EP GENERIC PROVIDER PAYMENTS,WWEG EMPLOYMENT PROGRAMMES,SHAW TRUST,2020760538,"368,708.32"
Department for Work and Pensions,Housing Benefits,13/05/2011,HOUSING BENEFIT ADMIN,WWG HOUSING BENEFIT,CORNWALL COUNCIL,2020887067,"368,509.00"
Department for Work and Pensions,Housing Benefits,13/05/2011,HOUSING BENEFIT ADMIN,WWG HOUSING BENEFIT,LONDON BOROUGH OF LEWISHAM,2020887179,"365,854.00"
Department for Work and Pensions,Housing Benefits,13/05/2011,HOUSING BENEFIT ADMIN,WWG HOUSING BENEFIT,HACKNEY LBC,2020887127,"364,812.00"
Department for Work and Pensions,Corporate,24/05/2011,COMPUTER SERVICES,CORPORATE IT,HP ENTERPRISE SERVICES UK LTD,2021003457,"363,811.04"
Department for Work and Pensions,Housing Benefits,13/05/2011,HOUSING BENEFIT ADMIN,WWG HOUSING BENEFIT,BRISTOL CITY COUNCIL,2020887029,"363,124.00"
Department for Work and Pensions,Employment Programmes,13/05/2011,PATHWAY TO WORK,WWEG EMPLOYMENT PROGRAMMES,DERBYSHIRE COUNTY PCT,2020882355,"362,043.00"
Department for Work and Pensions,Employment Programmes,13/05/2011,NDDP,WWEG EMPLOYMENT PROGRAMMES,ACTION FOR EMPLOYMENTS,2020881634,"361,576.52"
Department for Work and Pensions,Employment Programmes,06/05/2011,YOUNG PERSON'S GUARANTEE,WWEG EMPLOYMENT PROGRAMMES,THE INTRAINING GROUP,2020780464,"356,817.00"
Department for Work and Pensions,Employment Programmes,10/05/2011,YOUNG PERSON'S GUARANTEE,WWEG EMPLOYMENT PROGRAMMES,GROUNDWORK WEST MIDLANDS,2020792378,"356,550.00"
Department for Work and Pensions,Corporate,10/05/2011,COMPUTER SERVICES,CORPORATE IT,BT GLOBAL SERVICES,2020788857,"356,180.90"
Department for Work and Pensions,Jobcentre Plus,19/05/2011,OTHER RECEIVABLES,BALANCE SHEET PAYMENTS,A4E LTD,2020979279,"356,163.53"
Department for Work and Pensions,Housing Benefits,13/05/2011,HOUSING BENEFIT ADMIN,WWG HOUSING BENEFIT,LONDON BOROUGH OF SOUTHWARK,2020887184,"353,365.00"
Department for Work and Pensions,Corporate,31/05/2011,ACCOMMODATION COSTS,GROUP FINANCE,TELEREAL TRILLIUM,2021107378,"345,486.73"
Department for Work and Pensions,Housing Benefits,13/05/2011,HOUSING BENEFIT ADMIN,WWG HOUSING BENEFIT,LONDON BOROUGH OF NEWHAM,2020887181,"338,233.00"
Department for Work and Pensions,Housing Benefits,13/05/2011,HOUSING BENEFIT ADMIN,WWG HOUSING BENEFIT,EDINBURGH DISTRICT COUNCIL,2020887105,"338,190.00"
Department for Work and Pensions,Employment Programmes,18/05/2011,YOUNG PERSON'S GUARANTEE,WWEG EMPLOYMENT PROGRAMMES,GATEWAY KNOWLEDGE ALLIANCE NORTH WEST KENT COLLEGE,2020929566,"337,350.00"
Department for Work and Pensions,Employment Programmes,23/05/2011,YOUNG PERSON'S GUARANTEE,WWEG EMPLOYMENT PROGRAMMES,THE SALVATION ARMY,2020997897,"326,198.04"
Department for Work and Pensions,Jobcentre Plus,18/05/2011,COMPUTER SERVICES,JOBCENTRE PLUS,HMRC,2020931296,"320,144.47"
Department for Work and Pensions,Housing Benefits,13/05/2011,HOUSING BENEFIT ADMIN,WWG HOUSING BENEFIT,LONDON BOROUGH OF BRENT,2020887164,"317,783.00"
Department for Work and Pensions,Corporate,26/05/2011,COMPUTER SERVICES,GROUP FINANCE,VOCALINK,2021090700,"316,000.00"
Department for Work and Pensions,Employment Programmes,06/05/2011,YOUNG PERSON'S GUARANTEE,WWEG EMPLOYMENT PROGRAMMES,THE INTRAINING GROUP,2020780464,"315,861.00"
Department for Work and Pensions,Jobcentre Plus,06/05/2011,OTHER RECEIVABLES,BALANCE SHEET PAYMENTS,TNG NETWORK LTD,2020780487,"314,036.69"
Department for Work and Pensions,Corporate,18/05/2011,COMPUTER SERVICES,SHARED SERVICES,FUJITSU SERVICES LTD,2020927613,"312,892.40"
Department for Work and Pensions,Jobcentre Plus,31/05/2011,ACCOMMODATION COSTS,JOBCENTRE PLUS,TELEREAL TRILLIUM,2021107378,"312,423.18"
Department for Work and Pensions,Housing Benefits,13/05/2011,HOUSING BENEFIT ADMIN,WWG HOUSING BENEFIT,KIRKLEES METROPOLITAN BOROUGH COUNCIL,2020887152,"311,862.00"
Department for Work and Pensions,Employment Programmes,24/05/2011,PATHWAY TO WORK,WWEG EMPLOYMENT PROGRAMMES,NHS BLACKBURN WITH DARWEN,2021006370,"310,970.00"
Department for Work and Pensions,Employment Programmes,13/05/2011,YOUNG PERSON'S GUARANTEE,WWEG EMPLOYMENT PROGRAMMES,BRADFORD METROPOLITAN DISTRICT COUNCIL,2020881779,"310,950.00"
Department for Work and Pensions,Employment Programmes,26/05/2011,EMPLOYMENT INITIATIVES,WWEG EMPLOYMENT PROGRAMMES,REED IN PARTNERSHIP HACKNEY LTD,2021089679,"308,516.00"
Department for Work and Pensions,Employment Programmes,16/05/2011,YOUNG PERSON'S GUARANTEE,WWEG EMPLOYMENT PROGRAMMES,GROUNDWORK WEST MIDLANDS,2020891501,"307,950.00"
Department for Work and Pensions,Employment Programmes,18/05/2011,YOUNG PERSON'S GUARANTEE,WWEG EMPLOYMENT PROGRAMMES,NATIONAL SKILLS ACADEMY FOR SPORT & ACTIVE LEISURE,2020957430,"307,650.00"
Department for Work and Pensions,Housing Benefits,13/05/2011,HOUSING BENEFIT ADMIN,WWG HOUSING BENEFIT,SANDWELL BOROUGH COUNCIL,2020887266,"306,783.00"
Department for Work and Pensions,Jobcentre Plus,26/05/2011,OTHER RECEIVABLES,BALANCE SHEET PAYMENTS,INGEUS UK LTD,2021086808,"306,001.26"
Department for Work and Pensions,Housing Benefits,13/05/2011,HOUSING BENEFIT ADMIN,WWG HOUSING BENEFIT,CROYDON PEO%,2020887074,"305,707.00"
Department for Work and Pensions,Jobcentre Plus,06/05/2011,OTHER RECEIVABLES,BALANCE SHEET PAYMENTS,TNG BUSINESS SUPPORT LTD.,2020780482,"305,025.79"
Department for Work and Pensions,Employment Programmes,19/05/2011,HELP FOR DISABLED PEOPLE,WWEG EMPLOYMENT PROGRAMMES,FINCHALE TRAINING COLLEGE,2020980817,"304,352.83"
Department for Work and Pensions,Jobcentre Plus,19/05/2011,OTHER RECEIVABLES,BALANCE SHEET PAYMENTS,INGEUS UK LTD,2020981218,"303,951.70"
Department for Work and Pensions,Employment Programmes,06/05/2011,YOUNG PERSON'S GUARANTEE,WWEG EMPLOYMENT PROGRAMMES,THE INTRAINING GROUP,2020780464,"303,900.00"
Department for Work and Pensions,Housing Benefits,13/05/2011,HOUSING BENEFIT ADMIN,WWG HOUSING BENEFIT,LONDON BOROUGH OF ISLINGTON,2020887176,"302,185.00"
Department for Work and Pensions,Housing Benefits,13/05/2011,HOUSING BENEFIT ADMIN,WWG HOUSING BENEFIT,LONDON BOROUGH OF EALING,2020887167,"301,452.00"
Department for Work and Pensions,Employment Programmes,31/05/2011,PATHWAY TO WORK,WWEG EMPLOYMENT PROGRAMMES,AMBU LOCAL HEALTH BOARD NEATH PT,2021098879,"301,320.00"
Department for Work and Pensions,Jobcentre Plus,06/05/2011,OTHER RECEIVABLES,BALANCE SHEET PAYMENTS,WORKING LINKS,2020780619,"301,133.89"
Department for Work and Pensions,Corporate,19/05/2011,COMPUTER SERVICES,CORPORATE IT,ACCENTURE UK LTD,2020979294,"298,766.32"
Department for Work and Pensions,Corporate,31/05/2011,ACCOMMODATION COSTS,GROUP FINANCE,TELEREAL TRILLIUM,2021107377,"298,681.12"
Department for Work and Pensions,Jobcentre Plus,06/05/2011,OTHER RECEIVABLES,BALANCE SHEET PAYMENTS,RBLI ROYAL BRITISH LEGION INDUSTRIES LTD,2020779849,"295,595.09"
Department for Work and Pensions,Employment Programmes,04/05/2011,EP GENERIC PROVIDER PAYMENTS,WWEG EMPLOYMENT PROGRAMMES,WORKING LINKS,2020765661,"294,795.65"
Department for Work and Pensions,Housing Benefits,13/05/2011,HOUSING BENEFIT ADMIN,WWG HOUSING BENEFIT,LONDON BOROUGH OF HARINGEY,2020887171,"293,615.00"
Department for Work and Pensions,Housing Benefits,13/05/2011,HOUSING BENEFIT ADMIN,WWG HOUSING BENEFIT,NOTTINGHAM CITY COUNCIL,2020887230,"293,187.00"
Department for Work and Pensions,Corporate,25/05/2011,COMPUTER SERVICES,CORPORATE IT,ACCENTURE UK LTD,2021015788,"292,110.40"
Department for Work and Pensions,Housing Benefits,13/05/2011,HOUSING BENEFIT ADMIN,WWG HOUSING BENEFIT,LEICESTER CITY COUNCIL,2020887156,"287,913.00"
Department for Work and Pensions,Housing Benefits,13/05/2011,HOUSING BENEFIT ADMIN,WWG HOUSING BENEFIT,LONDON BOROUGH OF ENFIELD,2020887168,"287,554.00"
Department for Work and Pensions,Jobcentre Plus,18/05/2011,COMPUTER SERVICES,JOBCENTRE PLUS,ACCENTURE UK LTD,2020912756,"285,057.68"
Department for Work and Pensions,European Social Fund,09/05/2011,ESF NON-PREFUNDED EXPENDITURE,WWEG EUROPEAN SOCIAL FUND,UNIVERSITY OF EXETER,5000000574,"284,234.00"
Department for Work and Pensions,Corporate,31/05/2011,ACCOMMODATION COSTS,GROUP FINANCE,TELEREAL TRILLIUM,2021107378,"284,232.75"
Department for Work and Pensions,Housing Benefits,13/05/2011,HOUSING BENEFIT ADMIN,WWG HOUSING BENEFIT,NORTH LANARKSHIRE COUNCIL,2020887220,"283,007.00"
Department for Work and Pensions,Employment Programmes,26/05/2011,EMPLOYMENT INITIATIVES,WWEG EMPLOYMENT PROGRAMMES,INGEUS UK LTD,2021086809,"282,077.00"
Department for Work and Pensions,Housing Benefits,13/05/2011,HOUSING BENEFIT ADMIN,WWG HOUSING BENEFIT,SUNDERLAND CITY COUNCIL,2020887312,"281,931.00"
Department for Work and Pensions,Employment Programmes,19/05/2011,EMPLOYMENT INITIATIVES,WWEG EMPLOYMENT PROGRAMMES,TNG WORKZONE LTD,2020984157,"281,518.00"
Department for Work and Pensions,Employment Programmes,04/05/2011,EP GENERIC PROVIDER PAYMENTS,WWEG EMPLOYMENT PROGRAMMES,SHAW TRUST,2020760538,"280,840.00"
Department for Work and Pensions,Employment Programmes,20/05/2011,YOUNG PERSON'S GUARANTEE,WWEG EMPLOYMENT PROGRAMMES,LEEDS CITY COUNCIL,2020990634,"280,500.00"
Department for Work and Pensions,Employment Programmes,06/05/2011,YOUNG PERSON'S GUARANTEE,WWEG EMPLOYMENT PROGRAMMES,TNG LTD,2020780485,"280,280.00"
Department for Work and Pensions,Jobcentre Plus,19/05/2011,OTHER RECEIVABLES,BALANCE SHEET PAYMENTS,SHAW TRUST LTD,2020983897,"278,852.44"
Department for Work and Pensions,Corporate,31/05/2011,ACCOMMODATION COSTS,GROUP FINANCE,TELEREAL TRILLIUM,2021107377,"278,506.85"
Department for Work and Pensions,Housing Benefits,13/05/2011,HOUSING BENEFIT ADMIN,WWG HOUSING BENEFIT,WAKEFIELD METROPOLITAN DISTRICT COUNCIL,2020887338,"276,618.00"
Department for Work and Pensions,Housing Benefits,13/05/2011,HOUSING BENEFIT ADMIN,WWG HOUSING BENEFIT,COVENTRY CITY COUNCIL,2020887071,"276,337.00"
Department for Work and Pensions,Employment Programmes,24/05/2011,HELP FOR DISABLED PEOPLE,WWEG EMPLOYMENT PROGRAMMES,ST LOYES COLLEGE FOUNDATION,2021008261,"276,285.30"
Department for Work and Pensions,Housing Benefits,13/05/2011,HOUSING BENEFIT ADMIN,WWG HOUSING BENEFIT,KINGSTON UPON HULL CITY COUNCIL,2020887151,"274,061.00"
Department for Work and Pensions,Employment Programmes,24/05/2011,YOUNG PERSON'S GUARANTEE,WWEG EMPLOYMENT PROGRAMMES,STOKE ON TRENT CITY COUNCIL,2021008267,"273,683.28"
Department for Work and Pensions,Housing Benefits,13/05/2011,HOUSING BENEFIT ADMIN,WWG HOUSING BENEFIT,WIRRAL BOROUGH COUNCIL,2020887361,"271,978.00"
Department for Work and Pensions,Housing Benefits,13/05/2011,HOUSING BENEFIT ADMIN,WWG HOUSING BENEFIT,BRIGHTON & HOVE COUNCIL,2020887028,"271,462.00"
Department for Work and Pensions,Employment Programmes,31/05/2011,EP GENERIC PROVIDER PAYMENTS,WWEG EMPLOYMENT PROGRAMMES,SHAW TRUST,2021107048,"271,124.76"
Department for Work and Pensions,Employment Programmes,26/05/2011,EMPLOYMENT INITIATIVES,WWEG EMPLOYMENT PROGRAMMES,REED IN PARTNERSHIP HACKNEY LTD,2021089679,"270,722.00"
Department for Work and Pensions,Housing Benefits,13/05/2011,HOUSING BENEFIT ADMIN,WWG HOUSING BENEFIT,WALSALL BOROUGH COUNCIL,2020887339,"270,578.00"
Department for Work and Pensions,Jobcentre Plus,06/05/2011,OTHER RECEIVABLES,BALANCE SHEET PAYMENTS,TRIAGE CENTRAL LTD,2020780499,"269,838.42"
Department for Work and Pensions,Employment Programmes,04/05/2011,EP GENERIC PROVIDER PAYMENTS,WWEG EMPLOYMENT PROGRAMMES,WORKING LINKS,2020765661,"268,882.58"
Department for Work and Pensions,Employment Programmes,04/05/2011,EP GENERIC PROVIDER PAYMENTS,WWEG EMPLOYMENT PROGRAMMES,THE PLUSS ORGANISATION,2020763746,"266,795.58"
Department for Work and Pensions,Employment Programmes,06/05/2011,YOUNG PERSON'S GUARANTEE,WWEG EMPLOYMENT PROGRAMMES,TNG LTD,2020780485,"265,898.00"
Department for Work and Pensions,Employment Programmes,04/05/2011,EP GENERIC PROVIDER PAYMENTS,WWEG EMPLOYMENT PROGRAMMES,SEETEC BUSINESS TECHNOLOGY CENTRE LTD,2020760524,"265,529.03"
Department for Work and Pensions,Corporate,12/05/2011,AOS CONTRACTED OUT SERVICES,GROUP FINANCE,BALFOUR BEATTY WORKPLACE LTD,2020874920,"265,376.27"
Department for Work and Pensions,Housing Benefits,13/05/2011,HOUSING BENEFIT ADMIN,WWG HOUSING BENEFIT,LONDON BOROUGH OF WANDSWORTH,2020887188,"264,293.00"
Department for Work and Pensions,Housing Benefits,13/05/2011,HOUSING BENEFIT ADMIN,WWG HOUSING BENEFIT,FIFE COUNCIL,2020887114,"262,739.00"
Department for Work and Pensions,Employment Programmes,20/05/2011,YOUNG PERSON'S GUARANTEE,WWEG EMPLOYMENT PROGRAMMES,CSV,2020987635,"262,050.00"
Department for Work and Pensions,Housing Benefits,13/05/2011,HOUSING BENEFIT ADMIN,WWG HOUSING BENEFIT,LONDON BOROUGH OF GREENWICH,2020887169,"260,369.00"
Department for Work and Pensions,Employment Programmes,26/05/2011,YOUNG PERSON'S GUARANTEE,WWEG EMPLOYMENT PROGRAMMES,SOUTH LANARKSHIRE COUNCIL,2021090368,"260,100.00"
Department for Work and Pensions,Employment Programmes,19/05/2011,YOUNG PERSON'S GUARANTEE,WWEG EMPLOYMENT PROGRAMMES,SCOTTISH PREMIER LEAGUE LTD,2020983872,"258,600.00"
Department for Work and Pensions,Employment Programmes,20/05/2011,HELP FOR DISABLED PEOPLE,WWEG EMPLOYMENT PROGRAMMES,QUEEN ELIZABETHS FOUNDATION TRAINING COLLEGE,2020991433,"257,226.68"
Department for Work and Pensions,Housing Benefits,13/05/2011,HOUSING BENEFIT ADMIN,WWG HOUSING BENEFIT,CARDIFF CITY COUNCIL,2020887041,"255,850.00"
Department for Work and Pensions,Employment Programmes,31/05/2011,EP GENERIC PROVIDER PAYMENTS,WWEG EMPLOYMENT PROGRAMMES,SHAW TRUST,2021107048,"255,244.02"
Department for Work and Pensions,Housing Benefits,13/05/2011,HOUSING BENEFIT ADMIN,WWG HOUSING BENEFIT,LONDON BOROUGH OF CAMDEN,2020887166,"255,078.00"
Department for Work and Pensions,Employment Programmes,04/05/2011,EP GENERIC PROVIDER PAYMENTS,WWEG EMPLOYMENT PROGRAMMES,SHAW TRUST,2020760538,"254,664.84"
Department for Work and Pensions,Corporate,23/05/2011,COMPUTER SERVICES,CORPORATE IT,HP ENTERPRISE SERVICES UK LTD,2020996102,"253,541.60"
Department for Work and Pensions,Corporate,25/05/2011,COMPUTER SERVICES,CORPORATE IT,ACCENTURE UK LTD,2021015788,"253,318.47"
Department for Work and Pensions,Corporate,12/05/2011,COMPUTER SERVICES,CORPORATE IT,TELEFONICA O2 UK LTD,2020879301,"252,675.84"
Department for Work and Pensions,Jobcentre Plus,31/05/2011,PATHWAY TO WORK,JOBCENTRE PLUS,NHS LANARKSHIRE,2021105228,"252,208.00"
Department for Work and Pensions,Jobcentre Plus,10/05/2011,APPS DEV,JOBCENTRE PLUS,HP ENTERPRISE SERVICES UK LTD,2020792603,"251,718.99"
Department for Work and Pensions,"Pension, Disability Carers Services",13/05/2011,OTHER GOODS AND SERVICES,PENSIONS & DISABILITY CARERS SERVICE,HM REVENUE & CUSTOMS,2002605,"251,287.72"
Department for Work and Pensions,Housing Benefits,13/05/2011,HOUSING BENEFIT ADMIN,WWG HOUSING BENEFIT,WOLVERHAMPTON CITY COUNCIL,2020887364,"251,247.00"
Department for Work and Pensions,Employment Programmes,13/05/2011,YOUNG PERSON'S GUARANTEE,WWEG EMPLOYMENT PROGRAMMES,NORTH LANARKSHIRE COUNCIL,2020885740,"247,050.00"
Department for Work and Pensions,Employment Programmes,20/05/2011,EMPLOYMENT INITIATIVES,WWEG EMPLOYMENT PROGRAMMES,THE WISE GROUP,2020992330,"247,026.00"
Department for Work and Pensions,Employment Programmes,04/05/2011,YOUNG PERSON'S GUARANTEE,WWEG EMPLOYMENT PROGRAMMES,SOUTH LANARKSHIRE COUNCIL,2020760698,"246,750.00"
Department for Work and Pensions,Housing Benefits,13/05/2011,HOUSING BENEFIT ADMIN,WWG HOUSING BENEFIT,LONDON BOROUGH OF BARNET,2020887162,"246,635.00"
Department for Work and Pensions,Employment Programmes,04/05/2011,EP GENERIC PROVIDER PAYMENTS,WWEG EMPLOYMENT PROGRAMMES,INGEUS UK LTD,2020720087,"244,624.56"
Department for Work and Pensions,Corporate,09/05/2011,COMPUTER SERVICES,UNIVERSAL CREDIT,ACCENTURE UK LTD,2020782590,"244,454.31"
Department for Work and Pensions,Housing Benefits,13/05/2011,HOUSING BENEFIT ADMIN,WWG HOUSING BENEFIT,NEWCASTLE CITY COUNCIL,2020887210,"244,177.00"
Department for Work and Pensions,Employment Programmes,04/05/2011,EP GENERIC PROVIDER PAYMENTS,WWEG EMPLOYMENT PROGRAMMES,THE PLUSS ORGANISATION,2020763746,"243,935.42"
Department for Work and Pensions,Employment Programmes,06/05/2011,YOUNG PERSON'S GUARANTEE,WWEG EMPLOYMENT PROGRAMMES,TBG LEARNING LTD,2020780449,"243,786.00"
Department for Work and Pensions,Employment Programmes,31/05/2011,EP GENERIC PROVIDER PAYMENTS,WWEG EMPLOYMENT PROGRAMMES,THE PLUSS ORGANISATION,2021107386,"242,963.75"
Department for Work and Pensions,Housing Benefits,13/05/2011,HOUSING BENEFIT ADMIN,WWG HOUSING BENEFIT,DONCASTER METROPOLITAN BOROUGH COUNCIL,2020887083,"242,625.00"
Department for Work and Pensions,Employment Programmes,10/05/2011,EMPLOYMENT INITIATIVES,WWEG EMPLOYMENT PROGRAMMES,PERTEMPS,2020796638,"242,268.00"
Department for Work and Pensions,Employment Programmes,31/05/2011,EP GENERIC PROVIDER PAYMENTS,WWEG EMPLOYMENT PROGRAMMES,WORKING LINKS,2021107649,"240,701.59"
Department for Work and Pensions,Housing Benefits,13/05/2011,HOUSING BENEFIT ADMIN,WWG HOUSING BENEFIT,SALFORD CITY COUNCIL,2020887265,"240,644.00"
Department for Work and Pensions,Employment Programmes,04/05/2011,EP GENERIC PROVIDER PAYMENTS,WWEG EMPLOYMENT PROGRAMMES,SHAW TRUST,2020760538,"240,616.04"
Department for Work and Pensions,Housing Benefits,13/05/2011,HOUSING BENEFIT ADMIN,WWG HOUSING BENEFIT,SOUTH LANARKSHIRE COUNCIL,2020887288,"239,641.00"
Department for Work and Pensions,Corporate,25/05/2011,COMPUTER SERVICES,CORPORATE IT,SPECIALIST COMPUTER CENTRES PLC,2021076281,"238,563.00"
Department for Work and Pensions,Employment Programmes,20/05/2011,EMPLOYMENT INITIATIVES,WWEG EMPLOYMENT PROGRAMMES,SENCIA LTD,2020992132,"238,186.00"
Department for Work and Pensions,Employment Programmes,20/05/2011,YOUNG PERSON'S GUARANTEE,WWEG EMPLOYMENT PROGRAMMES,LONDON BOROUGH OF ISLINGTON,2020990647,"237,900.00"
Department for Work and Pensions,Employment Programmes,04/05/2011,EP GENERIC PROVIDER PAYMENTS,WWEG EMPLOYMENT PROGRAMMES,ADVANCE HOUSING & SUPPORT LTD,2020699327,"237,501.14"
Department for Work and Pensions,Employment Programmes,31/05/2011,EP GENERIC PROVIDER PAYMENTS,WWEG EMPLOYMENT PROGRAMMES,ADVANCE HOUSING & SUPPORT LTD,2021098864,"237,501.14"
Department for Work and Pensions,Housing Benefits,13/05/2011,HOUSING BENEFIT ADMIN,WWG HOUSING BENEFIT,CITY OF WESTMINSTER,2020887059,"235,056.00"
Department for Work and Pensions,Employment Programmes,04/05/2011,EP GENERIC PROVIDER PAYMENTS,WWEG EMPLOYMENT PROGRAMMES,SHAW TRUST,2020760538,"234,766.15"
Department for Work and Pensions,Corporate,17/05/2011,COMPUTER SERVICES,CORPORATE IT,HP ENTERPRISE SERVICES UK LTD,2020900355,"234,040.23"
Department for Work and Pensions,Employment Programmes,31/05/2011,EP GENERIC PROVIDER PAYMENTS,WWEG EMPLOYMENT PROGRAMMES,SHAW TRUST,2021107048,"233,285.73"
Department for Work and Pensions,Corporate,12/05/2011,COMPUTER SERVICES,CORPORATE IT,HP ENTERPRISE SERVICES UK LTD,2020876496,"233,283.91"
Department for Work and Pensions,Housing Benefits,13/05/2011,HOUSING BENEFIT ADMIN,WWG HOUSING BENEFIT,LONDON BOROUGH OF WALTHAM FOREST,2020887187,"232,821.00"
Department for Work and Pensions,Housing Benefits,13/05/2011,HOUSING BENEFIT ADMIN,WWG HOUSING BENEFIT,WIGAN BOROUGH COUNCIL,2020887357,"231,937.00"
Department for Work and Pensions,Corporate,13/05/2011,TRADE RECEIVABLES,BALANCE SHEET PAYMENTS,TELEREAL TRILLIUM,2020886809,"231,675.18"
Department for Work and Pensions,Employment Programmes,12/05/2011,YOUNG PERSON'S GUARANTEE,WWEG EMPLOYMENT PROGRAMMES,INSPIRE FUTURES LTD,2020876564,"230,270.95"
Department for Work and Pensions,Housing Benefits,13/05/2011,HOUSING BENEFIT ADMIN,WWG HOUSING BENEFIT,WILTSHIRE COUNCIL,2020887358,"229,642.00"
Department for Work and Pensions,Employment Programmes,06/05/2011,YOUNG PERSON'S GUARANTEE,WWEG EMPLOYMENT PROGRAMMES,SARINA RUSSO JOB ACCESS GB PTY LTD,2020780253,"228,578.00"
Department for Work and Pensions,Employment Programmes,31/05/2011,EP GENERIC PROVIDER PAYMENTS,WWEG EMPLOYMENT PROGRAMMES,MOMENTUM SCOTLAND,2021104916,"227,930.69"
Department for Work and Pensions,Employment Programmes,04/05/2011,EP GENERIC PROVIDER PAYMENTS,WWEG EMPLOYMENT PROGRAMMES,SHAW TRUST,2020760538,"226,655.01"
Department for Work and Pensions,Employment Programmes,04/05/2011,EP GENERIC PROVIDER PAYMENTS,WWEG EMPLOYMENT PROGRAMMES,SHAW TRUST,2020760538,"225,264.40"
Department for Work and Pensions,Corporate,03/05/2011,OTHER PROJECTS,GROUP FINANCE,SOUTH YORKSHIRE CREDIT UNION,2020691894,"225,000.00"
Department for Work and Pensions,Employment Programmes,16/05/2011,YOUNG PERSON'S GUARANTEE,WWEG EMPLOYMENT PROGRAMMES,SHEFFIELD CITY COUNCIL,2020893592,"223,650.00"
Department for Work and Pensions,Corporate,12/05/2011,AOS CONTRACTED OUT SERVICES,SHARED SERVICES,BALFOUR BEATTY WORKPLACE LTD,2020874920,"222,174.86"
Department for Work and Pensions,Employment Programmes,20/05/2011,EP GENERIC PROVIDER PAYMENTS,WWEG EMPLOYMENT PROGRAMMES,PERTEMPS,2020991423,"222,084.85"
Department for Work and Pensions,"Pension, Disability Carers Services",12/05/2011,CONTRACTED OUT SERVICES,PENSIONS & DISABILITY CARERS SERVICE,BALFOUR BEATTY WORKPLACE LTD,2020874920,"222,002.56"
Department for Work and Pensions,Housing Benefits,13/05/2011,HOUSING BENEFIT ADMIN,WWG HOUSING BENEFIT,DUDLEY METROPOLITAN BOROUGH COUNCIL,2020887085,"221,667.00"
Department for Work and Pensions,Employment Programmes,04/05/2011,EP GENERIC PROVIDER PAYMENTS,WWEG EMPLOYMENT PROGRAMMES,SHAW TRUST,2020760538,"221,058.08"
Department for Work and Pensions,Employment Programmes,06/05/2011,YOUNG PERSON'S GUARANTEE,WWEG EMPLOYMENT PROGRAMMES,SARINA RUSSO JOB ACCESS GB PTY LTD,2020780253,"221,019.00"
Department for Work and Pensions,Housing Benefits,13/05/2011,HOUSING BENEFIT ADMIN,WWG HOUSING BENEFIT,STOKE ON TRENT CITY COUNCIL,2020887308,"219,935.00"
Department for Work and Pensions,Employment Programmes,31/05/2011,EP GENERIC PROVIDER PAYMENTS,WWEG EMPLOYMENT PROGRAMMES,SHAW TRUST,2021107048,"219,747.27"
Department for Work and Pensions,"Pension, Disability Carers Services",31/05/2011,ACCOMMODATION COSTS,PENSIONS & DISABILITY CARERS SERVICE,TELEREAL TRILLIUM,2021107379,"218,933.87"
Department for Work and Pensions,Employment Programmes,04/05/2011,EP GENERIC PROVIDER PAYMENTS,WWEG EMPLOYMENT PROGRAMMES,SHAW TRUST,2020760538,"218,564.77"
Department for Work and Pensions,Corporate,03/05/2011,OTHER PROJECTS,GROUP FINANCE,EAST LANCS MONEYLINE,2020690909,"218,250.00"
Department for Work and Pensions,Employment Programmes,13/05/2011,YOUNG PERSON'S GUARANTEE,WWEG EMPLOYMENT PROGRAMMES,THE SALVATION ARMY,2020886820,"217,611.90"
Department for Work and Pensions,Housing Benefits,13/05/2011,HOUSING BENEFIT ADMIN,WWG HOUSING BENEFIT,BOLTON METROPOLITAN BOROUGH COUNCIL,2020887016,"217,405.00"
Department for Work and Pensions,Housing Benefits,13/05/2011,HOUSING BENEFIT ADMIN,WWG HOUSING BENEFIT,SEFTON METROPOLITAN BOROUGH COUNCIL,2020887270,"216,843.00"
Department for Work and Pensions,Corporate,27/05/2011,PROFESSIONAL FEES,LSPG,FIELD FISHER WATERHOUSE LLP,2021095084,"216,126.87"
Department for Work and Pensions,Jobcentre Plus,06/05/2011,OTHER RECEIVABLES,BALANCE SHEET PAYMENTS,TRIAGE CENTRAL LTD,2020780500,"215,323.85"
Department for Work and Pensions,Employment Programmes,31/05/2011,EP GENERIC PROVIDER PAYMENTS,WWEG EMPLOYMENT PROGRAMMES,SHAW TRUST,2021107048,"215,126.76"
Department for Work and Pensions,Employment Programmes,04/05/2011,EP GENERIC PROVIDER PAYMENTS,WWEG EMPLOYMENT PROGRAMMES,WORKING LINKS,2020765661,"214,373.19"
Department for Work and Pensions,Employment Programmes,04/05/2011,EP GENERIC PROVIDER PAYMENTS,WWEG EMPLOYMENT PROGRAMMES,SHAW TRUST,2020760538,"213,645.77"
Department for Work and Pensions,Housing Benefits,13/05/2011,HOUSING BENEFIT ADMIN,WWG HOUSING BENEFIT,NORTHUMBERLAND COUNCIL,2020887228,"212,210.00"
Department for Work and Pensions,Employment Programmes,04/05/2011,EP GENERIC PROVIDER PAYMENTS,WWEG EMPLOYMENT PROGRAMMES,SHAW TRUST,2020760538,"211,561.00"
Department for Work and Pensions,Employment Programmes,26/05/2011,PATHWAY TO WORK,WWEG EMPLOYMENT PROGRAMMES,NHS HIGHLAND,2021088962,"211,250.79"
Department for Work and Pensions,Employment Programmes,31/05/2011,EP GENERIC PROVIDER PAYMENTS,WWEG EMPLOYMENT PROGRAMMES,SHAW TRUST,2021107048,"211,157.09"
Department for Work and Pensions,Employment Programmes,04/05/2011,EP GENERIC PROVIDER PAYMENTS,WWEG EMPLOYMENT PROGRAMMES,WORKING LINKS,2020765661,"211,033.73"
Department for Work and Pensions,Employment Programmes,17/05/2011,YOUNG PERSON'S GUARANTEE,WWEG EMPLOYMENT PROGRAMMES,KIRKLEES COUNCIL,2020901789,"210,450.00"
Department for Work and Pensions,Jobcentre Plus,06/05/2011,OTHER RECEIVABLES,BALANCE SHEET PAYMENTS,YMCA TRAINING LTD,2020780641,"209,541.25"
Department for Work and Pensions,Corporate,16/05/2011,COMPUTER SERVICES,CORPORATE IT,HP ENTERPRISE SERVICES UK LTD,2020891593,"208,980.46"
Department for Work and Pensions,Employment Programmes,06/05/2011,YOUNG PERSON'S GUARANTEE,WWEG EMPLOYMENT PROGRAMMES,SARINA RUSSO JOB ACCESS GB PTY LTD,2020780253,"208,511.00"
Department for Work and Pensions,Employment Programmes,04/05/2011,EP GENERIC PROVIDER PAYMENTS,WWEG EMPLOYMENT PROGRAMMES,SHAW TRUST,2020760538,"207,516.36"
Department for Work and Pensions,Employment Programmes,04/05/2011,EP GENERIC PROVIDER PAYMENTS,WWEG EMPLOYMENT PROGRAMMES,SHAW TRUST,2020760538,"206,360.98"
Department for Work and Pensions,Employment Programmes,24/05/2011,WORKSTEP,WWEG EMPLOYMENT PROGRAMMES,MERTHYR TYDFIL INSTITUTE FOR THE BLIND,2021010057,"206,000.00"
Department for Work and Pensions,Employment Programmes,31/05/2011,EP GENERIC PROVIDER PAYMENTS,WWEG EMPLOYMENT PROGRAMMES,SHAW TRUST,2021107048,"205,854.23"
Department for Work and Pensions,Corporate,06/05/2011,COMPUTER SERVICES,CHANGE MANAGEMENT DIRECTORATE,ACCENTURE,2020775400,"205,680.80"
Department for Work and Pensions,Jobcentre Plus,06/05/2011,OTHER RECEIVABLES,BALANCE SHEET PAYMENTS,MBW TRAINING SERVICES,2020779149,"204,675.17"
Department for Work and Pensions,Employment Programmes,04/05/2011,EP GENERIC PROVIDER PAYMENTS,WWEG EMPLOYMENT PROGRAMMES,MOMENTUM SCOTLAND,2020743536,"204,547.14"
Department for Work and Pensions,Employment Programmes,31/05/2011,EP GENERIC PROVIDER PAYMENTS,WWEG EMPLOYMENT PROGRAMMES,SHAW TRUST,2021107048,"203,798.17"
Department for Work and Pensions,Employment Programmes,20/05/2011,EMPLOYMENT INITIATIVES,WWEG EMPLOYMENT PROGRAMMES,WORKING LINKS,2020992475,"203,778.00"
Department for Work and Pensions,Jobcentre Plus,06/05/2011,OTHER RECEIVABLES,BALANCE SHEET PAYMENTS,PROSPECTS,2020779603,"202,880.25"
Department for Work and Pensions,Housing Benefits,13/05/2011,HOUSING BENEFIT ADMIN,WWG HOUSING BENEFIT,PLYMOUTH CITY COUNCIL,2020887240,"202,462.00"
Department for Work and Pensions,Housing Benefits,13/05/2011,HOUSING BENEFIT ADMIN,WWG HOUSING BENEFIT,LONDON BOROUGH OF HOUNSLOW,2020887175,"201,896.00"
Department for Work and Pensions,Jobcentre Plus,12/05/2011,OTHER RECEIVABLES,BALANCE SHEET PAYMENTS,WORKING LINKS,2020879474,"201,675.41"
Department for Work and Pensions,Employment Programmes,31/05/2011,EP GENERIC PROVIDER PAYMENTS,WWEG EMPLOYMENT PROGRAMMES,SHAW TRUST,2021107048,"201,564.75"
Department for Work and Pensions,Housing Benefits,13/05/2011,HOUSING BENEFIT ADMIN,WWG HOUSING BENEFIT,LONDON BOROUGH OF HILLINGDON,2020887174,"201,509.00"
Department for Work and Pensions,Employment Programmes,19/05/2011,YOUNG PERSON'S GUARANTEE,WWEG EMPLOYMENT PROGRAMMES,DORSET COUNTY COUNCIL,2020980208,"201,000.00"
Department for Work and Pensions,Jobcentre Plus,12/05/2011,OTHER RECEIVABLES,BALANCE SHEET PAYMENTS,SHAW TRUST LTD,2020879099,"200,800.24"
Department for Work and Pensions,Employment Programmes,31/05/2011,HELP FOR DISABLED PEOPLE,WWEG EMPLOYMENT PROGRAMMES,PORTLAND COLLEGE,2021105672,"200,757.75"
Department for Work and Pensions,Corporate,24/05/2011,DESKTOP SERVICES,CORPORATE IT,HP ENTERPRISE SERVICES UK LTD,2021003457,"199,758.56"
Department for Work and Pensions,Employment Programmes,31/05/2011,EP GENERIC PROVIDER PAYMENTS,WWEG EMPLOYMENT PROGRAMMES,SHAW TRUST,2021107048,"197,951.87"
Department for Work and Pensions,Housing Benefits,13/05/2011,HOUSING BENEFIT ADMIN,WWG HOUSING BENEFIT,ROTHERHAM BOROUGH COUNCIL,2020887257,"196,790.00"
Department for Work and Pensions,Corporate,06/05/2011,COMPUTER SERVICES,CORPORATE IT,HP ENTERPRISE SERVICES UK LTD,2020777825,"195,799.00"
Department for Work and Pensions,Corporate,11/05/2011,COMPUTER SERVICES,CORPORATE IT,HP ENTERPRISE SERVICES UK LTD,2020825950,"195,415.99"
Department for Work and Pensions,Jobcentre Plus,12/05/2011,OTHER RECEIVABLES,BALANCE SHEET PAYMENTS,INGEUS UK LTD,2020876562,"193,993.45"
Department for Work and Pensions,Jobcentre Plus,12/05/2011,AOS CONTRACTED OUT SERVICES,JOBCENTRE PLUS,BALFOUR BEATTY WORKPLACE LTD,2020874920,"192,544.43"
Department for Work and Pensions,Employment Programmes,09/05/2011,PATHWAY TO WORK,WWEG EMPLOYMENT PROGRAMMES,HYWEL DDA NHS TRUST,2020787680,"191,758.09"
Department for Work and Pensions,Housing Benefits,13/05/2011,HOUSING BENEFIT ADMIN,WWG HOUSING BENEFIT,EAST RIDING OF YORKSHIRE BOROUGH COUNCIL,2020887100,"191,497.00"
Department for Work and Pensions,Housing Benefits,13/05/2011,HOUSING BENEFIT ADMIN,WWG HOUSING BENEFIT,CHESHIRE WEST & CHESTER COUNCIL,2020887051,"191,385.00"
Department for Work and Pensions,Housing Benefits,13/05/2011,HOUSING BENEFIT ADMIN,WWG HOUSING BENEFIT,MEDWAY TOWNS COUNCIL,2020887195,"191,188.00"
Department for Work and Pensions,Housing Benefits,13/05/2011,HOUSING BENEFIT ADMIN,WWG HOUSING BENEFIT,TAMESIDE BOROUGH COUNCIL,2020887317,"191,093.00"
Department for Work and Pensions,Housing Benefits,13/05/2011,HOUSING BENEFIT ADMIN,WWG HOUSING BENEFIT,LONDON BOROUGH OF HAMMERSMITH & FULHAM,2020887170,"190,663.00"
Department for Work and Pensions,Employment Programmes,04/05/2011,EP GENERIC PROVIDER PAYMENTS,WWEG EMPLOYMENT PROGRAMMES,SHAW TRUST,2020760538,"189,101.03"
Department for Work and Pensions,Housing Benefits,13/05/2011,HOUSING BENEFIT ADMIN,WWG HOUSING BENEFIT,SOUTHAMPTON CITY COUNCIL,2020887296,"187,775.00"
Department for Work and Pensions,Housing Benefits,13/05/2011,HOUSING BENEFIT ADMIN,WWG HOUSING BENEFIT,PORTSMOUTH CITY COUNCIL,2020887242,"187,378.00"
Department for Work and Pensions,Housing Benefits,13/05/2011,HOUSING BENEFIT ADMIN,WWG HOUSING BENEFIT,RHONDDA CYNON TAFF COUNTY BOROUGH COUNCIL,2020887250,"186,767.00"
Department for Work and Pensions,Jobcentre Plus,06/05/2011,OTHER RECEIVABLES,BALANCE SHEET PAYMENTS,CROSBY TRAINING,2020775916,"186,353.85"
Department for Work and Pensions,Employment Programmes,20/05/2011,EMPLOYMENT INITIATIVES,WWEG EMPLOYMENT PROGRAMMES,WORKING LINKS,2020992475,"185,946.00"
Department for Work and Pensions,Employment Programmes,06/05/2011,YOUNG PERSON'S GUARANTEE,WWEG EMPLOYMENT PROGRAMMES,PROSPECT SERVICES LTD,2020779602,"184,445.00"
Department for Work and Pensions,Housing Benefits,13/05/2011,HOUSING BENEFIT ADMIN,WWG HOUSING BENEFIT,CHESHIRE EAST BOROUGH COUNCIL,2020887050,"184,198.00"
Department for Work and Pensions,Jobcentre Plus,19/05/2011,OTHER RECEIVABLES,BALANCE SHEET PAYMENTS,BUSINESS EMPLOYMENT SERVICES TRAINING LTD,2020979503,"184,019.70"
Department for Work and Pensions,Corporate,26/05/2011,COMPUTER SERVICES,CORPORATE IT,ATOS ORIGIN IT SERVICES UK LTD,2021084569,"183,750.00"
Department for Work and Pensions,Housing Benefits,13/05/2011,HOUSING BENEFIT ADMIN,WWG HOUSING BENEFIT,STOCKPORT BOROUGH COUNCIL,2020887306,"182,624.00"
Department for Work and Pensions,Employment Programmes,24/05/2011,YOUNG PERSON'S GUARANTEE,WWEG EMPLOYMENT PROGRAMMES,GROUNDWORK WREXHAM & FLINTSHIRE,2021003290,"181,041.28"
Department for Work and Pensions,Housing Benefits,13/05/2011,HOUSING BENEFIT ADMIN,WWG HOUSING BENEFIT,LONDON BOROUGH OF HARROW,2020887172,"181,018.00"
Department for Work and Pensions,Jobcentre Plus,31/05/2011,ACCOMMODATION COSTS,JOBCENTRE PLUS,HMRC,2002631,"180,980.74"
Department for Work and Pensions,European Social Fund,09/05/2011,LOW VALUE PROCUREMENT,WWEG EUROPEAN SOCIAL FUND,LONDON COUNCILS,5000000568,"180,930.00"
Department for Work and Pensions,Jobcentre Plus,26/05/2011,OTHER RECEIVABLES,BALANCE SHEET PAYMENTS,SEETEC BUSINESS TECHNOLOGY CENTRE LTD,2021090334,"180,216.55"
Department for Work and Pensions,Housing Benefits,13/05/2011,HOUSING BENEFIT ADMIN,WWG HOUSING BENEFIT,BARNSLEY BOROUGH COUNCIL,2020887003,"180,115.00"
Department for Work and Pensions,Employment Programmes,31/05/2011,EP GENERIC PROVIDER PAYMENTS,WWEG EMPLOYMENT PROGRAMMES,WORKING LINKS,2021107649,"179,250.84"
Department for Work and Pensions,Housing Benefits,13/05/2011,HOUSING BENEFIT ADMIN,WWG HOUSING BENEFIT,MILTON KEYNES BOROUGH COUNCIL,2020887204,"178,651.00"
Department for Work and Pensions,European Social Fund,10/05/2011,LOW VALUE PROCUREMENT,WWEG EUROPEAN SOCIAL FUND,LUTON BOROUGH COUNCIL,5000000575,"178,140.00"
Department for Work and Pensions,Jobcentre Plus,06/05/2011,OTHER RECEIVABLES,BALANCE SHEET PAYMENTS,COMMUNITY  LINKS,2020775901,"177,162.43"
Department for Work and Pensions,Housing Benefits,13/05/2011,HOUSING BENEFIT ADMIN,WWG HOUSING BENEFIT,SWANSEA CITY COUNCIL,2020887315,"176,582.00"
Department for Work and Pensions,Housing Benefits,13/05/2011,HOUSING BENEFIT ADMIN,WWG HOUSING BENEFIT,DERBY CITY COUNCIL,2020887080,"175,281.00"
Department for Work and Pensions,Housing Benefits,13/05/2011,HOUSING BENEFIT ADMIN,WWG HOUSING BENEFIT,ROCHDALE BOROUGH COUNCIL,2020887253,"174,891.00"
Department for Work and Pensions,Housing Benefits,13/05/2011,HOUSING BENEFIT ADMIN,WWG HOUSING BENEFIT,OLDHAM BOROUGH COUNCIL,2020887233,"174,833.00"
Department for Work and Pensions,Housing Benefits,13/05/2011,HOUSING BENEFIT ADMIN,WWG HOUSING BENEFIT,LONDON BOROUGH OF KENSINGTON & CHELSEA,2020887177,"173,743.00"
Department for Work and Pensions,Employment Programmes,04/05/2011,EP GENERIC PROVIDER PAYMENTS,WWEG EMPLOYMENT PROGRAMMES,WORKING LINKS,2020765661,"173,577.27"
Department for Work and Pensions,Jobcentre Plus,19/05/2011,OTHER RECEIVABLES,BALANCE SHEET PAYMENTS,SEETEC BUSINESS TECHNOLOGY CENTRE LTD,2020983884,"173,526.22"
Department for Work and Pensions,Employment Programmes,13/05/2011,PATHWAY TO WORK,WWEG EMPLOYMENT PROGRAMMES,CWM TAF LHB,2020888358,"172,175.63"
Department for Work and Pensions,Housing Benefits,13/05/2011,HOUSING BENEFIT ADMIN,WWG HOUSING BENEFIT,LONDON BOROUGH OF BROMLEY,2020887165,"171,631.00"
Department for Work and Pensions,Employment Programmes,20/05/2011,YOUNG PERSON'S GUARANTEE,WWEG EMPLOYMENT PROGRAMMES,CARDIFF CITY COUNCIL,2020993529,"171,600.00"
Department for Work and Pensions,Jobcentre Plus,06/05/2011,OTHER RECEIVABLES,BALANCE SHEET PAYMENTS,THE INTRAINING GROUP,2020780463,"171,420.27"
Department for Work and Pensions,Housing Benefits,13/05/2011,HOUSING BENEFIT ADMIN,WWG HOUSING BENEFIT,SHROPSHIRE COUNCIL,2020887276,"170,683.00"
Department for Work and Pensions,Corporate,13/05/2011,ACCOMMODATION COSTS,GROUP FINANCE,TELEREAL TRILLIUM,2020886809,"169,793.84"
Department for Work and Pensions,Housing Benefits,13/05/2011,HOUSING BENEFIT ADMIN,WWG HOUSING BENEFIT,LONDON BOROUGH OF BARKING & DAGENHAM,2020887161,"169,473.00"
Department for Work and Pensions,Employment Programmes,04/05/2011,EP GENERIC PROVIDER PAYMENTS,WWEG EMPLOYMENT PROGRAMMES,CDG WISE ABILITY LTD,2020706041,"169,465.23"
Department for Work and Pensions,European Social Fund,17/05/2011,HELP FOR UNEMPLOYED PEOPLE OTHER,WWEG EUROPEAN SOCIAL FUND,NORTH WEST SKILLS FUNDING AGENCY,5000000578,"168,117.00"
Department for Work and Pensions,Jobcentre Plus,26/05/2011,OTHER RECEIVABLES,BALANCE SHEET PAYMENTS,BUSINESS EMPLOYMENT SERVICES TRAINING LTD,2021084740,"168,094.05"
Department for Work and Pensions,Housing Benefits,13/05/2011,HOUSING BENEFIT ADMIN,WWG HOUSING BENEFIT,KNOWSLEY BOROUGH COUNCIL,2020887153,"167,742.00"
Department for Work and Pensions,"Pension, Disability Carers Services",05/05/2011,MEDICAL SERVICES,PENSIONS & DISABILITY CARERS SERVICE,ATOS HEALTHCARE,2020768473,"167,633.66"
Department for Work and Pensions,Housing Benefits,13/05/2011,HOUSING BENEFIT ADMIN,WWG HOUSING BENEFIT,GATESHEAD BOROUGH COUNCIL,2020887119,"167,075.00"
Department for Work and Pensions,Corporate,04/05/2011,ACCOMMODATION COSTS,GROUP FINANCE,TELEREAL TRILLIUM,2020763734,"166,982.35"
Department for Work and Pensions,Jobcentre Plus,03/05/2011,OTHER RECEIVABLES,BALANCE SHEET PAYMENTS,TNG LTD,2020691979,"166,112.71"
Department for Work and Pensions,Employment Programmes,10/05/2011,YOUNG PERSON'S GUARANTEE,WWEG EMPLOYMENT PROGRAMMES,WAKEFIELD METROPLITAN DISTRICT COUNCIL,2020799054,"165,490.78"
Department for Work and Pensions,Corporate,10/05/2011,BANKING AND ENCASHMENT COSTS,GROUP FINANCE,HSBC BANK PLC,2020792604,"165,267.55"
Department for Work and Pensions,Housing Benefits,13/05/2011,HOUSING BENEFIT ADMIN,WWG HOUSING BENEFIT,LONDON BOROUGH OF REDBRIDGE,2020887182,"164,618.00"
Department for Work and Pensions,Employment Programmes,16/05/2011,YOUNG PERSON'S GUARANTEE,WWEG EMPLOYMENT PROGRAMMES,GROUNDWORK WREXHAM & FLINTSHIRE,2020891502,"164,429.42"
Department for Work and Pensions,Jobcentre Plus,03/05/2011,OTHER RECEIVABLES,BALANCE SHEET PAYMENTS,BUSINESS EMPLOYMENT SERVICES TRAINING LTD,2020689304,"163,498.74"
Department for Work and Pensions,Housing Benefits,13/05/2011,HOUSING BENEFIT ADMIN,WWG HOUSING BENEFIT,BLACKPOOL BOROUGH COUNCIL,2020887013,"162,953.00"
Department for Work and Pensions,Jobcentre Plus,03/05/2011,OTHER RECEIVABLES,BALANCE SHEET PAYMENTS,MACLEOD ASSOCIATES VIA INTERIM,2020691472,"162,900.00"
Department for Work and Pensions,European Social Fund,09/05/2011,LOW VALUE PROCUREMENT,WWEG EUROPEAN SOCIAL FUND,CENTRAL BEDFORDSHIRE COUNCIL,5000000562,"162,772.00"
Department for Work and Pensions,Employment Programmes,04/05/2011,EP GENERIC PROVIDER PAYMENTS,WWEG EMPLOYMENT PROGRAMMES,SHAW TRUST,2020760538,"161,530.06"
Department for Work and Pensions,Jobcentre Plus,13/05/2011,ACCOMMODATION COSTS,JOBCENTRE PLUS,FORESTRY COMMISSION,2002603,"161,420.14"
Department for Work and Pensions,Jobcentre Plus,03/05/2011,OTHER RECEIVABLES,BALANCE SHEET PAYMENTS,SEETEC BUSINESS TECHNOLOGY CENTRE LTD,2020691860,"160,885.10"
Department for Work and Pensions,Jobcentre Plus,12/05/2011,OTHER RECEIVABLES,BALANCE SHEET PAYMENTS,NORTH WESSEX TRAINING,2020878134,"159,790.30"
Department for Work and Pensions,Jobcentre Plus,03/05/2011,OTHER RECEIVABLES,BALANCE SHEET PAYMENTS,INGEUS UK LTD,2020691063,"159,686.72"
Department for Work and Pensions,Employment Programmes,18/05/2011,PATHWAY TO WORK,WWEG EMPLOYMENT PROGRAMMES,MANCHESTER PCT,2020954654,"159,391.00"
Department for Work and Pensions,"Pension, Disability Carers Services",23/05/2011,MEDICAL SERVICES,PENSIONS & DISABILITY CARERS SERVICE,ATOS HEALTHCARE,2020993921,"159,279.33"
Department for Work and Pensions,Corporate,12/05/2011,STAFF COSTS,CORPORATE AND SUPPORT SERVICES,RIGHT CORECARE,2020878615,"158,753.61"
Department for Work and Pensions,Corporate,03/05/2011,PAYMENTS TO CSAS,CORPORATE AND SUPPORT SERVICES,ATOS ORIGIN IT SERVICES UK LTD,2020689237,"158,362.29"
Department for Work and Pensions,Housing Benefits,13/05/2011,HOUSING BENEFIT ADMIN,WWG HOUSING BENEFIT,BOURNEMOUTH BOROUGH COUNCIL,2020887021,"157,665.00"
Department for Work and Pensions,Housing Benefits,13/05/2011,HOUSING BENEFIT ADMIN,WWG HOUSING BENEFIT,MIDDLESBROUGH COUNCIL,2020887202,"157,582.00"
Department for Work and Pensions,Housing Benefits,13/05/2011,HOUSING BENEFIT ADMIN,WWG HOUSING BENEFIT,CALDERDALE BOROUGH COUNCIL,2020887037,"157,069.00"
Department for Work and Pensions,Employment Programmes,31/05/2011,EP GENERIC PROVIDER PAYMENTS,WWEG EMPLOYMENT PROGRAMMES,SHAW TRUST,2021107048,"156,744.69"
Department for Work and Pensions,Employment Programmes,11/05/2011,YOUNG PERSON'S GUARANTEE,WWEG EMPLOYMENT PROGRAMMES,CHESHIRE WEST & CHESTER COUNCIL,2020812650,"155,550.00"
Department for Work and Pensions,Jobcentre Plus,25/05/2011,ACCOMMODATION COSTS,JOBCENTRE PLUS,TELEREAL TRILLIUM,2021079260,"155,022.73"
Department for Work and Pensions,Housing Benefits,13/05/2011,HOUSING BENEFIT ADMIN,WWG HOUSING BENEFIT,NORTH TYNESIDE BOROUGH COUNCIL,2020887224,"154,947.00"
Department for Work and Pensions,Corporate,26/05/2011,COMPUTER SERVICES,CORPORATE IT,ATOS ORIGIN IT SERVICES UK LTD,2021084569,"154,876.00"
Department for Work and Pensions,Corporate,19/05/2011,COMPUTER SERVICES,CORPORATE IT,ACCENTURE UK LTD,2020979294,"154,536.27"
Department for Work and Pensions,Housing Benefits,13/05/2011,HOUSING BENEFIT ADMIN,WWG HOUSING BENEFIT,RENFREWSHIRE COUNCIL,2020887249,"154,503.00"
Department for Work and Pensions,Housing Benefits,13/05/2011,HOUSING BENEFIT ADMIN,WWG HOUSING BENEFIT,PETERBOROUGH CITY COUNCIL,2020887239,"154,406.00"
Department for Work and Pensions,Housing Benefits,13/05/2011,HOUSING BENEFIT ADMIN,WWG HOUSING BENEFIT,DUNDEE CITY COUNCIL,2020887087,"153,546.00"
Department for Work and Pensions,Housing Benefits,13/05/2011,HOUSING BENEFIT ADMIN,WWG HOUSING BENEFIT,ST HELENS BOROUGH COUNCIL,2020887301,"153,140.00"
Department for Work and Pensions,Housing Benefits,13/05/2011,HOUSING BENEFIT ADMIN,WWG HOUSING BENEFIT,NORTHAMPTON BOROUGH COUNCIL,2020887227,"152,650.00"
Department for Work and Pensions,Housing Benefits,13/05/2011,HOUSING BENEFIT ADMIN,WWG HOUSING BENEFIT,NORTH EAST LINCOLNSHIRE COUNCIL,2020887217,"152,348.00"
Department for Work and Pensions,Employment Programmes,19/05/2011,PATHWAY TO WORK,WWEG EMPLOYMENT PROGRAMMES,CUMBRIA PARTNERSHIP FOUNDATION NHS TRUST,2020979847,"152,199.46"
Department for Work and Pensions,Employment Programmes,20/05/2011,YOUNG PERSON'S GUARANTEE,WWEG EMPLOYMENT PROGRAMMES,KENT COUNTY COUNCIL,2020990353,"151,600.00"
Department for Work and Pensions,Corporate,24/05/2011,COMPUTER SERVICES,CORPORATE IT,BT GLOBAL SERVICES,2021000059,"151,570.93"
Department for Work and Pensions,Jobcentre Plus,06/05/2011,OTHER RECEIVABLES,BALANCE SHEET PAYMENTS,WORKING LINKS EMPLOYMENT LIMITED,2020780624,"151,202.80"
Department for Work and Pensions,Jobcentre Plus,06/05/2011,OTHER RECEIVABLES,BALANCE SHEET PAYMENTS,THE WISE GROUP,2020780474,"150,999.72"
Department for Work and Pensions,Corporate,31/05/2011,OTHER PROJECTS,WWG SUMMARY,SPECIALIST SCHOOLS & ACADEMIC TRUST,2021107077,"150,698.00"
Department for Work and Pensions,Jobcentre Plus,06/05/2011,OTHER RECEIVABLES,BALANCE SHEET PAYMENTS,TNG NETWORK LTD,2020780488,"150,426.64"
Department for Work and Pensions,European Social Fund,05/05/2011,ESF NON-PREFUNDED EXPENDITURE,WWEG EUROPEAN SOCIAL FUND,COMMUNITY FOUNDATION FOR MERSEYSIDE,5000000559,"150,309.00"
Department for Work and Pensions,Corporate,03/05/2011,MANAGEMENT CONSULTANCY,GROUP FINANCE,KPMG LLP,2020691275,"150,000.00"
Department for Work and Pensions,Jobcentre Plus,12/05/2011,OTHER RECEIVABLES,BALANCE SHEET PAYMENTS,SHAW TRUST LTD,2020879097,"149,795.57"
Department for Work and Pensions,Corporate,24/05/2011,PRINTING STATIONERY IT CONSUMABLES,GROUP FINANCE,XEROX UK LTD 3W,2021008800,"149,079.18"
Department for Work and Pensions,Employment Programmes,09/05/2011,YOUNG PERSON'S GUARANTEE,WWEG EMPLOYMENT PROGRAMMES,STOKE ON TRENT CITY COUNCIL,2020786377,"147,855.60"
Department for Work and Pensions,Employment Programmes,09/05/2011,YOUNG PERSON'S GUARANTEE,WWEG EMPLOYMENT PROGRAMMES,CARDIFF CITY COUNCIL,2020787626,"147,600.00"
Department for Work and Pensions,Employment Programmes,17/05/2011,YOUNG PERSON'S GUARANTEE,WWEG EMPLOYMENT PROGRAMMES,LANCASHIRE COUNTY COUNCIL,2020902257,"147,450.00"
Department for Work and Pensions,Jobcentre Plus,26/05/2011,OTHER RECEIVABLES,BALANCE SHEET PAYMENTS,TNG LTD,2021090609,"147,193.28"
Department for Work and Pensions,Housing Benefits,13/05/2011,HOUSING BENEFIT ADMIN,WWG HOUSING BENEFIT,STOCKTON  BOROUGH COUNCIL,2020887307,"146,783.00"
Department for Work and Pensions,Housing Benefits,13/05/2011,HOUSING BENEFIT ADMIN,WWG HOUSING BENEFIT,LUTON BOROUGH COUNCIL,2020887189,"146,527.00"
Department for Work and Pensions,Housing Benefits,13/05/2011,HOUSING BENEFIT ADMIN,WWG HOUSING BENEFIT,HIGHLAND COUNCIL,2020887140,"146,382.00"
Department for Work and Pensions,Housing Benefits,13/05/2011,HOUSING BENEFIT ADMIN,WWG HOUSING BENEFIT,NORTH SOMERSET COUNCIL,2020887223,"146,237.00"
Department for Work and Pensions,Employment Programmes,25/05/2011,YOUNG PERSON'S GUARANTEE,WWEG EMPLOYMENT PROGRAMMES,THE ROYAL SOCIETY OF WILDLIFE TRUSTS,2021079274,"145,650.00"
Department for Work and Pensions,Jobcentre Plus,12/05/2011,OTHER RECEIVABLES,BALANCE SHEET PAYMENTS,SEETEC BUSINESS TECHNOLOGY CENTRE LTD,2020879089,"144,596.75"
Department for Work and Pensions,Housing Benefits,13/05/2011,HOUSING BENEFIT ADMIN,WWG HOUSING BENEFIT,THANET DISTRICT COUNCIL,2020887325,"143,795.00"
Department for Work and Pensions,Housing Benefits,13/05/2011,HOUSING BENEFIT ADMIN,WWG HOUSING BENEFIT,SOUTHEND ON SEA BOROUGH COUNCIL,2020887297,"143,761.00"
Department for Work and Pensions,Employment Programmes,09/05/2011,NDDP,WWEG EMPLOYMENT PROGRAMMES,SEETEC,2020786343,"143,521.49"
Department for Work and Pensions,Employment Programmes,24/05/2011,YOUNG PERSON'S GUARANTEE,WWEG EMPLOYMENT PROGRAMMES,LANCASHIRE COUNTY COUNCIL,2021005313,"142,500.00"
Department for Work and Pensions,Employment Programmes,06/05/2011,YOUNG PERSON'S GUARANTEE,WWEG EMPLOYMENT PROGRAMMES,A4E LTD,2020775386,"142,060.00"
Department for Work and Pensions,Employment Programmes,20/05/2011,YOUNG PERSON'S GUARANTEE,WWEG EMPLOYMENT PROGRAMMES,SURREY COUNTY COUNCIL,2020992171,"141,600.00"
Department for Work and Pensions,Employment Programmes,23/05/2011,YOUNG PERSON'S GUARANTEE,WWEG EMPLOYMENT PROGRAMMES,HARTLEPOOL BOROUGH COUNCIL,2020996093,"141,450.00"
Department for Work and Pensions,Employment Programmes,06/05/2011,YOUNG PERSON'S GUARANTEE,WWEG EMPLOYMENT PROGRAMMES,ENABLE,2020777499,"141,000.00"
Department for Work and Pensions,Corporate,09/05/2011,STAFF COSTS,CORPORATE AND SUPPORT SERVICES,FLETCHER CONSULTANCY,2020784371,"140,700.00"
Department for Work and Pensions,Housing Benefits,13/05/2011,HOUSING BENEFIT ADMIN,WWG HOUSING BENEFIT,TORBAY  COUNCIL,2020887330,"140,673.00"
Department for Work and Pensions,Employment Programmes,16/05/2011,YOUNG PERSON'S GUARANTEE,WWEG EMPLOYMENT PROGRAMMES,URBAN FUTURES LONDON LTD,2020893795,"139,735.41"
Department for Work and Pensions,Employment Programmes,17/05/2011,YOUNG PERSON'S GUARANTEE,WWEG EMPLOYMENT PROGRAMMES,GOOLE DEVELOPMENT TRUST,2020900172,"139,650.00"
Department for Work and Pensions,Jobcentre Plus,19/05/2011,OTHER RECEIVABLES,BALANCE SHEET PAYMENTS,SHAW TRUST LTD,2020983896,"139,645.80"
Department for Work and Pensions,Jobcentre Plus,26/05/2011,OTHER RECEIVABLES,BALANCE SHEET PAYMENTS,WORKING LINKS,2021090817,"139,474.64"
Department for Work and Pensions,Jobcentre Plus,06/05/2011,OTHER RECEIVABLES,BALANCE SHEET PAYMENTS,TOMORROWS PEOPLE TRUST LTD,2020780491,"139,219.48"
Department for Work and Pensions,Housing Benefits,13/05/2011,HOUSING BENEFIT ADMIN,WWG HOUSING BENEFIT,LONDON BOROUGH OF HAVERING,2020887173,"139,103.00"
Department for Work and Pensions,Housing Benefits,13/05/2011,HOUSING BENEFIT ADMIN,WWG HOUSING BENEFIT,LONDON BOROUGH OF BEXLEY,2020887163,"138,794.00"
Department for Work and Pensions,Housing Benefits,13/05/2011,HOUSING BENEFIT ADMIN,WWG HOUSING BENEFIT,SOUTH TYNESIDE METROPOLITAN BOROUGH COUNCIL,2020887295,"138,217.00"
Department for Work and Pensions,Housing Benefits,13/05/2011,HOUSING BENEFIT ADMIN,WWG HOUSING BENEFIT,SOUTH GLOUCESTERSHIRE COUNCIL,2020887283,"137,635.00"
Department for Work and Pensions,Jobcentre Plus,26/05/2011,OTHER RECEIVABLES,BALANCE SHEET PAYMENTS,TOMORROWS PEOPLE TRUST LTD,2021090614,"137,298.00"
Department for Work and Pensions,Jobcentre Plus,03/05/2011,OTHER RECEIVABLES,BALANCE SHEET PAYMENTS,SHAW TRUST LTD,2020691864,"137,241.92"
Department for Work and Pensions,Jobcentre Plus,26/05/2011,OTHER RECEIVABLES,BALANCE SHEET PAYMENTS,THE INTRAINING GROUP,2021090597,"136,815.79"
Department for Work and Pensions,Housing Benefits,13/05/2011,HOUSING BENEFIT ADMIN,WWG HOUSING BENEFIT,TRAFFORD BOROUGH COUNCIL,2020887333,"136,601.00"
Department for Work and Pensions,Jobcentre Plus,06/05/2011,OTHER RECEIVABLES,BALANCE SHEET PAYMENTS,TNG LTD,2020780484,"135,929.89"
Department for Work and Pensions,Corporate,31/05/2011,ACCOMMODATION COSTS,GROUP FINANCE,TELEREAL TRILLIUM,2021107377,"135,804.92"
Department for Work and Pensions,Employment Programmes,12/05/2011,EP GENERIC PROVIDER PAYMENTS,WWEG EMPLOYMENT PROGRAMMES,SEETEC BUSINESS TECHNOLOGY CENTRE LTD,2020879088,"135,683.00"
Department for Work and Pensions,Jobcentre Plus,26/05/2011,OTHER RECEIVABLES,BALANCE SHEET PAYMENTS,REED IN PARTNERSHIP,2021089677,"135,385.19"
Department for Work and Pensions,Jobcentre Plus,06/05/2011,OTHER RECEIVABLES,BALANCE SHEET PAYMENTS,CLAVERHOUSE GROUP,2020775894,"135,349.18"
Department for Work and Pensions,Jobcentre Plus,03/05/2011,OTHER RECEIVABLES,BALANCE SHEET PAYMENTS,WORKING LINKS,2020692064,"134,628.08"
Department for Work and Pensions,Housing Benefits,13/05/2011,HOUSING BENEFIT ADMIN,WWG HOUSING BENEFIT,BOROUGH OF TELFORD & WREKIN COUNCIL,2020887018,"134,540.00"
Department for Work and Pensions,Housing Benefits,13/05/2011,HOUSING BENEFIT ADMIN,WWG HOUSING BENEFIT,BASILDON DISTRICT COUNCIL,2020887005,"133,613.00"
Department for Work and Pensions,Housing Benefits,13/05/2011,HOUSING BENEFIT ADMIN,WWG HOUSING BENEFIT,LONDON BOROUGH OF MERTON,2020887180,"133,101.00"
Department for Work and Pensions,Housing Benefits,13/05/2011,HOUSING BENEFIT ADMIN,WWG HOUSING BENEFIT,BURY METROPOLITAN BOROUGH COUNCIL,2020887035,"133,002.00"
Department for Work and Pensions,Employment Programmes,12/05/2011,YOUNG PERSON'S GUARANTEE,WWEG EMPLOYMENT PROGRAMMES,DUDLEY METROPOLITAN BOROUGH COUNCIL,2020876021,"132,750.00"
Department for Work and Pensions,Housing Benefits,13/05/2011,HOUSING BENEFIT ADMIN,WWG HOUSING BENEFIT,SWINDON BOROUGH COUNCIL,2020887316,"131,877.00"
Department for Work and Pensions,Housing Benefits,13/05/2011,HOUSING BENEFIT ADMIN,WWG HOUSING BENEFIT,NORTH AYRSHIRE COUNCIL,2020887213,"131,001.00"
Department for Work and Pensions,Corporate,23/05/2011,COMPUTER SERVICES,CHANGE MANAGEMENT DIRECTORATE,ACCENTURE,2020993887,"130,220.31"
Department for Work and Pensions,Housing Benefits,13/05/2011,HOUSING BENEFIT ADMIN,WWG HOUSING BENEFIT,BLACKBURN BOROUGH COUNCIL,2020887012,"130,093.00"
Department for Work and Pensions,Corporate,23/05/2011,STAFF COSTS,CORPORATE AND SUPPORT SERVICES,RIGHT CORECARE,2020997466,"129,500.00"
Department for Work and Pensions,Jobcentre Plus,31/05/2011,ACCOMMODATION COSTS,JOBCENTRE PLUS,TELEREAL TRILLIUM,2021107379,"129,227.72"
Department for Work and Pensions,Housing Benefits,13/05/2011,HOUSING BENEFIT ADMIN,WWG HOUSING BENEFIT,CAERPHILLY COUNTY BOROUGH COUNCIL,2020887036,"129,074.00"
Department for Work and Pensions,Housing Benefits,13/05/2011,HOUSING BENEFIT ADMIN,WWG HOUSING BENEFIT,LONDON BOROUGH OF SUTTON,2020887185,"129,052.00"
Department for Work and Pensions,Corporate,03/05/2011,TEMPORARY (TEMP) STAFF COSTS,CORPORATE  IT,CAPITA RESOURCING LTD,2020689402,"128,245.74"
Department for Work and Pensions,Jobcentre Plus,06/05/2011,OTHER RECEIVABLES,BALANCE SHEET PAYMENTS,KENNEDY SCOTT LTD,2020778531,"127,914.68"
Department for Work and Pensions,Jobcentre Plus,24/05/2011,PATHWAY TO WORK,JOBCENTRE PLUS,DORSET PRIMARY CARE TRUST,2021001352,"127,706.26"
Department for Work and Pensions,"Pension, Disability Carers Services",10/05/2011,TELEPHONE AND POSTAGE,PENSIONS & DISABILITY CARERS SERVICE,ROYAL MAIL GROUP PLC,2020797235,"127,668.15"
Department for Work and Pensions,Employment Programmes,23/05/2011,YOUNG PERSON'S GUARANTEE,WWEG EMPLOYMENT PROGRAMMES,GOOLE DEVELOPMENT TRUST,2020996024,"127,350.00"
Department for Work and Pensions,Housing Benefits,13/05/2011,HOUSING BENEFIT ADMIN,WWG HOUSING BENEFIT,REDCAR & CLEVELAND BOROUGH  COUNCIL,2020887247,"126,622.00"
Department for Work and Pensions,Housing Benefits,13/05/2011,HOUSING BENEFIT ADMIN,WWG HOUSING BENEFIT,NORWICH CITY COUNCIL,2020887229,"126,542.00"
Department for Work and Pensions,Corporate,06/05/2011,OTHER PROJECTS,GROUP FINANCE,POLLOK CREDIT UNION,2020779597,"126,500.00"
Department for Work and Pensions,Employment Programmes,06/05/2011,YOUNG PERSON'S GUARANTEE,WWEG EMPLOYMENT PROGRAMMES,GROUNDWORK UK,2020777736,"126,416.00"
Department for Work and Pensions,Employment Programmes,11/05/2011,PATHWAY TO WORK,WWEG EMPLOYMENT PROGRAMMES,NHS GREATER GLASGOW & CLYDE,2020852510,"126,382.00"
Department for Work and Pensions,Employment Programmes,19/05/2011,JSP ESF DEL P COSTS,WWEG EMPLOYMENT PROGRAMMES,SEETEC BUSINESS TECHNOLOGY CENTRE LTD,2020983883,"126,320.27"
Department for Work and Pensions,Housing Benefits,13/05/2011,HOUSING BENEFIT ADMIN,WWG HOUSING BENEFIT,TENDRING DISTRICT COUNCIL,2020887322,"125,983.00"
Department for Work and Pensions,Housing Benefits,13/05/2011,HOUSING BENEFIT ADMIN,WWG HOUSING BENEFIT,CENTRAL BEDFORDSHIRE DISTRICT COUNCIL,2020887044,"125,868.00"
Department for Work and Pensions,Employment Programmes,12/05/2011,EP GENERIC PROVIDER PAYMENTS,WWEG EMPLOYMENT PROGRAMMES,TNG LTD,2020879325,"125,573.00"
Department for Work and Pensions,Housing Benefits,13/05/2011,HOUSING BENEFIT ADMIN,WWG HOUSING BENEFIT,ABERDEEN CITY COUNCIL,2020886991,"125,393.00"
Department for Work and Pensions,Employment Programmes,09/05/2011,HELP FOR UNEMPLOYED PEOPLE OTHER,WWEG EMPLOYMENT PROGRAMMES,DUNDEE CITY STRATEGY PATHFINDER,2020784238,"125,160.00"
Department for Work and Pensions,Employment Programmes,16/05/2011,YOUNG PERSON'S GUARANTEE,WWEG EMPLOYMENT PROGRAMMES,WOLSELEY COMMUNITY ECONOMIC DEVELOPMENT TRUST,2020893884,"124,778.20"
Department for Work and Pensions,Employment Programmes,04/05/2011,EP GENERIC PROVIDER PAYMENTS,WWEG EMPLOYMENT PROGRAMMES,SHAW TRUST,2020760538,"124,774.52"
Department for Work and Pensions,Employment Programmes,05/05/2011,YOUNG PERSON'S GUARANTEE,WWEG EMPLOYMENT PROGRAMMES,EAST AYRSHIRE COUNCIL,2020770525,"124,650.00"
Department for Work and Pensions,Employment Programmes,16/05/2011,PATHWAY TO WORK,WWEG EMPLOYMENT PROGRAMMES,NHS GRAMPIAN,2020892851,"124,542.00"
Department for Work and Pensions,Employment Programmes,19/05/2011,HELP FOR DISABLED PEOPLE,WWEG EMPLOYMENT PROGRAMMES,DONCASTER DEAF TRUST,2020980207,"124,361.22"
Department for Work and Pensions,Employment Programmes,17/05/2011,WORKSTEP,WWEG EMPLOYMENT PROGRAMMES,SHAW TRUST LTD,2020905242,"124,000.00"
Department for Work and Pensions,"Pension, Disability Carers Services",13/05/2011,ACCOMMODATION COSTS,PENSIONS & DISABILITY CARERS SERVICE,TELEREAL TRILLIUM,2020886809,"123,935.05"
Department for Work and Pensions,Jobcentre Plus,12/05/2011,OTHER RECEIVABLES,BALANCE SHEET PAYMENTS,TWL TRAINING LTD,2020879345,"123,670.40"
Department for Work and Pensions,Housing Benefits,13/05/2011,HOUSING BENEFIT ADMIN,WWG HOUSING BENEFIT,WEST LOTHIAN COUNCIL,2020887353,"123,574.00"
Department for Work and Pensions,Employment Programmes,06/05/2011,YOUNG PERSON'S GUARANTEE,WWEG EMPLOYMENT PROGRAMMES,TBG LEARNING LTD,2020780449,"123,562.00"
Department for Work and Pensions,Jobcentre Plus,16/05/2011,APPS DEV,JOBCENTRE PLUS,HP ENTERPRISE SERVICES UK LTD,2020891593,"122,428.55"
Department for Work and Pensions,Housing Benefits,13/05/2011,HOUSING BENEFIT ADMIN,WWG HOUSING BENEFIT,NORTH LINCOLNSHIRE COUNCIL,2020887221,"122,277.00"
Department for Work and Pensions,Corporate,31/05/2011,ACCOMMODATION COSTS,GROUP FINANCE,TELEREAL TRILLIUM,2021107378,"121,586.39"
Department for Work and Pensions,Housing Benefits,13/05/2011,HOUSING BENEFIT ADMIN,WWG HOUSING BENEFIT,CARMARTHENSHIRE COUNTY COUNCIL,2020887042,"121,563.00"
Department for Work and Pensions,Jobcentre Plus,04/05/2011,ACCOMMODATION COSTS,JOBCENTRE PLUS,TELEREAL TRILLIUM,2020763734,"121,199.72"
Department for Work and Pensions,Housing Benefits,13/05/2011,HOUSING BENEFIT ADMIN,WWG HOUSING BENEFIT,ISLE OF WIGHT COUNTY COUNCIL,2020887148,"121,156.00"
Department for Work and Pensions,Jobcentre Plus,06/05/2011,OTHER RECEIVABLES,BALANCE SHEET PAYMENTS,BOURNEMOUTH & POOLE COLLEGE,2020775551,"120,868.60"
Department for Work and Pensions,Employment Programmes,17/05/2011,PATHWAY TO WORK,WWEG EMPLOYMENT PROGRAMMES,NHS GREATER GLASGOW & CLYDE,2020903340,"120,487.00"
Department for Work and Pensions,Employment Programmes,12/05/2011,EP GENERIC PROVIDER PAYMENTS,WWEG EMPLOYMENT PROGRAMMES,PINNACLE PEOPLE,2020878360,"120,314.00"
Department for Work and Pensions,Housing Benefits,13/05/2011,HOUSING BENEFIT ADMIN,WWG HOUSING BENEFIT,DUMFRIES & GALLOWAY COUNCIL,2020887086,"120,266.00"
Department for Work and Pensions,Employment Programmes,09/05/2011,NDDP,WWEG EMPLOYMENT PROGRAMMES,WORKING LINKS,2020786615,"119,889.00"
Department for Work and Pensions,Corporate,17/05/2011,COMPUTER SERVICES,CORPORATE IT,ORANGE PCS LTD,2020903385,"119,423.99"
Department for Work and Pensions,Jobcentre Plus,06/05/2011,OTHER RECEIVABLES,BALANCE SHEET PAYMENTS,SEETEC,2020780265,"118,183.74"
Department for Work and Pensions,Jobcentre Plus,12/05/2011,OTHER RECEIVABLES,BALANCE SHEET PAYMENTS,CORNWALL COUNTY COUNCIL,2020875287,"117,811.58"
Department for Work and Pensions,Housing Benefits,13/05/2011,HOUSING BENEFIT ADMIN,WWG HOUSING BENEFIT,SOLIHULL METROPOLITAN BOROUGH COUNCIL,2020887278,"117,560.00"
Department for Work and Pensions,Jobcentre Plus,03/05/2011,OTHER RECEIVABLES,BALANCE SHEET PAYMENTS,WORKING LINKS EMPLOYMENT LTD,2020692066,"117,237.82"
Department for Work and Pensions,Housing Benefits,13/05/2011,HOUSING BENEFIT ADMIN,WWG HOUSING BENEFIT,BEDFORD BOROUGH COUNCIL,2020887009,"116,749.00"
Department for Work and Pensions,Employment Programmes,25/05/2011,YOUNG PERSON'S GUARANTEE,WWEG EMPLOYMENT PROGRAMMES,LONDON BOROUGH OF HACKNEY,2021053950,"116,550.00"
Department for Work and Pensions,Employment Programmes,24/05/2011,YOUNG PERSON'S GUARANTEE,WWEG EMPLOYMENT PROGRAMMES,LONDON BOROUGH OF HACKNEY,2021005340,"115,800.00"
Department for Work and Pensions,Housing Benefits,13/05/2011,HOUSING BENEFIT ADMIN,WWG HOUSING BENEFIT,READING BOROUGH COUNCIL,2020887246,"115,026.00"
Department for Work and Pensions,Housing Benefits,13/05/2011,HOUSING BENEFIT ADMIN,WWG HOUSING BENEFIT,WARRINGTON BOROUGH COUNCIL,2020887340,"114,286.00"
Department for Work and Pensions,European Social Fund,09/05/2011,ESF NON-PREFUNDED EXPENDITURE,WWEG EUROPEAN SOCIAL FUND,BUSINESS IN THE COMMUNITY,5000000561,"114,225.00"
Department for Work and Pensions,Housing Benefits,13/05/2011,HOUSING BENEFIT ADMIN,WWG HOUSING BENEFIT,THURROCK BOROUGH COUNCIL,2020887328,"112,469.00"
Department for Work and Pensions,Jobcentre Plus,03/05/2011,OTHER RECEIVABLES,BALANCE SHEET PAYMENTS,SEETEC,2020691857,"112,465.90"
Department for Work and Pensions,Housing Benefits,13/05/2011,HOUSING BENEFIT ADMIN,WWG HOUSING BENEFIT,SLOUGH BOROUGH COUNCIL,2020887277,"112,375.00"
Department for Work and Pensions,Housing Benefits,13/05/2011,HOUSING BENEFIT ADMIN,WWG HOUSING BENEFIT,HALTON BOROUGH COUNCIL,2020887128,"112,183.00"
Department for Work and Pensions,Employment Programmes,09/05/2011,NDDP,WWEG EMPLOYMENT PROGRAMMES,SENCIA LTD,2020786345,"112,121.02"
Department for Work and Pensions,Corporate,03/05/2011,TEMPORARY (TEMP) STAFF COSTS,CORPORATE  IT,CAPITA RESOURCING LTD,2020689402,"112,046.47"
Department for Work and Pensions,Employment Programmes,25/05/2011,YOUNG PERSON'S GUARANTEE,WWEG EMPLOYMENT PROGRAMMES,DUDLEY METROPOLITAN BOROUGH COUNCIL,2021028674,"111,750.00"
Department for Work and Pensions,Housing Benefits,13/05/2011,HOUSING BENEFIT ADMIN,WWG HOUSING BENEFIT,NEATH PORT TALBOT COUNTY BOROUGH COUNCIL,2020887207,"111,346.00"
Department for Work and Pensions,Housing Benefits,13/05/2011,HOUSING BENEFIT ADMIN,WWG HOUSING BENEFIT,ABERDEENSHIRE COUNCIL,2020886992,"110,675.00"
Department for Work and Pensions,Corporate,31/05/2011,ACCOMMODATION COSTS,GROUP FINANCE,TELEREAL TRILLIUM,2021107377,"110,139.94"
Department for Work and Pensions,Employment Programmes,12/05/2011,EP GENERIC PROVIDER PAYMENTS,WWEG EMPLOYMENT PROGRAMMES,REED IN PARTNERSHIP,2020878607,"110,011.00"
Department for Work and Pensions,Housing Benefits,13/05/2011,HOUSING BENEFIT ADMIN,WWG HOUSING BENEFIT,FALKIRK DISTRICT COUNCIL,2020887111,"109,810.00"
Department for Work and Pensions,Housing Benefits,13/05/2011,HOUSING BENEFIT ADMIN,WWG HOUSING BENEFIT,NEWPORT CITY COUNCIL,2020887212,"109,795.00"
Department for Work and Pensions,Corporate,31/05/2011,ACCOMMODATION COSTS,GROUP FINANCE,TELEREAL TRILLIUM,2021107377,"109,685.22"
Department for Work and Pensions,Employment Programmes,19/05/2011,JSP ESF DEL P COSTS,WWEG EMPLOYMENT PROGRAMMES,WORKING LINKS,2020984349,"109,340.00"
Department for Work and Pensions,Employment Programmes,25/05/2011,YOUNG PERSON'S GUARANTEE,WWEG EMPLOYMENT PROGRAMMES,INVERCLYDE COUNCIL,2021036255,"109,050.00"
Department for Work and Pensions,Jobcentre Plus,03/05/2011,OTHER RECEIVABLES,BALANCE SHEET PAYMENTS,SHAW TRUST LTD,2020691866,"108,750.00"
Department for Work and Pensions,Jobcentre Plus,26/05/2011,OTHER RECEIVABLES,BALANCE SHEET PAYMENTS,SHAW TRUST LTD,2021090343,"108,750.00"
Department for Work and Pensions,Employment Programmes,11/05/2011,HELP FOR DISABLED PEOPLE,WWEG EMPLOYMENT PROGRAMMES,RNCB HEREFORD,2020858287,"108,238.76"
Department for Work and Pensions,Housing Benefits,13/05/2011,HOUSING BENEFIT ADMIN,WWG HOUSING BENEFIT,EAST LINDSEY DISTRICT COUNCIL,2020887096,"107,744.00"
Department for Work and Pensions,Corporate,20/05/2011,COMPUTER SERVICES,CHANGE MANAGEMENT DIRECTORATE,ATOS ORIGIN IT SERVICES UK LTD,2020987154,"107,448.48"
Department for Work and Pensions,Employment Programmes,20/05/2011,YOUNG PERSON'S GUARANTEE,WWEG EMPLOYMENT PROGRAMMES,LANCASHIRE COUNTY COUNCIL,2020990629,"107,400.00"
Department for Work and Pensions,Employment Programmes,04/05/2011,YOUNG PERSON'S GUARANTEE,WWEG EMPLOYMENT PROGRAMMES,INVERCLYDE COUNCIL,2020720091,"107,400.00"
Department for Work and Pensions,Housing Benefits,13/05/2011,HOUSING BENEFIT ADMIN,WWG HOUSING BENEFIT,HASTINGS BOROUGH COUNCIL,2020887135,"107,349.00"
Department for Work and Pensions,Employment Programmes,12/05/2011,EP GENERIC PROVIDER PAYMENTS,WWEG EMPLOYMENT PROGRAMMES,PERTEMPS,2020878355,"106,495.00"
Department for Work and Pensions,Employment Programmes,18/05/2011,HELP FOR DISABLED PEOPLE,WWEG EMPLOYMENT PROGRAMMES,QUEEN ALEXANDRA COLLEGE,2020960002,"106,163.40"
Department for Work and Pensions,Corporate,25/05/2011,INTANGIBLE ASSETS,WWG SUMMARY,CAPGEMINI UK PLC,2021022433,"106,118.20"
Department for Work and Pensions,Employment Programmes,19/05/2011,JSP ESF DEL P COSTS,WWEG EMPLOYMENT PROGRAMMES,ESG HOLDINGS LTD,2020980748,"105,820.19"
Department for Work and Pensions,Housing Benefits,13/05/2011,HOUSING BENEFIT ADMIN,WWG HOUSING BENEFIT,EAST AYRSHIRE COUNCIL FINANCE DEPARTMENT,2020887089,"105,756.00"
Department for Work and Pensions,Housing Benefits,13/05/2011,HOUSING BENEFIT ADMIN,WWG HOUSING BENEFIT,BRIDGEND COUNTY BOROUGH COUNCIL,2020887027,"105,740.00"
Department for Work and Pensions,"Pension, Disability Carers Services",25/05/2011,COMPUTER SERVICES,PENSIONS & DISABILITY CARERS SERVICE,ACCENTURE,2021015787,"105,728.42"
Department for Work and Pensions,European Social Fund,09/05/2011,ESF NON-PREFUNDED EXPENDITURE,WWEG EUROPEAN SOCIAL FUND,TRURO & PENWITH COLLEGE,5000000573,"105,453.00"
Department for Work and Pensions,Jobcentre Plus,26/05/2011,OTHER RECEIVABLES,BALANCE SHEET PAYMENTS,INBIZ LTD,2021086804,"104,802.22"
Department for Work and Pensions,"Pension, Disability Carers Services",16/05/2011,MEDICAL SERVICES,PENSIONS & DISABILITY CARERS SERVICE,ATOS HEALTHCARE,2020888798,"104,390.00"
Department for Work and Pensions,"Pension, Disability Carers Services",16/05/2011,MEDICAL SERVICES,PENSIONS & DISABILITY CARERS SERVICE,ATOS HEALTHCARE,2020888799,"104,390.00"
Department for Work and Pensions,"Pension, Disability Carers Services",25/05/2011,MEDICAL SERVICES,PENSIONS & DISABILITY CARERS SERVICE,ATOS HEALTHCARE,2021015944,"104,390.00"
Department for Work and Pensions,Employment Programmes,04/05/2011,NDLP,WWEG EMPLOYMENT PROGRAMMES,WORKING LINKS,2020765659,"103,865.65"
Department for Work and Pensions,Corporate,31/05/2011,ACCOMMODATION COSTS,GROUP FINANCE,TELEREAL TRILLIUM,2021107377,"103,817.43"
Department for Work and Pensions,Housing Benefits,13/05/2011,HOUSING BENEFIT ADMIN,WWG HOUSING BENEFIT,HARTLEPOOL BOROUGH COUNCIL,2020887134,"103,357.00"
Department for Work and Pensions,Employment Programmes,19/05/2011,JSP ESF DEL P COSTS,WWEG EMPLOYMENT PROGRAMMES,THE INTRAINING GROUP,2020984123,"103,282.16"
Department for Work and Pensions,Housing Benefits,13/05/2011,HOUSING BENEFIT ADMIN,WWG HOUSING BENEFIT,WEST DUNBARTONSHIRE COUNCIL,2020887350,"103,105.00"
Department for Work and Pensions,Corporate,24/05/2011,"OFFICE SUPPLIES, PRINTING AND PUBLICITY",GROUP FINANCE,XEROX UK LTD 3W,2021008800,"102,506.67"
Department for Work and Pensions,Housing Benefits,13/05/2011,HOUSING BENEFIT ADMIN,WWG HOUSING BENEFIT,HEREFORDSHIRE COUNCIL,2020887137,"102,338.00"
Department for Work and Pensions,Corporate,13/05/2011,COMPUTER SERVICES,CORPORATE IT,ATOS ORIGIN IT SERVICES UK LTD,2020881661,"102,183.57"
Department for Work and Pensions,Employment Programmes,12/05/2011,EP GENERIC PROVIDER PAYMENTS,WWEG EMPLOYMENT PROGRAMMES,STANDGUIDE LTD,2020879132,"102,164.00"
Department for Work and Pensions,Employment Programmes,12/05/2011,EP GENERIC PROVIDER PAYMENTS,WWEG EMPLOYMENT PROGRAMMES,PINNACLE PEOPLE,2020878360,"102,155.00"
Department for Work and Pensions,Housing Benefits,13/05/2011,HOUSING BENEFIT ADMIN,WWG HOUSING BENEFIT,LONDON BOROUGH OF RICHMOND UPON THAMES,2020887183,"102,105.00"
Department for Work and Pensions,Jobcentre Plus,19/05/2011,OTHER RECEIVABLES,BALANCE SHEET PAYMENTS,REMPLOY,2020983382,"101,607.55"
Department for Work and Pensions,Housing Benefits,13/05/2011,HOUSING BENEFIT ADMIN,WWG HOUSING BENEFIT,CITY OF YORK COUNCIL,2020887060,"101,543.00"
Department for Work and Pensions,Housing Benefits,13/05/2011,HOUSING BENEFIT ADMIN,WWG HOUSING BENEFIT,SCARBOROUGH BOROUGH COUNCIL,2020887267,"100,215.00"
Department for Work and Pensions,Housing Benefits,13/05/2011,HOUSING BENEFIT ADMIN,WWG HOUSING BENEFIT,PRESTON BOROUGH COUNCIL,2020887244,"100,099.00"
Department for Work and Pensions,Employment Programmes,31/05/2011,WORKSTEP,WWEG EMPLOYMENT PROGRAMMES,PURE INNOVATIONS,2021105681,"100,000.00"
Department for Work and Pensions,Corporate,20/05/2011,COMPUTER SERVICES,CORPORATE IT,CABINET OFFICE RM SHARED SERVICES,2020987593,"100,000.00"
Department for Work and Pensions,Corporate,18/05/2011,COMPUTER SERVICES,SHARED SERVICES,FUJITSU SERVICES LTD,2020927613,"99,439.00"
Department for Work and Pensions,Jobcentre Plus,06/05/2011,OTHER RECEIVABLES,BALANCE SHEET PAYMENTS,REMPLOY,2020779857,"99,383.53"
Department for Work and Pensions,Jobcentre Plus,06/05/2011,OTHER RECEIVABLES,BALANCE SHEET PAYMENTS,SCVO,2020780261,"99,282.52"
Department for Work and Pensions,Housing Benefits,13/05/2011,HOUSING BENEFIT ADMIN,WWG HOUSING BENEFIT,BATH & NORTH EAST SOMERSET COUNCIL,2020887008,"99,037.00"
Department for Work and Pensions,Housing Benefits,13/05/2011,HOUSING BENEFIT ADMIN,WWG HOUSING BENEFIT,ARUN DISTRICT COUNCIL,2020886998,"98,951.00"
Department for Work and Pensions,Employment Programmes,19/05/2011,JSP ESF DEL P COSTS,WWEG EMPLOYMENT PROGRAMMES,SEETEC BUSINESS TECHNOLOGY CENTRE LTD,2020983883,"98,804.83"
Department for Work and Pensions,Jobcentre Plus,26/05/2011,OTHER RECEIVABLES,BALANCE SHEET PAYMENTS,CAREERS DEVELOPMENT GROUP,2021085136,"98,780.91"
Department for Work and Pensions,Jobcentre Plus,03/05/2011,OTHER RECEIVABLES,BALANCE SHEET PAYMENTS,TNG BUSINESS SUPPORT LTD.,2020691978,"98,663.18"
Department for Work and Pensions,"Pension, Disability Carers Services",26/05/2011,MEDICAL SERVICES,PENSIONS & DISABILITY CARERS SERVICE,ATOS HEALTHCARE,2021084568,"98,482.55"
Department for Work and Pensions,Jobcentre Plus,06/05/2011,OTHER RECEIVABLES,BALANCE SHEET PAYMENTS,ARGYLL & BUTE COUNCIL,2020775427,"98,329.40"
Department for Work and Pensions,Corporate,23/05/2011,OFFICE MACHINERY HIRE,CORPORATE  IT,RICOH UK LTD,2020997465,"98,219.25"
Department for Work and Pensions,Corporate,18/05/2011,COMPUTER SERVICES,CORPORATE IT,ATOS ORIGIN IT SERVICES UK LTD,2020912895,"98,145.02"
Department for Work and Pensions,Jobcentre Plus,26/05/2011,OTHER RECEIVABLES,BALANCE SHEET PAYMENTS,VT SOUTHERN CAREERS LTD COMMUNITY OUTREACH SERVICE,2021090703,"97,748.07"
Department for Work and Pensions,Housing Benefits,13/05/2011,HOUSING BENEFIT ADMIN,WWG HOUSING BENEFIT,KINGS LYNN & WEST NORFOLK BOROUGH COUNCIL,2020887150,"97,628.00"
Department for Work and Pensions,Employment Programmes,31/05/2011,YOUNG PERSON'S GUARANTEE,WWEG EMPLOYMENT PROGRAMMES,ENABLE,2021101749,"97,350.00"
Department for Work and Pensions,Jobcentre Plus,06/05/2011,OTHER RECEIVABLES,BALANCE SHEET PAYMENTS,BTCV ENTERPRISES LTD,2020775574,"97,222.99"
Department for Work and Pensions,Jobcentre Plus,19/05/2011,OTHER RECEIVABLES,BALANCE SHEET PAYMENTS,TNG BUSINESS SUPPORT LTD.,2020984150,"97,124.24"
Department for Work and Pensions,Jobcentre Plus,06/05/2011,OTHER RECEIVABLES,BALANCE SHEET PAYMENTS,INBIZ LTD,2020777890,"97,013.87"
Department for Work and Pensions,Housing Benefits,13/05/2011,HOUSING BENEFIT ADMIN,WWG HOUSING BENEFIT,COLCHESTER BOROUGH COUNCIL,2020887062,"95,771.00"
Department for Work and Pensions,Jobcentre Plus,06/05/2011,OTHER RECEIVABLES,BALANCE SHEET PAYMENTS,SEETEC,2020780264,"95,689.58"
Department for Work and Pensions,Employment Programmes,23/05/2011,YOUNG PERSON'S GUARANTEE,WWEG EMPLOYMENT PROGRAMMES,WILTSHIRE COUNCIL,2020997990,"95,628.80"
Department for Work and Pensions,Housing Benefits,13/05/2011,HOUSING BENEFIT ADMIN,WWG HOUSING BENEFIT,IPSWICH BOROUGH COUNCIL,2020887146,"95,545.00"
Department for Work and Pensions,Housing Benefits,13/05/2011,HOUSING BENEFIT ADMIN,WWG HOUSING BENEFIT,SOUTH SOMERSET DISTRICT COUNCIL,2020887293,"95,157.00"
Department for Work and Pensions,Employment Programmes,12/05/2011,EP GENERIC PROVIDER PAYMENTS,WWEG EMPLOYMENT PROGRAMMES,A4E LTD,2020874760,"95,028.00"
Department for Work and Pensions,Jobcentre Plus,03/05/2011,OTHER RECEIVABLES,BALANCE SHEET PAYMENTS,BTCV ENTERPRISES LTD,2020689298,"94,512.73"
Department for Work and Pensions,Jobcentre Plus,03/05/2011,OTHER RECEIVABLES,BALANCE SHEET PAYMENTS,VT SOUTHERN CAREERS LTD COMMUNITY OUTREACH SERVICE,2020692022,"94,229.07"
Department for Work and Pensions,Housing Benefits,13/05/2011,HOUSING BENEFIT ADMIN,WWG HOUSING BENEFIT,SWALE BOROUGH COUNCIL,2020887314,"93,818.00"
Department for Work and Pensions,Housing Benefits,13/05/2011,HOUSING BENEFIT ADMIN,WWG HOUSING BENEFIT,GLOUCESTER CITY COUNCIL,2020887121,"93,271.00"
Department for Work and Pensions,Corporate,31/05/2011,ACCOMMODATION COSTS,SHARED SERVICES,TELEREAL TRILLIUM,2021107378,"93,184.99"
Department for Work and Pensions,Employment Programmes,13/05/2011,YOUNG PERSON'S GUARANTEE,WWEG EMPLOYMENT PROGRAMMES,NEWPORT CITY COUNCIL,2020888450,"93,000.00"
Department for Work and Pensions,Housing Benefits,13/05/2011,HOUSING BENEFIT ADMIN,WWG HOUSING BENEFIT,ROYAL BOROUGH OF KINGSTON UPON THAMES,2020887258,"92,853.00"
Department for Work and Pensions,Employment Programmes,12/05/2011,EP GENERIC PROVIDER PAYMENTS,WWEG EMPLOYMENT PROGRAMMES,A4E LTD,2020874760,"92,745.00"
Department for Work and Pensions,Employment Programmes,17/05/2011,YOUNG PERSON'S GUARANTEE,WWEG EMPLOYMENT PROGRAMMES,DONCASTER METROPOLITAN BOROUGH COUNCIL,2020897336,"92,250.00"
Department for Work and Pensions,Jobcentre Plus,20/05/2011,COMPUTER SERVICES,JOBCENTRE PLUS,ATOS ORIGIN IT SERVICES UK LTD,2020987154,"91,677.51"
Department for Work and Pensions,Employment Programmes,13/05/2011,YOUNG PERSON'S GUARANTEE,WWEG EMPLOYMENT PROGRAMMES,BARNSLEY METROPOLITAN BOROUGH COUNCIL,2020881753,"91,650.00"
Department for Work and Pensions,Employment Programmes,03/05/2011,YOUNG PERSON'S GUARANTEE,WWEG EMPLOYMENT PROGRAMMES,HAMPSHIRE COUNTY COUNCIL,2020691035,"91,607.23"
Department for Work and Pensions,Housing Benefits,13/05/2011,HOUSING BENEFIT ADMIN,WWG HOUSING BENEFIT,GREAT YARMOUTH COUNCIL,2020887124,"91,238.00"
Department for Work and Pensions,Housing Benefits,13/05/2011,HOUSING BENEFIT ADMIN,WWG HOUSING BENEFIT,BRAINTREE DISTRICT COUNCIL,2020887024,"91,224.00"
Department for Work and Pensions,Corporate,09/05/2011,PROFESSIONAL FEES,EG SUMMARY,UNIVERSITY OF OXFORD,2020786523,"90,734.00"
Department for Work and Pensions,Employment Programmes,24/05/2011,YOUNG PERSON'S GUARANTEE,WWEG EMPLOYMENT PROGRAMMES,COVENTRY CITY COUNCIL,2021000715,"90,450.00"
Department for Work and Pensions,Corporate,10/05/2011,APPS DEV,EG SUMMARY,HP ENTERPRISE SERVICES UK LTD,2020792603,"90,330.49"
Department for Work and Pensions,Jobcentre Plus,27/05/2011,AOS CONTRACTED OUT SERVICES,JOBCENTRE PLUS,VERTEX DATA SCIENCE LIMITED,2021096812,"90,169.10"
Department for Work and Pensions,Employment Programmes,12/05/2011,YOUNG PERSON'S GUARANTEE,WWEG EMPLOYMENT PROGRAMMES,COMMUNITY ENTERPRISE DERBY CIC,2020875282,"90,150.00"
Department for Work and Pensions,Corporate,03/05/2011,TEMPORARY (TEMP) STAFF COSTS,CORPORATE  IT,CAPITA RESOURCING LTD,2020689402,"89,751.63"
Department for Work and Pensions,Housing Benefits,13/05/2011,HOUSING BENEFIT ADMIN,WWG HOUSING BENEFIT,WAVENEY DISTRICT COUNCIL,2020887343,"89,606.00"
Department for Work and Pensions,Employment Programmes,12/05/2011,YOUNG PERSON'S GUARANTEE,WWEG EMPLOYMENT PROGRAMMES,PROJECT SCOTLAND,2020878366,"89,550.00"
Department for Work and Pensions,Employment Programmes,11/05/2011,YOUNG PERSON'S GUARANTEE,WWEG EMPLOYMENT PROGRAMMES,GOOLE DEVELOPMENT TRUST,2020824199,"89,250.00"
Department for Work and Pensions,Employment Programmes,31/05/2011,NDLP,WWEG EMPLOYMENT PROGRAMMES,TRIAGE CENTRAL LTD,2021107410,"89,124.00"
Department for Work and Pensions,Housing Benefits,13/05/2011,HOUSING BENEFIT ADMIN,WWG HOUSING BENEFIT,LANCASTER CITY COUNCIL,2020887154,"88,544.00"
Department for Work and Pensions,Housing Benefits,13/05/2011,HOUSING BENEFIT ADMIN,WWG HOUSING BENEFIT,BURNLEY BOROUGH COUNCIL,2020887034,"88,067.00"
Department for Work and Pensions,Housing Benefits,13/05/2011,HOUSING BENEFIT ADMIN,WWG HOUSING BENEFIT,EASTBOURNE BOROUGH COUNCIL,2020887102,"87,969.00"
Department for Work and Pensions,Employment Programmes,12/05/2011,EP GENERIC PROVIDER PAYMENTS,WWEG EMPLOYMENT PROGRAMMES,ESG HOLDINGS LTD,2020876167,"87,418.00"
Department for Work and Pensions,Housing Benefits,13/05/2011,HOUSING BENEFIT ADMIN,WWG HOUSING BENEFIT,SOUTH AYRSHIRE COUNCIL,2020887279,"87,382.00"
Department for Work and Pensions,Corporate,19/05/2011,MANAGEMENT CONSULTANCY,CORPORATE  IT,ATKINS LTD,2020979352,"86,850.00"
Department for Work and Pensions,Housing Benefits,13/05/2011,HOUSING BENEFIT ADMIN,WWG HOUSING BENEFIT,INVERCLYDE DISTRICT COUNCIL,2020887145,"86,800.00"
Department for Work and Pensions,Housing Benefits,13/05/2011,HOUSING BENEFIT ADMIN,WWG HOUSING BENEFIT,OXFORD CITY COUNCIL,2020887235,"86,447.00"
Department for Work and Pensions,Employment Programmes,12/05/2011,EP GENERIC PROVIDER PAYMENTS,WWEG EMPLOYMENT PROGRAMMES,A4E LTD,2020874760,"86,405.00"
Department for Work and Pensions,Housing Benefits,13/05/2011,HOUSING BENEFIT ADMIN,WWG HOUSING BENEFIT,FLINTSHIRE COUNTY COUNCIL,2020887115,"85,757.00"
Department for Work and Pensions,Employment Programmes,18/05/2011,YOUNG PERSON'S GUARANTEE,WWEG EMPLOYMENT PROGRAMMES,BARNARDOS,2020914074,"85,350.00"
Department for Work and Pensions,Corporate,13/05/2011,COMPUTER SERVICES,CORPORATE IT,ACCENTURE,2020881632,"85,248.00"
Department for Work and Pensions,Housing Benefits,13/05/2011,HOUSING BENEFIT ADMIN,WWG HOUSING BENEFIT,PERTH & KINROSS COUNCIL,2020887238,"85,118.00"
Department for Work and Pensions,Housing Benefits,13/05/2011,HOUSING BENEFIT ADMIN,WWG HOUSING BENEFIT,POOLE BOROUGH COUNCIL,2020887241,"85,056.00"
Department for Work and Pensions,Housing Benefits,13/05/2011,HOUSING BENEFIT ADMIN,WWG HOUSING BENEFIT,DARLINGTON BOROUGH COUNCIL,2020887076,"84,596.00"
Department for Work and Pensions,Corporate,16/05/2011,COMPUTER SERVICES,CORPORATE IT,HP ENTERPRISE SERVICES UK LTD,2020891593,"84,360.65"
Department for Work and Pensions,Housing Benefits,13/05/2011,HOUSING BENEFIT ADMIN,WWG HOUSING BENEFIT,BASINGSTOKE DISTRICT COUNCIL,2020887006,"84,281.00"
Department for Work and Pensions,Employment Programmes,24/05/2011,YOUNG PERSON'S GUARANTEE,WWEG EMPLOYMENT PROGRAMMES,SCOUT ENTERPRISES WESTERN LTD,2021008221,"84,000.00"
Department for Work and Pensions,Housing Benefits,13/05/2011,HOUSING BENEFIT ADMIN,WWG HOUSING BENEFIT,NUNEATON BOROUGH COUNCIL,2020887231,"83,851.00"
Department for Work and Pensions,Housing Benefits,13/05/2011,HOUSING BENEFIT ADMIN,WWG HOUSING BENEFIT,WYCOMBE DISTRICT COUNCIL,2020887369,"83,612.00"
Department for Work and Pensions,Corporate,09/05/2011,APPS DEV,CHANGE MANAGEMENT DIRECTORATE,ACCENTURE,2020782589,"83,578.66"
Department for Work and Pensions,Housing Benefits,13/05/2011,HOUSING BENEFIT ADMIN,WWG HOUSING BENEFIT,DACORUM BOROUGH COUNCIL,2020887075,"83,545.00"
Department for Work and Pensions,Corporate,16/05/2011,HOUSING BENEFIT,WWG SUMMARY,MOTABILITY,1004796,"83,337.00"
Department for Work and Pensions,Jobcentre Plus,03/05/2011,OTHER RECEIVABLES,BALANCE SHEET PAYMENTS,CORNWALL COUNTY COUNCIL,2020689439,"83,324.01"
Department for Work and Pensions,Jobcentre Plus,26/05/2011,OTHER RECEIVABLES,BALANCE SHEET PAYMENTS,CORNWALL COUNTY COUNCIL,2021085166,"83,324.01"
Department for Work and Pensions,Corporate,10/05/2011,APPS DEV,EG SUMMARY,HP ENTERPRISE SERVICES UK LTD,2020792603,"83,309.36"
Department for Work and Pensions,Employment Programmes,12/05/2011,EP GENERIC PROVIDER PAYMENTS,WWEG EMPLOYMENT PROGRAMMES,INGEUS UK LTD,2020876563,"83,221.00"
Department for Work and Pensions,Jobcentre Plus,26/05/2011,OTHER RECEIVABLES,BALANCE SHEET PAYMENTS,SEETEC,2021090331,"83,117.98"
Department for Work and Pensions,Housing Benefits,13/05/2011,HOUSING BENEFIT ADMIN,WWG HOUSING BENEFIT,HUNTINGDON DISTRICT COUNCIL,2020887143,"83,110.00"
Department for Work and Pensions,Housing Benefits,13/05/2011,HOUSING BENEFIT ADMIN,WWG HOUSING BENEFIT,AYLESBURY VALE DISTRICT COUNCIL,2020887001,"83,036.00"
Department for Work and Pensions,Housing Benefits,13/05/2011,HOUSING BENEFIT ADMIN,WWG HOUSING BENEFIT,ASHFIELD DISTRICT COUNCIL,2020886999,"82,987.00"
Department for Work and Pensions,Employment Programmes,12/05/2011,EP GENERIC PROVIDER PAYMENTS,WWEG EMPLOYMENT PROGRAMMES,JHP GROUP LTD,2020877035,"82,941.00"
Department for Work and Pensions,Jobcentre Plus,06/05/2011,OTHER RECEIVABLES,BALANCE SHEET PAYMENTS,CHESHIRE TRAINING ASSOCIATES LTD,2020775880,"82,925.98"
Department for Work and Pensions,Housing Benefits,13/05/2011,HOUSING BENEFIT ADMIN,WWG HOUSING BENEFIT,NEW FOREST DISTRICT COUNCIL,2020887208,"82,865.00"
Department for Work and Pensions,Housing Benefits,13/05/2011,HOUSING BENEFIT ADMIN,WWG HOUSING BENEFIT,CHELMSFORD BOROUGH COUNCIL,2020887047,"82,804.00"
Department for Work and Pensions,Housing Benefits,13/05/2011,HOUSING BENEFIT ADMIN,WWG HOUSING BENEFIT,CANTERBURY CITY COUNCIL,2020887040,"82,650.00"
Department for Work and Pensions,Corporate,17/05/2011,APPS DEV,CORPORATE IT,HP ENTERPRISE SERVICES UK LTD,2020900355,"82,551.32"
Department for Work and Pensions,Housing Benefits,13/05/2011,HOUSING BENEFIT ADMIN,WWG HOUSING BENEFIT,MANSFIELD DISTRICT COUNCIL,2020887194,"82,260.00"
Department for Work and Pensions,Housing Benefits,13/05/2011,HOUSING BENEFIT ADMIN,WWG HOUSING BENEFIT,CONWY COUNTY BOROUGH  COUNCIL,2020887064,"81,715.00"
Department for Work and Pensions,Housing Benefits,13/05/2011,HOUSING BENEFIT ADMIN,WWG HOUSING BENEFIT,PENDLE BOROUGH COUNCIL,2020887237,"81,549.00"
Department for Work and Pensions,Jobcentre Plus,06/05/2011,OTHER RECEIVABLES,BALANCE SHEET PAYMENTS,ARMSTRONG LEARNING LTD,2020775428,"81,144.44"
Department for Work and Pensions,Housing Benefits,13/05/2011,HOUSING BENEFIT ADMIN,WWG HOUSING BENEFIT,SHEPWAY DISTRICT COUNCIL,2020887274,"80,796.00"
Department for Work and Pensions,Housing Benefits,13/05/2011,HOUSING BENEFIT ADMIN,WWG HOUSING BENEFIT,CHESTERFIELD BOROUGH COUNCIL,2020887052,"80,324.00"
Department for Work and Pensions,Housing Benefits,13/05/2011,HOUSING BENEFIT ADMIN,WWG HOUSING BENEFIT,HAVANT BOROUGH COUNCIL,2020887136,"80,318.00"
Department for Work and Pensions,Housing Benefits,13/05/2011,HOUSING BENEFIT ADMIN,WWG HOUSING BENEFIT,SCOTTISH BORDERS COUNCIL,2020887268,"80,001.00"
Department for Work and Pensions,Corporate,31/05/2011,ACCOMMODATION COSTS,GROUP FINANCE,TELEREAL TRILLIUM,2021107377,"79,964.10"
Department for Work and Pensions,Employment Programmes,20/05/2011,YOUNG PERSON'S GUARANTEE,WWEG EMPLOYMENT PROGRAMMES,HASTINGS BOROUGH COUNCIL,2020989612,"79,650.00"
Department for Work and Pensions,Housing Benefits,13/05/2011,HOUSING BENEFIT ADMIN,WWG HOUSING BENEFIT,CRAWLEY BOROUGH COUNCIL,2020887073,"79,563.00"
Department for Work and Pensions,Housing Benefits,13/05/2011,HOUSING BENEFIT ADMIN,WWG HOUSING BENEFIT,WREXHAM COUNTY BOROUGH COUNCIL,2020887367,"79,405.00"
Department for Work and Pensions,Employment Programmes,19/05/2011,YOUNG PERSON'S GUARANTEE,WWEG EMPLOYMENT PROGRAMMES,THE FOOTBALL LEAGUE COMMUNITY LTD,2020984120,"79,350.00"
Department for Work and Pensions,European Social Fund,04/05/2011,ESF NON-PREFUNDED EXPENDITURE,WWEG EUROPEAN SOCIAL FUND,SOCIAL ENTERPRISE EAST MIDLANDS LTD,5000000558,"79,324.00"
Department for Work and Pensions,Jobcentre Plus,19/05/2011,OTHER RECEIVABLES,BALANCE SHEET PAYMENTS,WORKING LINKS EMPLOYMENT LIMITED,2020984351,"79,070.88"
Department for Work and Pensions,Housing Benefits,13/05/2011,HOUSING BENEFIT ADMIN,WWG HOUSING BENEFIT,TORFAEN BOROUGH COUNCIL,2020887331,"78,577.00"
Department for Work and Pensions,Housing Benefits,13/05/2011,HOUSING BENEFIT ADMIN,WWG HOUSING BENEFIT,CHERWELL DISTRICT COUNCIL,2020887049,"78,566.00"
Department for Work and Pensions,Housing Benefits,13/05/2011,HOUSING BENEFIT ADMIN,WWG HOUSING BENEFIT,BRECKLAND DISTRICT COUNCIL,2020887025,"78,508.00"
Department for Work and Pensions,Housing Benefits,13/05/2011,HOUSING BENEFIT ADMIN,WWG HOUSING BENEFIT,MAIDSTONE BOROUGH COUNCIL,2020887190,"78,478.00"
Department for Work and Pensions,Employment Programmes,04/05/2011,FND,WWEG EMPLOYMENT PROGRAMMES,SERCO LTD,2020760526,"78,057.00"
Department for Work and Pensions,Corporate,12/05/2011,OTHER PROJECTS,GROUP FINANCE,SHEFFIELD CREDIT UNION,2020879100,"78,000.00"
Department for Work and Pensions,Housing Benefits,13/05/2011,HOUSING BENEFIT ADMIN,WWG HOUSING BENEFIT,GWYNEDD COUNCIL,2020887126,"77,986.00"
Department for Work and Pensions,Housing Benefits,13/05/2011,HOUSING BENEFIT ADMIN,WWG HOUSING BENEFIT,WEST BERKSHIRE COUNCIL,2020887347,"77,607.00"
Department for Work and Pensions,Jobcentre Plus,26/05/2011,OTHER RECEIVABLES,BALANCE SHEET PAYMENTS,SKILLS TRAINING UK LTD,2021090356,"77,606.12"
Department for Work and Pensions,Employment Programmes,19/05/2011,YOUNG PERSON'S GUARANTEE,WWEG EMPLOYMENT PROGRAMMES,CALDERDALE METROPOLITAN BOROUGH COUNCIL,2020979769,"77,250.00"
Department for Work and Pensions,Jobcentre Plus,06/05/2011,OTHER RECEIVABLES,BALANCE SHEET PAYMENTS,TWL TRAINING LTD,2020780504,"77,249.40"
Department for Work and Pensions,Housing Benefits,13/05/2011,HOUSING BENEFIT ADMIN,WWG HOUSING BENEFIT,WYRE BOROUGH COUNCIL,2020887370,"76,857.00"
Department for Work and Pensions,Jobcentre Plus,04/05/2011,ACCOMMODATION COSTS,JOBCENTRE PLUS,TELEREAL TRILLIUM,2020763734,"76,786.84"
Department for Work and Pensions,Housing Benefits,13/05/2011,HOUSING BENEFIT ADMIN,WWG HOUSING BENEFIT,DOVER DISTRICT COUNCIL,2020887084,"76,750.00"
Department for Work and Pensions,Housing Benefits,13/05/2011,HOUSING BENEFIT ADMIN,WWG HOUSING BENEFIT,CHARNWOOD BOROUGH COUNCIL,2020887046,"76,664.00"
Department for Work and Pensions,Employment Programmes,03/05/2011,YOUNG PERSON'S GUARANTEE,WWEG EMPLOYMENT PROGRAMMES,WOLVERHAMPTON CITY COUNCIL,2020692059,"76,650.00"
Department for Work and Pensions,Housing Benefits,13/05/2011,HOUSING BENEFIT ADMIN,WWG HOUSING BENEFIT,VALE OF GLAMORGAN COUNCIL,2020887336,"76,596.00"
Department for Work and Pensions,Housing Benefits,13/05/2011,HOUSING BENEFIT ADMIN,WWG HOUSING BENEFIT,PEMBROKESHIRE COUNTY COUNCIL,2020887236,"76,544.00"
Department for Work and Pensions,Corporate,20/05/2011,TEMPORARY (TEMP) STAFF COSTS,CORPORATE  IT,CAPITA RESOURCING LTD,2020987599,"76,330.89"
Department for Work and Pensions,Housing Benefits,13/05/2011,HOUSING BENEFIT ADMIN,WWG HOUSING BENEFIT,TEIGNBRIDGE DISTRICT COUNCIL,2020887321,"75,813.00"
Department for Work and Pensions,Corporate,27/05/2011,INTANGIBLE ASSETS,WWG SUMMARY,CAPGEMINI UK PLC,2021093025,"75,690.00"
Department for Work and Pensions,Jobcentre Plus,03/05/2011,OTHER RECEIVABLES,BALANCE SHEET PAYMENTS,WORKING LINKS EMPLOYMENT LIMITED,2020692065,"75,575.42"
Department for Work and Pensions,Corporate,13/05/2011,COMPUTER SERVICES,CORPORATE  IT,BT GLOBAL SERVICES,2020881790,"75,286.80"
Department for Work and Pensions,Housing Benefits,13/05/2011,HOUSING BENEFIT ADMIN,WWG HOUSING BENEFIT,BASSETLAW DISTRICT COUNCIL,2020887007,"75,257.00"
Department for Work and Pensions,Employment Programmes,16/05/2011,ND 18-24 GATEWAY,WWEG EMPLOYMENT PROGRAMMES,MANAGEMENT INTRODUCTIONS LTD,2020892698,"75,045.24"
Department for Work and Pensions,Corporate,10/05/2011,OTHER PROJECTS,GROUP FINANCE,HULL & EAST YORKSHIRE CREDIT UNION LTD,2020792607,"75,000.00"
Department for Work and Pensions,Housing Benefits,13/05/2011,HOUSING BENEFIT ADMIN,WWG HOUSING BENEFIT,NORTH HERTFORDSHIRE DISTRICT COUNCIL,2020887218,"74,925.00"
Department for Work and Pensions,Employment Programmes,09/05/2011,YOUNG PERSON'S GUARANTEE,WWEG EMPLOYMENT PROGRAMMES,THE FOOTBALL LEAGUE COMMUNITY LTD,2020786490,"74,850.00"
Department for Work and Pensions,Jobcentre Plus,03/05/2011,OTHER RECEIVABLES,BALANCE SHEET PAYMENTS,STOKE ON TRENT COLLEGE,2020691907,"74,684.54"
Department for Work and Pensions,Jobcentre Plus,26/05/2011,OTHER RECEIVABLES,BALANCE SHEET PAYMENTS,STOKE ON TRENT COLLEGE,2021090384,"74,684.54"
Department for Work and Pensions,Employment Programmes,03/05/2011,NDLP,WWEG EMPLOYMENT PROGRAMMES,TRIAGE CENTRAL LTD,2020691990,"74,378.00"
Department for Work and Pensions,Jobcentre Plus,17/05/2011,APPS DEV,JOBCENTRE PLUS,HP ENTERPRISE SERVICES UK LTD,2020900355,"74,363.48"
Department for Work and Pensions,Housing Benefits,13/05/2011,HOUSING BENEFIT ADMIN,WWG HOUSING BENEFIT,NEWCASTLE UNDER LYME BOROUGH COUNCIL,2020887211,"74,074.00"
Department for Work and Pensions,Corporate,03/05/2011,TEMPORARY (TEMP) STAFF COSTS,GROUP FINANCE,CAPITA RESOURCING LTD,2020689402,"74,023.82"
Department for Work and Pensions,Jobcentre Plus,03/05/2011,OTHER RECEIVABLES,BALANCE SHEET PAYMENTS,RBLI ROYAL BRITISH LEGION INDUSTRIES LTD,2020691712,"73,890.38"
Department for Work and Pensions,Housing Benefits,13/05/2011,HOUSING BENEFIT ADMIN,WWG HOUSING BENEFIT,EREWASH BOROUGH COUNCIL,2020887109,"73,888.00"
Department for Work and Pensions,Housing Benefits,13/05/2011,HOUSING BENEFIT ADMIN,WWG HOUSING BENEFIT,HYNDBURN BOROUGH COUNCIL,2020887144,"73,690.00"
Department for Work and Pensions,Housing Benefits,13/05/2011,HOUSING BENEFIT ADMIN,WWG HOUSING BENEFIT,AMBER VALLEY BOROUGH COUNCIL,2020886995,"73,477.00"
Department for Work and Pensions,Corporate,31/05/2011,ACCOMMODATION COSTS,GROUP FINANCE,TELEREAL TRILLIUM,2021107377,"73,294.18"
Department for Work and Pensions,Housing Benefits,13/05/2011,HOUSING BENEFIT ADMIN,WWG HOUSING BENEFIT,FENLAND DISTRICT COUNCIL,2020887113,"73,019.00"
Department for Work and Pensions,Housing Benefits,13/05/2011,HOUSING BENEFIT ADMIN,WWG HOUSING BENEFIT,EXETER CITY COUNCIL,2020887110,"72,846.00"
Department for Work and Pensions,Housing Benefits,13/05/2011,HOUSING BENEFIT ADMIN,WWG HOUSING BENEFIT,LINCOLN CITY COUNCIL,2020887159,"72,808.00"
Department for Work and Pensions,Housing Benefits,13/05/2011,HOUSING BENEFIT ADMIN,WWG HOUSING BENEFIT,ANGUS COUNCIL,2020886996,"72,682.00"
Department for Work and Pensions,Employment Programmes,12/05/2011,EP GENERIC PROVIDER PAYMENTS,WWEG EMPLOYMENT PROGRAMMES,JHP GROUP LTD,2020877035,"72,639.00"
Department for Work and Pensions,Employment Programmes,31/05/2011,PATHWAY TO WORK,WWEG EMPLOYMENT PROGRAMMES,HARTLEPOOL PRIMARY CARE TRUST,2021102324,"72,527.78"
Department for Work and Pensions,Housing Benefits,13/05/2011,HOUSING BENEFIT ADMIN,WWG HOUSING BENEFIT,HARROGATE BOROUGH COUNCIL,2020887132,"72,421.00"
Department for Work and Pensions,Housing Benefits,13/05/2011,HOUSING BENEFIT ADMIN,WWG HOUSING BENEFIT,POWYS COUNTY COUNCIL,2020887243,"72,208.00"
Department for Work and Pensions,Housing Benefits,13/05/2011,HOUSING BENEFIT ADMIN,WWG HOUSING BENEFIT,WYRE FOREST DISTRICT COUNCIL,2020887371,"71,827.00"
Department for Work and Pensions,Employment Programmes,12/05/2011,EP GENERIC PROVIDER PAYMENTS,WWEG EMPLOYMENT PROGRAMMES,JHP GROUP LTD,2020877035,"71,410.00"
Department for Work and Pensions,Corporate,10/05/2011,APPS DEV,CHANGE MANAGEMENT DIRECTORATE,HP ENTERPRISE SERVICES UK LTD,2020792603,"71,380.62"
Department for Work and Pensions,Housing Benefits,13/05/2011,HOUSING BENEFIT ADMIN,WWG HOUSING BENEFIT,EAST STAFFORDSHIRE DISTRICT COUNCIL,2020887101,"71,233.00"
Department for Work and Pensions,Jobcentre Plus,12/05/2011,OTHER RECEIVABLES,BALANCE SHEET PAYMENTS,SHROPSHIRE COUNTY TRAINING,2020879105,"71,135.00"
Department for Work and Pensions,Housing Benefits,13/05/2011,HOUSING BENEFIT ADMIN,WWG HOUSING BENEFIT,SEDGEMOOR DISTRICT COUNCIL,2020887269,"71,065.00"
Department for Work and Pensions,Housing Benefits,13/05/2011,HOUSING BENEFIT ADMIN,WWG HOUSING BENEFIT,SOUTH KESTEVEN DISTRICT COUNCIL,2020887286,"70,457.00"
Department for Work and Pensions,Corporate,18/05/2011,COMPUTER SERVICES,CORPORATE IT,ACCENTURE,2020912755,"70,364.00"
Department for Work and Pensions,Housing Benefits,13/05/2011,HOUSING BENEFIT ADMIN,WWG HOUSING BENEFIT,GEDLING BOROUGH COUNCIL,2020887120,"70,119.00"
Department for Work and Pensions,Employment Programmes,26/05/2011,NDLP,WWEG EMPLOYMENT PROGRAMMES,WORKING LINKS,2021090814,"70,048.72"
Department for Work and Pensions,Corporate,31/05/2011,ACCOMMODATION COSTS,GROUP FINANCE,CITY OF WESTMINSTER,2021099738,"69,831.92"
Department for Work and Pensions,Jobcentre Plus,19/05/2011,OTHER RECEIVABLES,BALANCE SHEET PAYMENTS,INBIZ LTD,2020981215,"69,811.30"
Department for Work and Pensions,Housing Benefits,13/05/2011,HOUSING BENEFIT ADMIN,WWG HOUSING BENEFIT,HARLOW DISTRICT COUNCIL,2020887131,"69,793.00"
Department for Work and Pensions,Jobcentre Plus,06/05/2011,OTHER RECEIVABLES,BALANCE SHEET PAYMENTS,SHAW TRUST LTD,2020780276,"69,780.56"
Department for Work and Pensions,Employment Programmes,13/05/2011,FND,WWEG EMPLOYMENT PROGRAMMES,WORKING LINKS,2020886954,"69,750.00"
Department for Work and Pensions,European Social Fund,09/05/2011,LOW VALUE PROCUREMENT,WWEG EUROPEAN SOCIAL FUND,BIRMINGHAM CITY COUNCIL,5000000560,"69,591.00"
Department for Work and Pensions,Corporate,12/05/2011,DESKTOP SERVICES,CORPORATE IT,HP ENTERPRISE SERVICES UK LTD,2020876496,"69,445.12"
Department for Work and Pensions,Housing Benefits,13/05/2011,HOUSING BENEFIT ADMIN,WWG HOUSING BENEFIT,WORTHING BOROUGH COUNCIL,2020887366,"69,308.00"
Department for Work and Pensions,Employment Programmes,19/05/2011,JSP ESF DEL P COSTS,WWEG EMPLOYMENT PROGRAMMES,REED IN PARTNERSHIP,2020983377,"69,022.55"
Department for Work and Pensions,Employment Programmes,20/05/2011,YOUNG PERSON'S GUARANTEE,WWEG EMPLOYMENT PROGRAMMES,NEATH PORT TALBOT COUNTY BOROUGH COUNCIL,2020991177,"69,000.00"
Department for Work and Pensions,Employment Programmes,23/05/2011,YOUNG PERSON'S GUARANTEE,WWEG EMPLOYMENT PROGRAMMES,NORTH LINCOLNSHIRE COUNCIL,2020997133,"69,000.00"
Department for Work and Pensions,Housing Benefits,13/05/2011,HOUSING BENEFIT ADMIN,WWG HOUSING BENEFIT,CHELTENHAM BOROUGH COUNCIL,2020887048,"68,832.00"
Department for Work and Pensions,Employment Programmes,10/05/2011,FND,WWEG EMPLOYMENT PROGRAMMES,SKILLS TRAINING UK LIMITED,2020798313,"68,695.00"
Department for Work and Pensions,Housing Benefits,13/05/2011,HOUSING BENEFIT ADMIN,WWG HOUSING BENEFIT,CAMBRIDGE CITY COUNCIL,2020887038,"68,579.00"
Department for Work and Pensions,Housing Benefits,13/05/2011,HOUSING BENEFIT ADMIN,WWG HOUSING BENEFIT,DENBIGHSHIRE COUNTY COUNCIL,2020887079,"68,208.00"
Department for Work and Pensions,Employment Programmes,17/05/2011,YOUNG PERSON'S GUARANTEE,WWEG EMPLOYMENT PROGRAMMES,RUSSELL COMMISSION IMPLEMENTATION BODY TA V,2020904326,"68,100.00"
Department for Work and Pensions,Housing Benefits,13/05/2011,HOUSING BENEFIT ADMIN,WWG HOUSING BENEFIT,GRAVESHAM BOROUGH COUNCIL,2020887123,"67,731.00"
Department for Work and Pensions,Corporate,10/05/2011,TELEPHONE AND POSTAGE,WWG SUMMARY,ROYAL MAIL GROUP PLC,2020797235,"67,398.74"
Department for Work and Pensions,Corporate,31/05/2011,ACCOMMODATION COSTS,GROUP FINANCE,TELEREAL TRILLIUM,2021107378,"67,381.52"
Department for Work and Pensions,Corporate,11/05/2011,OTHER PROJECTS,GROUP FINANCE,STREET UK LTD,2020866791,"67,200.00"
Department for Work and Pensions,Jobcentre Plus,06/05/2011,OTHER RECEIVABLES,BALANCE SHEET PAYMENTS,YMCA TRAINING LTD,2020780642,"67,176.98"
Department for Work and Pensions,Corporate,16/05/2011,COMPUTER SERVICES,CHANGE MANAGEMENT DIRECTORATE,BT GLOBAL SERVICES,2020888911,"66,928.50"
Department for Work and Pensions,Housing Benefits,13/05/2011,HOUSING BENEFIT ADMIN,WWG HOUSING BENEFIT,WEST LANCASHIRE DISTRICT COUNCIL,2020887351,"66,807.00"
Department for Work and Pensions,Jobcentre Plus,19/05/2011,OTHER RECEIVABLES,BALANCE SHEET PAYMENTS,SHAW TRUST LTD,2020983895,"66,666.50"
Department for Work and Pensions,Housing Benefits,13/05/2011,HOUSING BENEFIT ADMIN,WWG HOUSING BENEFIT,BROXBOURNE BOROUGH COUNCIL,2020887032,"66,664.00"
Department for Work and Pensions,Employment Programmes,26/05/2011,YOUNG PERSON'S GUARANTEE,WWEG EMPLOYMENT PROGRAMMES,LONDON EAST CONNEXIONS PARTNERSHIP LTD,2021088181,"66,374.69"
Department for Work and Pensions,Housing Benefits,13/05/2011,HOUSING BENEFIT ADMIN,WWG HOUSING BENEFIT,GUILDFORD BOROUGH COUNCIL,2020887125,"66,363.00"
Department for Work and Pensions,Housing Benefits,13/05/2011,HOUSING BENEFIT ADMIN,WWG HOUSING BENEFIT,WARWICK DISTRICT COUNCIL,2020887341,"66,314.00"
Department for Work and Pensions,Housing Benefits,13/05/2011,HOUSING BENEFIT ADMIN,WWG HOUSING BENEFIT,REIGATE & BANSTEAD BOROUGH COUNCIL,2020887248,"66,240.00"
Department for Work and Pensions,Housing Benefits,13/05/2011,HOUSING BENEFIT ADMIN,WWG HOUSING BENEFIT,EAST DEVON DISTRICT COUNCIL,2020887091,"66,196.00"
Department for Work and Pensions,Housing Benefits,13/05/2011,HOUSING BENEFIT ADMIN,WWG HOUSING BENEFIT,ASHFORD BOROUGH COUNCIL,2020887000,"66,138.00"
Department for Work and Pensions,European Social Fund,31/05/2011,ESF NON-PREFUNDED EXPENDITURE,WWEG EUROPEAN SOCIAL FUND,EAST OF ENGLAND DEVELOPMENT AGENCY,5000000582,"66,008.00"
Department for Work and Pensions,Corporate,18/05/2011,COMPUTER SERVICES,CORPORATE IT,COMPUTACENTER UK LTD,2020919378,"66,003.91"
Department for Work and Pensions,"Pension, Disability Carers Services",25/05/2011,AOS CONTRACTED OUT SERVICES,PENSIONS & DISABILITY CARERS SERVICE,XEROX UK LTD,2021081168,"65,955.88"
Department for Work and Pensions,Corporate,11/05/2011,AOS CONTRACTED OUT SERVICES,SHARED SERVICES,COMMERCIAL COLLECTION SERVICES LTD,2020812712,"65,762.40"
Department for Work and Pensions,Corporate,04/05/2011,ACCOMMODATION COSTS,GROUP FINANCE,TELEREAL TRILLIUM,2020763734,"65,569.00"
Department for Work and Pensions,Corporate,19/05/2011,COMPUTER SERVICES,CORPORATE IT,SPECIALIST COMPUTER CENTRES PLC,2020983931,"65,339.37"
Department for Work and Pensions,Housing Benefits,13/05/2011,HOUSING BENEFIT ADMIN,WWG HOUSING BENEFIT,TAUNTON DEANE BOROUGH COUNCIL,2020887320,"65,246.00"
Department for Work and Pensions,Corporate,04/05/2011,OTHER GOODS AND SERVICES,CORPORATE  IT,DLA PIPER UK,2020710716,"65,048.31"
Department for Work and Pensions,Housing Benefits,13/05/2011,HOUSING BENEFIT ADMIN,WWG HOUSING BENEFIT,NORTH DEVON DISTRICT COUNCIL,2020887214,"64,957.00"
Department for Work and Pensions,Jobcentre Plus,26/05/2011,OTHER RECEIVABLES,BALANCE SHEET PAYMENTS,WORKING LINKS EMPLOYMENT LIMITED,2021090819,"64,528.08"
Department for Work and Pensions,Housing Benefits,13/05/2011,HOUSING BENEFIT ADMIN,WWG HOUSING BENEFIT,WORCESTER CITY COUNCIL,2020887365,"64,477.00"
Department for Work and Pensions,Corporate,31/05/2011,ACCOMMODATION COSTS,GROUP FINANCE,TELEREAL TRILLIUM,2021107379,"64,239.05"
Department for Work and Pensions,Housing Benefits,13/05/2011,HOUSING BENEFIT ADMIN,WWG HOUSING BENEFIT,WELWYN HATFIELD DISTRICT COUNCIL,2020887346,"64,239.00"
Department for Work and Pensions,Employment Programmes,12/05/2011,EP GENERIC PROVIDER PAYMENTS,WWEG EMPLOYMENT PROGRAMMES,A4E LTD,2020874760,"64,134.00"
Department for Work and Pensions,Housing Benefits,13/05/2011,HOUSING BENEFIT ADMIN,WWG HOUSING BENEFIT,NORTH NORFOLK DISTRICT COUNCIL,2020887222,"64,072.00"
Department for Work and Pensions,Housing Benefits,13/05/2011,HOUSING BENEFIT ADMIN,WWG HOUSING BENEFIT,MENDIP DISTRICT COUNCIL,2020887197,"64,055.00"
Department for Work and Pensions,Housing Benefits,13/05/2011,HOUSING BENEFIT ADMIN,WWG HOUSING BENEFIT,CITY OF CARLISLE DISTRICT COUNCIL,2020887057,"63,983.00"
Department for Work and Pensions,Housing Benefits,13/05/2011,HOUSING BENEFIT ADMIN,WWG HOUSING BENEFIT,WINDSOR & MAIDENHEAD BOROUGH COUNCIL,2020887360,"63,911.00"
Department for Work and Pensions,Corporate,03/05/2011,TEMPORARY (TEMP) STAFF COSTS,CORPORATE  IT,CAPITA RESOURCING LTD,2020689402,"63,810.12"
Department for Work and Pensions,Housing Benefits,13/05/2011,HOUSING BENEFIT ADMIN,WWG HOUSING BENEFIT,BLAENAU GWENT COUNTY BOROUGH COUNCIL,2020887014,"63,461.00"
Department for Work and Pensions,Housing Benefits,13/05/2011,HOUSING BENEFIT ADMIN,WWG HOUSING BENEFIT,EPPING FOREST DISTRICT COUNCIL,2020887107,"63,296.00"
Department for Work and Pensions,Employment Programmes,20/05/2011,FND,WWEG EMPLOYMENT PROGRAMMES,REMPLOY LTD,2020991679,"63,294.00"
Department for Work and Pensions,Housing Benefits,13/05/2011,HOUSING BENEFIT ADMIN,WWG HOUSING BENEFIT,CANNOCK CHASE DISTRICT COUNCIL,2020887039,"63,108.00"
Department for Work and Pensions,European Social Fund,09/05/2011,ESF NON-PREFUNDED EXPENDITURE,WWEG EUROPEAN SOCIAL FUND,LIVERPOOL CHAMBER OF COMMERCE,5000000567,"63,037.00"
Department for Work and Pensions,Jobcentre Plus,12/05/2011,OTHER RECEIVABLES,BALANCE SHEET PAYMENTS,WORKING LINKS,2020879472,"62,995.50"
Department for Work and Pensions,Housing Benefits,13/05/2011,HOUSING BENEFIT ADMIN,WWG HOUSING BENEFIT,HERTSMERE BOROUGH COUNCIL,2020887138,"62,878.00"
Department for Work and Pensions,"Pension, Disability Carers Services",10/05/2011,TELEPHONE AND POSTAGE,PENSIONS & DISABILITY CARERS SERVICE,ROYAL MAIL GROUP PLC,2020797235,"62,877.04"
Department for Work and Pensions,Housing Benefits,13/05/2011,HOUSING BENEFIT ADMIN,WWG HOUSING BENEFIT,ARGYLL & BUTE COUNCIL,2020886997,"62,865.00"
Department for Work and Pensions,Jobcentre Plus,19/05/2011,OTHER RECEIVABLES,BALANCE SHEET PAYMENTS,CAREERS DEVELOPMENT GROUP LTD,2020979781,"62,858.98"
Department for Work and Pensions,Jobcentre Plus,03/05/2011,OTHER RECEIVABLES,BALANCE SHEET PAYMENTS,TROBIUS LTD,2020691992,"62,507.08"
Department for Work and Pensions,Jobcentre Plus,26/05/2011,OTHER RECEIVABLES,BALANCE SHEET PAYMENTS,RBLI ROYAL BRITISH LEGION INDUSTRIES LTD,2021089671,"62,451.74"
Department for Work and Pensions,Jobcentre Plus,19/05/2011,OTHER RECEIVABLES,BALANCE SHEET PAYMENTS,RBLI ROYAL BRITISH LEGION INDUSTRIES LTD,2020983366,"62,442.63"
Department for Work and Pensions,Employment Programmes,04/05/2011,YOUNG PERSON'S GUARANTEE,WWEG EMPLOYMENT PROGRAMMES,WOLVERHAMPTON CITY COUNCIL,2020765655,"62,250.00"
Department for Work and Pensions,Employment Programmes,26/05/2011,NDDP,WWEG EMPLOYMENT PROGRAMMES,SHAW TRUST LTD,2021090341,"62,163.44"
Department for Work and Pensions,Employment Programmes,06/05/2011,FND,WWEG EMPLOYMENT PROGRAMMES,SERCO LTD,2020780271,"62,127.00"
Department for Work and Pensions,Jobcentre Plus,19/05/2011,OTHER RECEIVABLES,BALANCE SHEET PAYMENTS,THE INTRAINING GROUP,2020984122,"62,122.64"
Department for Work and Pensions,Housing Benefits,13/05/2011,HOUSING BENEFIT ADMIN,WWG HOUSING BENEFIT,ALLERDALE DISTRICT COUNCIL,2020886994,"61,755.00"
Department for Work and Pensions,Housing Benefits,13/05/2011,HOUSING BENEFIT ADMIN,WWG HOUSING BENEFIT,WEALDEN DISTRICT COUNCIL,2020887345,"61,582.00"
Department for Work and Pensions,Housing Benefits,13/05/2011,HOUSING BENEFIT ADMIN,WWG HOUSING BENEFIT,NEWARK DISTRICT COUNCIL,2020887209,"61,494.00"
Department for Work and Pensions,Employment Programmes,20/05/2011,YOUNG PERSON'S GUARANTEE,WWEG EMPLOYMENT PROGRAMMES,WEST LOTHIAN COUNCIL,2020992460,"61,200.00"
Department for Work and Pensions,Employment Programmes,09/05/2011,FND,WWEG EMPLOYMENT PROGRAMMES,A4E LTD,2020782587,"60,960.00"
Department for Work and Pensions,Employment Programmes,16/05/2011,YOUNG PERSON'S GUARANTEE,WWEG EMPLOYMENT PROGRAMMES,STRIDE SHARP TRADING LEICESTER LTD,2020893625,"60,816.22"
Department for Work and Pensions,Employment Programmes,16/05/2011,FND,WWEG EMPLOYMENT PROGRAMMES,WORKING LINKS,2020893889,"60,801.00"
Department for Work and Pensions,Housing Benefits,13/05/2011,HOUSING BENEFIT ADMIN,WWG HOUSING BENEFIT,TONBRIDGE & MALLING DISTRICT COUNCIL,2020887329,"60,672.00"
Department for Work and Pensions,Housing Benefits,13/05/2011,HOUSING BENEFIT ADMIN,WWG HOUSING BENEFIT,CHICHESTER DISTRICT COUNCIL,2020887053,"60,573.00"
Department for Work and Pensions,Housing Benefits,13/05/2011,HOUSING BENEFIT ADMIN,WWG HOUSING BENEFIT,EAST HERTFORDSHIRE DISTRICT COUNCIL,2020887095,"60,402.00"
Department for Work and Pensions,Employment Programmes,24/05/2011,PATHWAY TO WORK,WWEG EMPLOYMENT PROGRAMMES,NHS LANARKSHIRE,2021006371,"60,194.00"
Department for Work and Pensions,"Pension, Disability Carers Services",04/05/2011,COMPUTER SERVICES,PENSIONS & DISABILITY CARERS SERVICE,ACCENTURE,2020699311,"60,069.48"
Department for Work and Pensions,Jobcentre Plus,26/05/2011,OTHER RECEIVABLES,BALANCE SHEET PAYMENTS,THE WISE GROUP,2021090602,"60,051.06"
Department for Work and Pensions,Corporate,03/05/2011,TEMPORARY (TEMP) STAFF COSTS,CORPORATE  IT,CAPITA RESOURCING LTD,2020689402,"60,036.46"
Department for Work and Pensions,Employment Programmes,23/05/2011,NDLP,WWEG EMPLOYMENT PROGRAMMES,CLAVERHOUSE GROUP,2020994201,"59,934.00"
Department for Work and Pensions,Housing Benefits,13/05/2011,HOUSING BENEFIT ADMIN,WWG HOUSING BENEFIT,GOSPORT BOROUGH COUNCIL,2020887122,"59,919.00"
Department for Work and Pensions,Jobcentre Plus,03/05/2011,OTHER RECEIVABLES,BALANCE SHEET PAYMENTS,THE WISE GROUP,2020691973,"59,913.75"
Department for Work and Pensions,Corporate,12/05/2011,AOS CONTRACTED OUT SERVICES,SHARED SERVICES,IQOR RECOVERY SERVICES LTD,2020876568,"59,837.49"
Department for Work and Pensions,Corporate,16/05/2011,APPS DEV,CHANGE MANAGEMENT DIRECTORATE,ACCENTURE,2020888759,"59,738.47"
Department for Work and Pensions,Housing Benefits,13/05/2011,HOUSING BENEFIT ADMIN,WWG HOUSING BENEFIT,WATFORD BOROUGH COUNCIL,2020887342,"59,615.00"
Department for Work and Pensions,Jobcentre Plus,13/05/2011,ACCOMMODATION COSTS,JOBCENTRE PLUS,TELEREAL TRILLIUM,2020886809,"59,614.75"
Department for Work and Pensions,Housing Benefits,13/05/2011,HOUSING BENEFIT ADMIN,WWG HOUSING BENEFIT,STEVENAGE BOROUGH COUNCIL,2020887304,"59,462.00"
Department for Work and Pensions,Housing Benefits,13/05/2011,HOUSING BENEFIT ADMIN,WWG HOUSING BENEFIT,SOUTH NORFOLK DISTRICT COUNCIL,2020887289,"59,382.00"
Department for Work and Pensions,Employment Programmes,06/05/2011,FND,WWEG EMPLOYMENT PROGRAMMES,SERCO LTD,2020780271,"59,255.00"
Department for Work and Pensions,Housing Benefits,13/05/2011,HOUSING BENEFIT ADMIN,WWG HOUSING BENEFIT,SUFFOLK COASTAL DISTRICT COUNCIL,2020887311,"59,230.00"
Department for Work and Pensions,Employment Programmes,18/05/2011,YOUNG PERSON'S GUARANTEE,WWEG EMPLOYMENT PROGRAMMES,HAMPSHIRE COUNTY COUNCIL,2020931263,"59,222.35"
Department for Work and Pensions,Employment Programmes,12/05/2011,EP GENERIC PROVIDER PAYMENTS,WWEG EMPLOYMENT PROGRAMMES,JHP GROUP LTD,2020877035,"58,907.00"
Department for Work and Pensions,Corporate,13/05/2011,COMPUTER SERVICES,GROUP FINANCE,SPECIALIST COMPUTER CENTRES PLC,2020886657,"58,896.65"
Department for Work and Pensions,Housing Benefits,13/05/2011,HOUSING BENEFIT ADMIN,WWG HOUSING BENEFIT,EAST LOTHIAN DISTRICT COUNCIL,2020887097,"58,888.00"
Department for Work and Pensions,Jobcentre Plus,03/05/2011,OTHER RECEIVABLES,BALANCE SHEET PAYMENTS,PERTEMPS EMPLOYMENT ALLIANCE,2020691627,"58,695.32"
Department for Work and Pensions,Jobcentre Plus,26/05/2011,OTHER RECEIVABLES,BALANCE SHEET PAYMENTS,PERTEMPS EMPLOYMENT ALLIANCE,2021089307,"58,695.32"
Department for Work and Pensions,Corporate,13/05/2011,OTHER PROJECTS,GROUP FINANCE,CLOCKWISE LEICESTER CREDIT UNION,2020882063,"58,575.00"
Department for Work and Pensions,Corporate,23/05/2011,COMPUTER SERVICES,WWG SUMMARY,ACCENTURE UK LTD,2020993888,"58,444.98"
Department for Work and Pensions,Employment Programmes,16/05/2011,YOUNG PERSON'S GUARANTEE,WWEG EMPLOYMENT PROGRAMMES,TRAINING FOR LIFE LTD,2020893778,"58,200.00"
Department for Work and Pensions,Employment Programmes,10/05/2011,FND,WWEG EMPLOYMENT PROGRAMMES,SKILLS TRAINING UK LIMITED,2020798313,"58,112.00"
Department for Work and Pensions,Employment Programmes,25/05/2011,WORKSTEP,WWEG EMPLOYMENT PROGRAMMES,ENHAM,2021031058,"58,000.00"
Department for Work and Pensions,Housing Benefits,13/05/2011,HOUSING BENEFIT ADMIN,WWG HOUSING BENEFIT,BRACKNELL FOREST BOROUGH COUNCIL,2020887022,"57,945.00"
Department for Work and Pensions,Jobcentre Plus,26/05/2011,OTHER RECEIVABLES,BALANCE SHEET PAYMENTS,BTCV,2021084735,"57,943.29"
Department for Work and Pensions,Housing Benefits,13/05/2011,HOUSING BENEFIT ADMIN,WWG HOUSING BENEFIT,ROTHER DISTRICT COUNCIL,2020887256,"57,903.00"
Department for Work and Pensions,Corporate,11/05/2011,COMPUTER SERVICES,CORPORATE IT,HP ENTERPRISE SERVICES UK LTD,2020825950,"57,758.09"
Department for Work and Pensions,Employment Programmes,20/05/2011,FND,WWEG EMPLOYMENT PROGRAMMES,MAXIMUS EMPLOYMENT UK LTD,2020991000,"57,717.00"
Department for Work and Pensions,Corporate,13/05/2011,COMPUTER SERVICES,CORPORATE IT,BT GLOBAL SERVICES,2020881790,"57,438.00"
Department for Work and Pensions,Employment Programmes,12/05/2011,EP GENERIC PROVIDER PAYMENTS,WWEG EMPLOYMENT PROGRAMMES,A4E LTD,2020874760,"57,372.00"
Department for Work and Pensions,Housing Benefits,13/05/2011,HOUSING BENEFIT ADMIN,WWG HOUSING BENEFIT,BROXTOWE BOROUGH COUNCIL,2020887033,"57,302.00"
Department for Work and Pensions,Housing Benefits,13/05/2011,HOUSING BENEFIT ADMIN,WWG HOUSING BENEFIT,STRATFORD ON AVON DISTRICT COUNCIL,2020887309,"57,238.00"
Department for Work and Pensions,Housing Benefits,13/05/2011,HOUSING BENEFIT ADMIN,WWG HOUSING BENEFIT,RUGBY BOROUGH COUNCIL,2020887259,"57,209.00"
Department for Work and Pensions,Employment Programmes,06/05/2011,JSP ESF DEL P COSTS,WWEG EMPLOYMENT PROGRAMMES,INGEUS UK LTD,2020777894,"57,188.91"
Department for Work and Pensions,Employment Programmes,04/05/2011,YOUNG PERSON'S GUARANTEE,WWEG EMPLOYMENT PROGRAMMES,BRISTOL CITY COUNCIL,2020700738,"57,150.00"
Department for Work and Pensions,Corporate,20/05/2011,TEMPORARY (TEMP) STAFF COSTS,CORPORATE  IT,CAPITA RESOURCING LTD,2020987599,"57,050.57"
Department for Work and Pensions,Corporate,31/05/2011,OTHER PROJECTS,GROUP FINANCE,CALDERDALE CREDIT UNION LTD,2021099707,"57,000.00"
Department for Work and Pensions,Housing Benefits,13/05/2011,HOUSING BENEFIT ADMIN,WWG HOUSING BENEFIT,BARROW BOROUGH COUNCIL,2020887004,"56,861.00"
Department for Work and Pensions,Corporate,31/05/2011,COMPUTER SERVICES,SHARED SERVICES,ATOS ORIGIN IT SERVICES UK LTD,2021098890,"56,755.66"
Department for Work and Pensions,"Pension, Disability Carers Services",25/05/2011,COMPUTER SERVICES,PENSIONS & DISABILITY CARERS SERVICE,ACCENTURE,2021015787,"56,726.70"
Department for Work and Pensions,Employment Programmes,04/05/2011,YOUNG PERSON'S GUARANTEE,WWEG EMPLOYMENT PROGRAMMES,NORTH LINCOLNSHIRE COUNCIL,2020746324,"56,700.00"
Department for Work and Pensions,Employment Programmes,18/05/2011,YOUNG PERSON'S GUARANTEE,WWEG EMPLOYMENT PROGRAMMES,NATIONAL ASSOCIATION OF CITIZENS ADVICE BUREAUX,2020957427,"56,700.00"
Department for Work and Pensions,Housing Benefits,13/05/2011,HOUSING BENEFIT ADMIN,WWG HOUSING BENEFIT,ST EDMUNDSBURY BOROUGH COUNCIL,2020887300,"56,680.00"
Department for Work and Pensions,Employment Programmes,12/05/2011,EP GENERIC PROVIDER PAYMENTS,WWEG EMPLOYMENT PROGRAMMES,INGEUS UK LTD,2020876563,"56,474.00"
Department for Work and Pensions,Corporate,25/05/2011,APPS DEV,CORPORATE IT,ACCENTURE,2021015787,"56,467.39"
Department for Work and Pensions,Housing Benefits,13/05/2011,HOUSING BENEFIT ADMIN,WWG HOUSING BENEFIT,CHORLEY BOROUGH COUNCIL,2020887055,"56,458.00"
Department for Work and Pensions,Corporate,06/05/2011,OTHER PROJECTS,GROUP FINANCE,CITY SAVE CREDIT UNION,2020775890,"56,250.00"
Department for Work and Pensions,Housing Benefits,13/05/2011,HOUSING BENEFIT ADMIN,WWG HOUSING BENEFIT,LEWES DISTRICT COUNCIL,2020887157,"56,193.00"
Department for Work and Pensions,Housing Benefits,13/05/2011,HOUSING BENEFIT ADMIN,WWG HOUSING BENEFIT,BOROUGH OF REDDITCH,2020887017,"56,169.00"
Department for Work and Pensions,Housing Benefits,13/05/2011,HOUSING BENEFIT ADMIN,WWG HOUSING BENEFIT,TUNBRIDGE WELLS BOROUGH COUNCIL,2020887334,"55,959.00"
Department for Work and Pensions,Housing Benefits,13/05/2011,HOUSING BENEFIT ADMIN,WWG HOUSING BENEFIT,RUSHMOOR BOROUGH COUNCIL,2020887262,"55,901.00"
Department for Work and Pensions,Housing Benefits,13/05/2011,HOUSING BENEFIT ADMIN,WWG HOUSING BENEFIT,WYCHAVON DISTRICT COUNCIL,2020887368,"55,778.00"
Department for Work and Pensions,Employment Programmes,13/05/2011,FND,WWEG EMPLOYMENT PROGRAMMES,SERCO LTD,2020886628,"55,755.00"
Department for Work and Pensions,Corporate,16/05/2011,COMPUTER SERVICES,CHANGE MANAGEMENT DIRECTORATE,BT GLOBAL SERVICES,2020888911,"55,696.08"
Department for Work and Pensions,Corporate,13/05/2011,COMPUTER SERVICES,CHANGE MANAGEMENT DIRECTORATE,BT GLOBAL SERVICES,2020881790,"55,653.24"
Department for Work and Pensions,Employment Programmes,20/05/2011,YOUNG PERSON'S GUARANTEE,WWEG EMPLOYMENT PROGRAMMES,HARLOW DISTRICT COUNCIL,2020989610,"55,650.00"
Department for Work and Pensions,Corporate,04/05/2011,TEMPORARY (TEMP) STAFF COSTS,GROUP FINANCE,LEICESTER MONEY ADVICE CENTRE,2020737823,"55,412.47"
Department for Work and Pensions,Housing Benefits,13/05/2011,HOUSING BENEFIT ADMIN,WWG HOUSING BENEFIT,STROUD DISTRICT COUNCIL,2020887310,"55,411.00"
Department for Work and Pensions,Employment Programmes,24/05/2011,YOUNG PERSON'S GUARANTEE,WWEG EMPLOYMENT PROGRAMMES,PETERBOROUGH CITY COUNCIL,2021006832,"55,350.00"
Department for Work and Pensions,Corporate,05/05/2011,OTHER GOODS AND SERVICES,EG SUMMARY,NATIONAL INSTITUTE FOR ECONOMIC & SOCIAL RESEARCH,2020772404,"55,322.00"
Department for Work and Pensions,"Pension, Disability Carers Services",13/05/2011,AOS CONTRACTED OUT SERVICES,PENSIONS & DISABILITY CARERS SERVICE,XEROX UK LTD 3W,2020886957,"55,212.57"
Department for Work and Pensions,Housing Benefits,13/05/2011,HOUSING BENEFIT ADMIN,WWG HOUSING BENEFIT,ELMBRIDGE BOROUGH COUNCIL,2020887106,"55,151.00"
Department for Work and Pensions,Corporate,03/05/2011,OTHER GOODS AND SERVICES,EG SUMMARY,INSTITUTE FOR EMPLOYMENT STUDIES,2020691065,"55,140.00"
Department for Work and Pensions,Corporate,06/05/2011,OTHER PROJECTS,GROUP FINANCE,NORRIS GREEN COMMUNITY CREDIT UNION,2020779344,"55,125.00"
Department for Work and Pensions,Corporate,24/05/2011,OTHER PROJECTS,WWG SUMMARY,THE FULBRIGHT COMMISSION,2021008541,"55,000.00"
Department for Work and Pensions,Employment Programmes,18/05/2011,YOUNG PERSON'S GUARANTEE,WWEG EMPLOYMENT PROGRAMMES,CITY OF EDINBURGH COUNCIL,2020919320,"54,900.00"
Department for Work and Pensions,Housing Benefits,13/05/2011,HOUSING BENEFIT ADMIN,WWG HOUSING BENEFIT,SOUTH RIBBLE BOROUGH COUNCIL C,2020887292,"54,828.00"
Department for Work and Pensions,Housing Benefits,13/05/2011,HOUSING BENEFIT ADMIN,WWG HOUSING BENEFIT,WEST LINDSEY DISTRICT COUNCIL,2020887352,"54,699.00"
Department for Work and Pensions,Jobcentre Plus,26/05/2011,OTHER RECEIVABLES,BALANCE SHEET PAYMENTS,TROBIUS LTD,2021090622,"54,616.98"
Department for Work and Pensions,Employment Programmes,19/05/2011,JSP ESF DEL P COSTS,WWEG EMPLOYMENT PROGRAMMES,THE INTRAINING GROUP,2020984123,"54,506.55"
Department for Work and Pensions,Jobcentre Plus,19/05/2011,OTHER RECEIVABLES,BALANCE SHEET PAYMENTS,TNG NETWORK LTD,2020984155,"54,491.04"
Department for Work and Pensions,Housing Benefits,13/05/2011,HOUSING BENEFIT ADMIN,WWG HOUSING BENEFIT,BOROUGH OF WELLINGBOROUGH,2020887019,"54,483.00"
Department for Work and Pensions,Housing Benefits,13/05/2011,HOUSING BENEFIT ADMIN,WWG HOUSING BENEFIT,EASTLEIGH BOROUGH COUNCIL,2020887103,"54,293.00"
Department for Work and Pensions,Housing Benefits,13/05/2011,HOUSING BENEFIT ADMIN,WWG HOUSING BENEFIT,TEST VALLEY BOROUGH COUNCIL,2020887323,"54,275.00"
Department for Work and Pensions,Housing Benefits,13/05/2011,HOUSING BENEFIT ADMIN,WWG HOUSING BENEFIT,MIDLOTHIAN COUNCIL,2020887203,"54,224.00"
Department for Work and Pensions,Housing Benefits,13/05/2011,HOUSING BENEFIT ADMIN,WWG HOUSING BENEFIT,BOLSOVER DISTRICT COUNCIL,2020887015,"54,204.00"
Department for Work and Pensions,Employment Programmes,25/05/2011,FND,WWEG EMPLOYMENT PROGRAMMES,SERCO LTD,2021076116,"54,162.00"
Department for Work and Pensions,Housing Benefits,13/05/2011,HOUSING BENEFIT ADMIN,WWG HOUSING BENEFIT,DARTFORD BOROUGH COUNCIL,2020887077,"53,981.00"
Department for Work and Pensions,Corporate,10/05/2011,ACCOMMODATION COSTS,CORPORATE IT,TELEREAL TRILLIUM,2020798730,"53,977.45"
Department for Work and Pensions,Housing Benefits,13/05/2011,HOUSING BENEFIT ADMIN,WWG HOUSING BENEFIT,HIGH PEAK BOROUGH COUNCIL,2020887139,"53,861.00"
Department for Work and Pensions,Housing Benefits,13/05/2011,HOUSING BENEFIT ADMIN,WWG HOUSING BENEFIT,KETTERING BOROUGH COUNCIL,2020887149,"53,668.00"
Department for Work and Pensions,Jobcentre Plus,06/05/2011,OTHER RECEIVABLES,BALANCE SHEET PAYMENTS,LIFE SKILLS CENTRAL LTD,2020778776,"53,644.68"
Department for Work and Pensions,Jobcentre Plus,03/05/2011,OTHER RECEIVABLES,BALANCE SHEET PAYMENTS,CAREERS DEVELOPMENT GROUP,2020689404,"53,488.25"
Department for Work and Pensions,Housing Benefits,13/05/2011,HOUSING BENEFIT ADMIN,WWG HOUSING BENEFIT,STAFFORD BOROUGH COUNCIL,2020887302,"53,477.00"
Department for Work and Pensions,Jobcentre Plus,26/05/2011,OTHER RECEIVABLES,BALANCE SHEET PAYMENTS,SCVO,2021090326,"53,401.72"
Department for Work and Pensions,Jobcentre Plus,26/05/2011,OTHER RECEIVABLES,BALANCE SHEET PAYMENTS,A4E WALES LTD,2021092532,"53,258.02"
Department for Work and Pensions,Housing Benefits,13/05/2011,HOUSING BENEFIT ADMIN,WWG HOUSING BENEFIT,ST ALBANS DISTRICT COUNCIL,2020887299,"53,217.00"
Department for Work and Pensions,Employment Programmes,26/05/2011,JSP ESF DEL P COSTS,WWEG EMPLOYMENT PROGRAMMES,INGEUS UK LTD,2021086810,"52,993.58"
Department for Work and Pensions,Corporate,09/05/2011,OTHER GOODS AND SERVICES,EG SUMMARY,MDRC,3004399,"52,886.85"
Department for Work and Pensions,Housing Benefits,13/05/2011,HOUSING BENEFIT ADMIN,WWG HOUSING BENEFIT,SEVENOAKS DISTRICT COUNCIL,2020887272,"52,703.00"
Department for Work and Pensions,Employment Programmes,19/05/2011,FND,WWEG EMPLOYMENT PROGRAMMES,SERCO LTD,2020983889,"52,569.00"
Department for Work and Pensions,Employment Programmes,12/05/2011,YOUNG PERSON'S GUARANTEE,WWEG EMPLOYMENT PROGRAMMES,SHROPSHIRE COUNCIL,2020879103,"52,500.00"
Department for Work and Pensions,Employment Programmes,10/05/2011,YOUNG PERSON'S GUARANTEE,WWEG EMPLOYMENT PROGRAMMES,FUTURE JOBS SOUTH LONDON BUSINESS,2020792039,"52,500.00"
Department for Work and Pensions,Housing Benefits,13/05/2011,HOUSING BENEFIT ADMIN,WWG HOUSING BENEFIT,NORTH EAST DERBYSHIRE DISTRICT COUNCIL,2020887216,"52,479.00"
Department for Work and Pensions,Housing Benefits,13/05/2011,HOUSING BENEFIT ADMIN,WWG HOUSING BENEFIT,VALE OF WHITE HORSE DISTRICT COUNCIL,2020887337,"52,472.00"
Department for Work and Pensions,Housing Benefits,13/05/2011,HOUSING BENEFIT ADMIN,WWG HOUSING BENEFIT,WEYMOUTH & PORTLAND BOROUGH COUNCIL,2020887356,"52,141.00"
Department for Work and Pensions,Employment Programmes,12/05/2011,EP GENERIC PROVIDER PAYMENTS,WWEG EMPLOYMENT PROGRAMMES,INGEUS UK LTD,2020876563,"52,086.00"
Department for Work and Pensions,Employment Programmes,04/05/2011,FND,WWEG EMPLOYMENT PROGRAMMES,SERCO LTD,2020760526,"52,000.00"
Department for Work and Pensions,Jobcentre Plus,19/05/2011,ACCOMMODATION COSTS,JOBCENTRE PLUS,LAND REGISTRY,1004799,"51,944.55"
Department for Work and Pensions,Corporate,04/05/2011,BANKING AND ENCASHMENT COSTS,GROUP FINANCE,HSBC BANK PLC,2020719502,"51,919.20"
Department for Work and Pensions,Housing Benefits,13/05/2011,HOUSING BENEFIT ADMIN,WWG HOUSING BENEFIT,BROADLAND DISTRICT COUNCIL,2020887030,"51,871.00"
Department for Work and Pensions,Housing Benefits,13/05/2011,HOUSING BENEFIT ADMIN,WWG HOUSING BENEFIT,WEST DORSET DISTRICT COUNCIL,2020887349,"51,703.00"
Department for Work and Pensions,Employment Programmes,13/05/2011,FND,WWEG EMPLOYMENT PROGRAMMES,A4E LTD,2020881624,"51,680.00"
Department for Work and Pensions,Employment Programmes,13/05/2011,YOUNG PERSON'S GUARANTEE,WWEG EMPLOYMENT PROGRAMMES,FUTURE JOBS SOUTH LONDON BUSINESS,2020884070,"51,600.00"
Department for Work and Pensions,Employment Programmes,05/05/2011,YOUNG PERSON'S GUARANTEE,WWEG EMPLOYMENT PROGRAMMES,SHROPSHIRE COUNCIL,2020773315,"51,450.00"
Department for Work and Pensions,Employment Programmes,20/05/2011,JSP ESF DEL P COSTS,WWEG EMPLOYMENT PROGRAMMES,INGEUS UK LTD,2020989681,"51,433.37"
Department for Work and Pensions,Employment Programmes,16/05/2011,JSP ESF DEL P COSTS,WWEG EMPLOYMENT PROGRAMMES,INGEUS UK LTD,2020891634,"51,384.84"
Department for Work and Pensions,Housing Benefits,13/05/2011,HOUSING BENEFIT ADMIN,WWG HOUSING BENEFIT,MID SUSSEX DISTRICT COUNCIL,2020887201,"51,302.00"
Department for Work and Pensions,Housing Benefits,13/05/2011,HOUSING BENEFIT ADMIN,WWG HOUSING BENEFIT,CASTLE POINT DISTRICT COUNCIL,2020887043,"51,273.00"
Department for Work and Pensions,Housing Benefits,13/05/2011,HOUSING BENEFIT ADMIN,WWG HOUSING BENEFIT,SOUTH HOLLAND DISTRICT COUNCIL,2020887285,"51,269.00"
Department for Work and Pensions,Jobcentre Plus,10/05/2011,APPS DEV,JOBCENTRE PLUS,HP ENTERPRISE SERVICES UK LTD,2020792603,"51,190.92"
Department for Work and Pensions,Jobcentre Plus,26/05/2011,OTHER RECEIVABLES,BALANCE SHEET PAYMENTS,ARMSTRONG LEARNING LTD,2021084565,"51,102.78"
Department for Work and Pensions,Housing Benefits,13/05/2011,HOUSING BENEFIT ADMIN,WWG HOUSING BENEFIT,EAST HAMPSHIRE DISTRICT COUNCIL,2020887094,"51,086.00"
Department for Work and Pensions,Housing Benefits,13/05/2011,HOUSING BENEFIT ADMIN,WWG HOUSING BENEFIT,MERTHYR TYDFIL BOROUGH COUNCIL,2020887198,"50,998.00"
Department for Work and Pensions,Employment Programmes,19/05/2011,YOUNG PERSON'S GUARANTEE,WWEG EMPLOYMENT PROGRAMMES,RESOURCE PLUS FUTURE JOB FUND,2020983388,"50,981.92"
Department for Work and Pensions,Employment Programmes,09/05/2011,FND,WWEG EMPLOYMENT PROGRAMMES,MAXIMUS EMPLOYMENT UK LTD,2020785558,"50,875.00"
Department for Work and Pensions,Housing Benefits,13/05/2011,HOUSING BENEFIT ADMIN,WWG HOUSING BENEFIT,ROSSENDALE BOROUGH COUNCIL,2020887255,"50,717.00"
Department for Work and Pensions,Corporate,31/05/2011,COMPUTER SERVICES,CORPORATE IT,ATOS ORIGIN IT SERVICES UK LTD,2021098890,"50,712.58"
Department for Work and Pensions,Employment Programmes,06/05/2011,FND,WWEG EMPLOYMENT PROGRAMMES,SERCO LTD,2020780271,"50,643.00"
Department for Work and Pensions,Employment Programmes,23/05/2011,JSP ESF DEL P COSTS,WWEG EMPLOYMENT PROGRAMMES,INGEUS UK LTD,2020996142,"50,115.81"
Department for Work and Pensions,Housing Benefits,13/05/2011,HOUSING BENEFIT ADMIN,WWG HOUSING BENEFIT,WAVERLEY BOROUGH COUNCIL,2020887344,"50,074.00"
Department for Work and Pensions,Corporate,03/05/2011,OTHER PROJECTS,WWG SUMMARY,THE FULBRIGHT COMMISSION,2020691960,"50,000.00"
Department for Work and Pensions,Corporate,23/05/2011,OTHER PROJECTS,WWG SUMMARY,THE FULBRIGHT COMMISSION,2020997895,"50,000.00"
Department for Work and Pensions,Corporate,11/05/2011,OTHER GOODS AND SERVICES,EG SUMMARY,WARWICK INSTITUTE FOR EMPLOYMENT RESEARCH,2020871643,"50,000.00"
Department for Work and Pensions,Corporate,06/05/2011,AOS CONTRACTED OUT SERVICES,SHARED SERVICES,CAPITA BUSINESS SERVICES LTD,2020775854,"50,000.00"
Department for Work and Pensions,Corporate,16/05/2011,PROFESSIONAL FEES,CORPORATE AND SUPPORT SERVICES,COMMUNITY DEVELOPMENT FOUNDATION,607463,"50,000.00"
Department for Work and Pensions,Housing Benefits,13/05/2011,HOUSING BENEFIT ADMIN,WWG HOUSING BENEFIT,SOUTH STAFFORDSHIRE DISTRICT COUNCIL,2020887294,"49,608.00"
Department for Work and Pensions,"Pension, Disability Carers Services",27/05/2011,ACCOMMODATION COSTS,PENSIONS & DISABILITY CARERS SERVICE,HM REVENUE & CUSTOMS,2002623,"49,563.84"
Department for Work and Pensions,Housing Benefits,13/05/2011,HOUSING BENEFIT ADMIN,WWG HOUSING BENEFIT,NORTH WEST LEICESTER DISTRICT COUNCIL,2020887226,"49,400.00"
Department for Work and Pensions,"Pension, Disability Carers Services",03/05/2011,COMPUTER SERVICES,PENSIONS & DISABILITY CARERS SERVICE,SPECIALIST COMPUTER CENTRES PLC,2020691896,"49,333.59"
Department for Work and Pensions,European Social Fund,17/05/2011,LOW VALUE PROCUREMENT,WWEG EUROPEAN SOCIAL FUND,KNOWSLEY METROPOLITIAN BOROUGH COUNCIL,5000000577,"49,307.00"
Department for Work and Pensions,Housing Benefits,13/05/2011,HOUSING BENEFIT ADMIN,WWG HOUSING BENEFIT,CORBY BOROUGH COUNCIL,2020887066,"49,279.00"
Department for Work and Pensions,Housing Benefits,13/05/2011,HOUSING BENEFIT ADMIN,WWG HOUSING BENEFIT,HORSHAM DISTRICT COUNCIL,2020887142,"49,267.00"
Department for Work and Pensions,Employment Programmes,13/05/2011,FND,WWEG EMPLOYMENT PROGRAMMES,A4E LTD,2020881624,"49,164.00"
Department for Work and Pensions,Housing Benefits,13/05/2011,HOUSING BENEFIT ADMIN,WWG HOUSING BENEFIT,HINCKLEY & BOSWORTH BOROUGH COUNCIL,2020887141,"49,143.00"
Department for Work and Pensions,Housing Benefits,13/05/2011,HOUSING BENEFIT ADMIN,WWG HOUSING BENEFIT,SOUTH CAMBRIDGESHIRE DISTRICT COUNCIL,2020887281,"49,139.00"
Department for Work and Pensions,Corporate,10/05/2011,APPS DEV,CORPORATE AND SUPPORT SERVICES,HP ENTERPRISE SERVICES UK LTD,2020792603,"49,027.98"
Department for Work and Pensions,Employment Programmes,23/05/2011,FND,WWEG EMPLOYMENT PROGRAMMES,WORKING LINKS,2020997993,"48,825.00"
Department for Work and Pensions,Housing Benefits,13/05/2011,HOUSING BENEFIT ADMIN,WWG HOUSING BENEFIT,FOREST OF DEAN DISTRICT COUNCIL,2020887117,"48,808.00"
Department for Work and Pensions,Employment Programmes,12/05/2011,EP GENERIC PROVIDER PAYMENTS,WWEG EMPLOYMENT PROGRAMMES,CAPITAL TRAINING GROUP LTD,2020875238,"48,748.00"
Department for Work and Pensions,Employment Programmes,20/05/2011,FND,WWEG EMPLOYMENT PROGRAMMES,SKILLS TRAINING UK LIMITED,2020992143,"48,654.00"
Department for Work and Pensions,Corporate,27/05/2011,BANKING AND ENCASHMENT COSTS,GROUP FINANCE,VOCALINK,2021096814,"48,626.00"
Department for Work and Pensions,Housing Benefits,13/05/2011,HOUSING BENEFIT ADMIN,WWG HOUSING BENEFIT,SPELTHORNE BOROUGH COUNCIL,2020887298,"48,436.00"
Department for Work and Pensions,Employment Programmes,06/05/2011,JSP ESF DEL P COSTS,WWEG EMPLOYMENT PROGRAMMES,SEETEC BUSINESS TECHNOLOGY CENTRE LTD,2020780266,"48,384.63"
Department for Work and Pensions,Corporate,31/05/2011,ACCOMMODATION COSTS,GROUP FINANCE,TELEREAL TRILLIUM,2021107378,"48,329.17"
Department for Work and Pensions,Employment Programmes,20/05/2011,FND,WWEG EMPLOYMENT PROGRAMMES,WORKING LINKS,2020992476,"48,329.00"
Department for Work and Pensions,Housing Benefits,13/05/2011,HOUSING BENEFIT ADMIN,WWG HOUSING BENEFIT,NORTH KESTEVEN DISTRICT COUNCIL,2020887219,"48,177.00"
Department for Work and Pensions,Housing Benefits,13/05/2011,HOUSING BENEFIT ADMIN,WWG HOUSING BENEFIT,SOUTH OXFORDSHIRE DISTRICT COUNCIL,2020887291,"48,080.00"
Department for Work and Pensions,Corporate,18/05/2011,MANAGEMENT CONSULTANCY,CORPORATE IT,SIEMENS ENTERPRISE COMMUNICATIONS LTD,2020971266,"48,000.00"
Department for Work and Pensions,Housing Benefits,13/05/2011,HOUSING BENEFIT ADMIN,WWG HOUSING BENEFIT,THE MORAY COUNCIL,2020887326,"47,965.00"
Department for Work and Pensions,Housing Benefits,13/05/2011,HOUSING BENEFIT ADMIN,WWG HOUSING BENEFIT,LICHFIELD DISTRICT COUNCIL,2020887158,"47,741.00"
Department for Work and Pensions,Employment Programmes,06/05/2011,FND,WWEG EMPLOYMENT PROGRAMMES,SERCO LTD,2020780271,"47,736.00"
Department for Work and Pensions,Jobcentre Plus,12/05/2011,OTHER RECEIVABLES,BALANCE SHEET PAYMENTS,A4E LTD,2020874761,"47,693.87"
Department for Work and Pensions,Housing Benefits,13/05/2011,HOUSING BENEFIT ADMIN,WWG HOUSING BENEFIT,COPELAND BOROUGH COUNCIL,2020887065,"47,635.00"
Department for Work and Pensions,Employment Programmes,25/05/2011,JSP ESF DEL P COSTS,WWEG EMPLOYMENT PROGRAMMES,INGEUS UK LTD,2021036254,"47,577.75"
Department for Work and Pensions,Employment Programmes,10/05/2011,YOUNG PERSON'S GUARANTEE,WWEG EMPLOYMENT PROGRAMMES,NORTH EAST LINCOLNSHIRE COUNCIL,2020796083,"47,566.44"
Department for Work and Pensions,Corporate,31/05/2011,ACCOMMODATION COSTS,GROUP FINANCE,TELEREAL TRILLIUM,2021107377,"47,503.09"
Department for Work and Pensions,Corporate,10/05/2011,TELEPHONE AND POSTAGE,GROUP FINANCE,ROYAL MAIL GROUP PLC,2020797235,"47,449.08"
Department for Work and Pensions,Employment Programmes,20/05/2011,FND,WWEG EMPLOYMENT PROGRAMMES,SERCO LTD,2020992134,"47,404.00"
Department for Work and Pensions,Employment Programmes,09/05/2011,FND,WWEG EMPLOYMENT PROGRAMMES,CALDER UK LTD,2020782866,"47,000.00"
Department for Work and Pensions,Employment Programmes,09/05/2011,JSP ESF DEL P COSTS,WWEG EMPLOYMENT PROGRAMMES,INGEUS UK LTD,2020784615,"46,988.14"
Department for Work and Pensions,Housing Benefits,13/05/2011,HOUSING BENEFIT ADMIN,WWG HOUSING BENEFIT,EAST DUNBARTONSHIRE COUNCIL,2020887093,"46,979.00"
Department for Work and Pensions,Employment Programmes,10/05/2011,YOUNG PERSON'S GUARANTEE,WWEG EMPLOYMENT PROGRAMMES,ACTION FOR CHILDREN,2020788546,"46,957.60"
Department for Work and Pensions,Employment Programmes,24/05/2011,YOUNG PERSON'S GUARANTEE,WWEG EMPLOYMENT PROGRAMMES,NORTH EAST LINCOLNSHIRE COUNCIL,2021006379,"46,818.54"
Department for Work and Pensions,Employment Programmes,12/05/2011,ND 18-24 AND 25+,WWEG EMPLOYMENT PROGRAMMES,THE LIVERPOOL SOCIAL PARTNERSHIP,2020879306,"46,806.94"
Department for Work and Pensions,Jobcentre Plus,19/05/2011,APPS DEV,JOBCENTRE PLUS,HP ENTERPRISE SERVICES UK LTD,2020981139,"46,676.96"
Department for Work and Pensions,Corporate,06/05/2011,COMPUTER SERVICES,CHANGE MANAGEMENT DIRECTORATE,COMPUTACENTER UK LTD,2020775904,"46,651.92"
Department for Work and Pensions,Corporate,31/05/2011,ACCOMMODATION COSTS,GROUP FINANCE,TELEREAL TRILLIUM,2021107379,"46,561.56"
Department for Work and Pensions,Housing Benefits,13/05/2011,HOUSING BENEFIT ADMIN,WWG HOUSING BENEFIT,MONMOUTHSHIRE COUNTY  COUNCIL,2020887206,"46,448.00"
Department for Work and Pensions,Housing Benefits,13/05/2011,HOUSING BENEFIT ADMIN,WWG HOUSING BENEFIT,SOUTH HAMS DISTRICT COUNCIL,2020887284,"46,266.00"
Department for Work and Pensions,Employment Programmes,23/05/2011,FND,WWEG EMPLOYMENT PROGRAMMES,SERCO LTD,2020997752,"46,197.00"
Department for Work and Pensions,Jobcentre Plus,06/05/2011,OTHER RECEIVABLES,BALANCE SHEET PAYMENTS,CHARTER TRAINING,2020775871,"46,147.21"
Department for Work and Pensions,Housing Benefits,13/05/2011,HOUSING BENEFIT ADMIN,WWG HOUSING BENEFIT,STIRLING COUNCIL,2020887305,"46,099.00"
Department for Work and Pensions,Housing Benefits,13/05/2011,HOUSING BENEFIT ADMIN,WWG HOUSING BENEFIT,WEST OXFORDSHIRE DISTRICT COUNCIL,2020887354,"46,058.00"
Department for Work and Pensions,Employment Programmes,10/05/2011,YOUNG PERSON'S GUARANTEE,WWEG EMPLOYMENT PROGRAMMES,POWYS COUNTY COUNCIL,2020800202,"46,050.00"
Department for Work and Pensions,Employment Programmes,09/05/2011,WORKSTEP,WWEG EMPLOYMENT PROGRAMMES,SCOPE,2020786340,"46,000.00"
Department for Work and Pensions,Housing Benefits,13/05/2011,HOUSING BENEFIT ADMIN,WWG HOUSING BENEFIT,WOKINGHAM DISTRICT COUNCIL,2020887363,"45,811.00"
Department for Work and Pensions,Jobcentre Plus,31/05/2011,MEDICAL SERVICES,JOBCENTRE PLUS,ATOS ORIGIN MEDICAL SERVICES,2021098891,"45,750.00"
Department for Work and Pensions,Housing Benefits,13/05/2011,HOUSING BENEFIT ADMIN,WWG HOUSING BENEFIT,WOKING BOROUGH COUNCIL,2020887362,"45,675.00"
Department for Work and Pensions,Employment Programmes,05/05/2011,ND 18-24 AND 25+,WWEG EMPLOYMENT PROGRAMMES,WORKING LINKS,2020773648,"45,636.40"
Department for Work and Pensions,Employment Programmes,16/05/2011,YOUNG PERSON'S GUARANTEE,WWEG EMPLOYMENT PROGRAMMES,DUNDEE CITY COUNCIL,2020891229,"45,557.05"
Department for Work and Pensions,Housing Benefits,13/05/2011,HOUSING BENEFIT ADMIN,WWG HOUSING BENEFIT,ISLE OF ANGLESEY COUNTY COUNCIL,2020887147,"45,478.00"
Department for Work and Pensions,Jobcentre Plus,26/05/2011,OTHER GOODS AND SERVICES,JOBCENTRE PLUS,VALUATION OFFICE AGENCY,2021090696,"45,380.00"
Department for Work and Pensions,Jobcentre Plus,10/05/2011,APPS DEV,JOBCENTRE PLUS,HP ENTERPRISE SERVICES UK LTD,2020792603,"45,351.71"
Department for Work and Pensions,Employment Programmes,03/05/2011,YOUNG PERSON'S GUARANTEE,WWEG EMPLOYMENT PROGRAMMES,ADCRIS CIC,2020689211,"45,122.91"
Department for Work and Pensions,Jobcentre Plus,03/05/2011,OTHER RECEIVABLES,BALANCE SHEET PAYMENTS,BISCOM RESOURCE MANAGEMENT,2020689276,"45,113.19"
Department for Work and Pensions,Jobcentre Plus,26/05/2011,OTHER RECEIVABLES,BALANCE SHEET PAYMENTS,BISCOM RESOURCE MANAGEMENT,2021084714,"45,113.19"
Department for Work and Pensions,Employment Programmes,25/05/2011,YOUNG PERSON'S GUARANTEE,WWEG EMPLOYMENT PROGRAMMES,LUTON BOROUGH COUNCIL,2021053969,"45,065.65"
Department for Work and Pensions,Corporate,05/05/2011,OTHER GOODS AND SERVICES,EG SUMMARY,INSTITUTE FOR EMPLOYMENT STUDIES,2020770906,"45,015.00"
Department for Work and Pensions,Corporate,10/05/2011,OTHER GOODS AND SERVICES,EG SUMMARY,OXFORD INSTITUTE OF SOCIAL POLICY,2020796133,"45,000.00"
Department for Work and Pensions,Corporate,06/05/2011,OTHER PROJECTS,GROUP FINANCE,HALTON CREDIT UNION LTD,2020777812,"45,000.00"
Department for Work and Pensions,Corporate,23/05/2011,OTHER PROJECTS,GROUP FINANCE,NORTH WALES CREDIT UNION,2020997134,"45,000.00"
Department for Work and Pensions,Employment Programmes,25/05/2011,FND,WWEG EMPLOYMENT PROGRAMMES,SERCO LTD,2021076116,"44,982.00"
Department for Work and Pensions,Housing Benefits,13/05/2011,HOUSING BENEFIT ADMIN,WWG HOUSING BENEFIT,TAMWORTH BOROUGH COUNCIL,2020887318,"44,914.00"
Department for Work and Pensions,Housing Benefits,13/05/2011,HOUSING BENEFIT ADMIN,WWG HOUSING BENEFIT,WINCHESTER CITY COUNCIL,2020887359,"44,807.00"
Department for Work and Pensions,Corporate,10/05/2011,APPS DEV,SHARED SERVICES,HP ENTERPRISE SERVICES UK LTD,2020792603,"44,720.69"
Department for Work and Pensions,Employment Programmes,17/05/2011,YOUNG PERSON'S GUARANTEE,WWEG EMPLOYMENT PROGRAMMES,NEWHAM COLLEGE OF FURTHER EDUCATION,2020903338,"44,550.00"
Department for Work and Pensions,Jobcentre Plus,19/05/2011,OTHER RECEIVABLES,BALANCE SHEET PAYMENTS,TNG BUSINESS SUPPORT LTD,2020984149,"44,521.60"
Department for Work and Pensions,Jobcentre Plus,06/05/2011,OTHER RECEIVABLES,BALANCE SHEET PAYMENTS,TNG BUSINESS SUPPORT LTD,2020780481,"44,444.44"
Department for Work and Pensions,Corporate,17/05/2011,APPS DEV,UNIVERSAL CREDIT,HP ENTERPRISE SERVICES UK LTD,2020900355,"44,263.58"
Department for Work and Pensions,Corporate,31/05/2011,ACCOMMODATION COSTS,GROUP FINANCE,TELEREAL TRILLIUM,2021107377,"44,197.02"
Department for Work and Pensions,Housing Benefits,13/05/2011,HOUSING BENEFIT ADMIN,WWG HOUSING BENEFIT,EAST NORTHANTS DISTRICT COUNCIL,2020887098,"44,176.00"
Department for Work and Pensions,Corporate,06/05/2011,AOS CONTRACTED OUT SERVICES,SHARED SERVICES,CREDIT SOLUTIONS,2020775915,"44,131.59"
Department for Work and Pensions,Corporate,20/05/2011,TEMPORARY (TEMP) STAFF COSTS,CORPORATE  IT,CAPITA RESOURCING LTD,2020987599,"44,003.23"
Department for Work and Pensions,Employment Programmes,16/05/2011,YOUNG PERSON'S GUARANTEE,WWEG EMPLOYMENT PROGRAMMES,ROYAL BOROUGH OF WINDSOR & MAIDENHEAD,2020893257,"43,950.00"
Department for Work and Pensions,Employment Programmes,20/05/2011,YOUNG PERSON'S GUARANTEE,WWEG EMPLOYMENT PROGRAMMES,SCOTTISH WILDLIFE TRUST,2020992127,"43,882.61"
Department for Work and Pensions,Corporate,31/05/2011,ACCOMMODATION COSTS,GROUP FINANCE,TELEREAL TRILLIUM,2021107379,"43,861.53"
Department for Work and Pensions,Employment Programmes,31/05/2011,JSP ESF DEL P COSTS,WWEG EMPLOYMENT PROGRAMMES,INGEUS UK LTD,2021102451,"43,576.54"
Department for Work and Pensions,Employment Programmes,12/05/2011,EP GENERIC PROVIDER PAYMENTS,WWEG EMPLOYMENT PROGRAMMES,WORKING LINKS,2020879473,"43,546.00"
Department for Work and Pensions,Corporate,23/05/2011,COMPUTER SERVICES,CHANGE MANAGEMENT DIRECTORATE,ATOS ORIGIN IT SERVICES UK LTD,2020993922,"43,481.31"
Department for Work and Pensions,Jobcentre Plus,06/05/2011,OTHER RECEIVABLES,BALANCE SHEET PAYMENTS,STANDGUIDE LTD,2020780308,"43,460.29"
Department for Work and Pensions,Corporate,09/05/2011,TEMPORARY (TEMP) STAFF COSTS,CORPORATE  IT,CAPITA RESOURCING LTD,2020782870,"43,400.11"
Department for Work and Pensions,Housing Benefits,13/05/2011,HOUSING BENEFIT ADMIN,WWG HOUSING BENEFIT,BOSTON BOROUGH COUNCIL,2020887020,"43,363.00"
Department for Work and Pensions,Housing Benefits,13/05/2011,HOUSING BENEFIT ADMIN,WWG HOUSING BENEFIT,FAREHAM BOROUGH COUNCIL,2020887112,"43,228.00"
Department for Work and Pensions,European Social Fund,17/05/2011,ESF NON-PREFUNDED EXPENDITURE,WWEG EUROPEAN SOCIAL FUND,YORKSHIRE FORWARD,5000000580,"43,122.00"
Department for Work and Pensions,Jobcentre Plus,11/05/2011,ACCOMMODATION COSTS,JOBCENTRE PLUS,TELEREAL TRILLIUM,2020869789,"43,111.99"
Department for Work and Pensions,Employment Programmes,05/05/2011,FND,WWEG EMPLOYMENT PROGRAMMES,SERCO LTD,2020773308,"43,011.00"
Department for Work and Pensions,Employment Programmes,27/05/2011,FND,WWEG EMPLOYMENT PROGRAMMES,SKILLS TRAINING UK LIMITED,2021096668,"42,944.00"
Department for Work and Pensions,Corporate,06/05/2011,PROFESSIONAL FEES,CORPORATE AND SUPPORT SERVICES,TNS BMRB,2020780489,"42,862.67"
Department for Work and Pensions,Jobcentre Plus,26/05/2011,OTHER RECEIVABLES,BALANCE SHEET PAYMENTS,SCOUT ENTERPRISES WESTERN LTD,2021090325,"42,862.50"
Department for Work and Pensions,Jobcentre Plus,03/05/2011,OTHER RECEIVABLES,BALANCE SHEET PAYMENTS,NORTH WESSEX TRAINING,2020691554,"42,804.75"
Department for Work and Pensions,Jobcentre Plus,26/05/2011,OTHER RECEIVABLES,BALANCE SHEET PAYMENTS,NORTH WESSEX TRAINING,2021088965,"42,804.75"
Department for Work and Pensions,Housing Benefits,13/05/2011,HOUSING BENEFIT ADMIN,WWG HOUSING BENEFIT,CEREDIGION COUNTY COUNCIL,2020887045,"42,774.00"
Department for Work and Pensions,Corporate,31/05/2011,ACCOMMODATION COSTS,GROUP FINANCE,TELEREAL TRILLIUM,2021107377,"42,755.75"
Department for Work and Pensions,Housing Benefits,13/05/2011,HOUSING BENEFIT ADMIN,WWG HOUSING BENEFIT,THREE RIVERS DISTRICT COUNCIL,2020887327,"42,440.00"
Department for Work and Pensions,Employment Programmes,10/05/2011,FND,WWEG EMPLOYMENT PROGRAMMES,FOURSTAR EMPLOYMENT & SKILLS LTD,2020792036,"42,260.00"
Department for Work and Pensions,Employment Programmes,10/05/2011,FND,WWEG EMPLOYMENT PROGRAMMES,CALDER UK LTD,2020789576,"42,236.00"
Department for Work and Pensions,Employment Programmes,04/05/2011,FND,WWEG EMPLOYMENT PROGRAMMES,SERCO LTD,2020760526,"42,228.00"
Department for Work and Pensions,Housing Benefits,13/05/2011,HOUSING BENEFIT ADMIN,WWG HOUSING BENEFIT,STAFFORDSHIRE MOORLANDS DISTRICT COUNCIL,2020887303,"42,195.00"
Department for Work and Pensions,Employment Programmes,09/05/2011,HELP FOR UNEMPLOYED PEOPLE OTHER,WWEG EMPLOYMENT PROGRAMMES,PENNINE LANCASHIRE CITY STRATEGY PATHFINDER,2020785853,"42,160.00"
Department for Work and Pensions,Employment Programmes,09/05/2011,HELP FOR UNEMPLOYED PEOPLE OTHER,WWEG EMPLOYMENT PROGRAMMES,WEST LONDON CITY STRATEGY,2020786609,"42,160.00"
Department for Work and Pensions,Employment Programmes,23/05/2011,WORKSTEP,WWEG EMPLOYMENT PROGRAMMES,NORTH LANARKSHIRE COUNCIL,2020997131,"42,000.00"
Department for Work and Pensions,Housing Benefits,13/05/2011,HOUSING BENEFIT ADMIN,WWG HOUSING BENEFIT,TORRIDGE DISTRICT COUNCIL,2020887332,"41,926.00"
Department for Work and Pensions,Housing Benefits,13/05/2011,HOUSING BENEFIT ADMIN,WWG HOUSING BENEFIT,SOUTH LAKELAND DISTRICT COUNCIL,2020887287,"41,699.00"
Department for Work and Pensions,Housing Benefits,13/05/2011,HOUSING BENEFIT ADMIN,WWG HOUSING BENEFIT,RUNNYMEDE BOROUGH COUNCIL,2020887260,"41,666.00"
Department for Work and Pensions,Corporate,16/05/2011,COMPUTER SERVICES,CORPORATE  IT,BT GLOBAL SERVICES,2020888911,"41,649.00"
Department for Work and Pensions,Employment Programmes,09/05/2011,FND,WWEG EMPLOYMENT PROGRAMMES,A4E LTD,2020782587,"41,569.00"
Department for Work and Pensions,Housing Benefits,13/05/2011,HOUSING BENEFIT ADMIN,WWG HOUSING BENEFIT,BABERGH DISTRICT COUNCIL,2020887002,"41,488.00"
Department for Work and Pensions,Corporate,31/05/2011,ACCOMMODATION COSTS,GROUP FINANCE,TELEREAL TRILLIUM,2021107379,"41,442.02"
Department for Work and Pensions,Housing Benefits,13/05/2011,HOUSING BENEFIT ADMIN,WWG HOUSING BENEFIT,COTSWOLD DISTRICT COUNCIL,2020887069,"41,367.00"
Department for Work and Pensions,Corporate,09/05/2011,TEMPORARY (TEMP) STAFF COSTS,CORPORATE  IT,CAPITA RESOURCING LTD,2020782870,"41,286.79"
Department for Work and Pensions,Housing Benefits,13/05/2011,HOUSING BENEFIT ADMIN,WWG HOUSING BENEFIT,TEWKESBURY BOROUGH COUNCIL,2020887324,"41,076.00"
Department for Work and Pensions,"Pension, Disability Carers Services",09/05/2011,ACCOMMODATION COSTS,PENSIONS & DISABILITY CARERS SERVICE,SOUTHERN ELECTRIC PLC,2020786368,"40,929.97"
Department for Work and Pensions,Corporate,13/05/2011,AOS CONTRACTED OUT SERVICES,SHARED SERVICES,FAIRFAX SOLICITORS LTD,2020884054,"40,915.40"
Department for Work and Pensions,Jobcentre Plus,03/05/2011,OTHER RECEIVABLES,BALANCE SHEET PAYMENTS,CAREERS DEVELOPMENT GROUP LTD,2020689405,"40,885.19"
Department for Work and Pensions,Employment Programmes,27/05/2011,YOUNG PERSON'S GUARANTEE,WWEG EMPLOYMENT PROGRAMMES,WALSALL METROPOLITAN BOROUGH COUNCIL,2021096850,"40,800.00"
Department for Work and Pensions,Corporate,31/05/2011,ACCOMMODATION COSTS,GROUP FINANCE,TELEREAL TRILLIUM,2021107377,"40,670.10"
Department for Work and Pensions,Employment Programmes,03/05/2011,YOUNG PERSON'S GUARANTEE,WWEG EMPLOYMENT PROGRAMMES,TRAINING FOR LIFE LTD,2020691987,"40,650.00"
Department for Work and Pensions,Employment Programmes,25/05/2011,FND,WWEG EMPLOYMENT PROGRAMMES,SERCO LTD,2021076116,"40,632.00"
Department for Work and Pensions,Housing Benefits,13/05/2011,HOUSING BENEFIT ADMIN,WWG HOUSING BENEFIT,MID DEVON DISTRICT COUNCIL,2020887199,"40,537.00"
Department for Work and Pensions,Employment Programmes,17/05/2011,YOUNG PERSON'S GUARANTEE,WWEG EMPLOYMENT PROGRAMMES,SHAW TRUST LTD,2020905243,"40,487.20"
Department for Work and Pensions,Employment Programmes,20/05/2011,FND,WWEG EMPLOYMENT PROGRAMMES,THE WISE GROUP,2020992331,"40,455.00"
Department for Work and Pensions,Housing Benefits,13/05/2011,HOUSING BENEFIT ADMIN,WWG HOUSING BENEFIT,EAST CAMBRIDGESHIRE DISTRICT COUNCIL,2020887090,"40,444.00"
Department for Work and Pensions,Housing Benefits,13/05/2011,HOUSING BENEFIT ADMIN,WWG HOUSING BENEFIT,SOUTH DERBYSHIRE DISTRICT COUNCIL,2020887282,"40,436.00"
Department for Work and Pensions,Corporate,09/05/2011,TELEPHONE AND POSTAGE,GROUP FINANCE,ROYAL MAIL GROUP PLC,2020786043,"40,275.85"
Department for Work and Pensions,Jobcentre Plus,12/05/2011,OTHER RECEIVABLES,BALANCE SHEET PAYMENTS,WORKING LINKS EMPLOYMENT LIMITED,2020879475,"40,189.81"
Department for Work and Pensions,Employment Programmes,06/05/2011,FND,WWEG EMPLOYMENT PROGRAMMES,SKILLS TRAINING UK LIMITED,2020780286,"40,075.00"
Department for Work and Pensions,"Pension, Disability Carers Services",10/05/2011,APPS DEV,PENSIONS & DISABILITY CARERS SERVICE,HP ENTERPRISE SERVICES UK LTD,2020792603,"40,006.12"
Department for Work and Pensions,Employment Programmes,23/05/2011,WORKSTEP,WWEG EMPLOYMENT PROGRAMMES,DURHAM COUNTY COUNCIL,2020995791,"40,000.00"
Department for Work and Pensions,Corporate,03/05/2011,PROFESSIONAL FEES,CORPORATE AND SUPPORT SERVICES,NATCEN,2020691535,"40,000.00"
Department for Work and Pensions,Jobcentre Plus,03/05/2011,OTHER RECEIVABLES,BALANCE SHEET PAYMENTS,SHROPSHIRE COUNTY TRAINING,2020691874,"40,000.00"
Department for Work and Pensions,Jobcentre Plus,26/05/2011,OTHER RECEIVABLES,BALANCE SHEET PAYMENTS,SHROPSHIRE COUNTY TRAINING,2021090344,"40,000.00"
Department for Work and Pensions,Employment Programmes,20/05/2011,FND,WWEG EMPLOYMENT PROGRAMMES,SERCO LTD,2020992134,"39,825.00"
Department for Work and Pensions,Employment Programmes,20/05/2011,FND,WWEG EMPLOYMENT PROGRAMMES,A4E LTD,2020987116,"39,780.00"
Department for Work and Pensions,Housing Benefits,13/05/2011,HOUSING BENEFIT ADMIN,WWG HOUSING BENEFIT,RUSHCLIFFE BOROUGH COUNCIL,2020887261,"39,778.00"
Department for Work and Pensions,Employment Programmes,19/05/2011,JSP ESF DEL P COSTS,WWEG EMPLOYMENT PROGRAMMES,SEETEC BUSINESS TECHNOLOGY CENTRE LTD,2020983883,"39,744.47"
Department for Work and Pensions,Employment Programmes,09/05/2011,FND,WWEG EMPLOYMENT PROGRAMMES,CALDER UK LTD,2020782866,"39,733.00"
Department for Work and Pensions,Jobcentre Plus,26/05/2011,PROFESSIONAL FEES,JOBCENTRE PLUS,TAMESIDE METROPOLITAN BOROUGH COUNCIL,2021090588,"39,642.00"
Department for Work and Pensions,European Social Fund,09/05/2011,ESF NON-PREFUNDED EXPENDITURE,WWEG EUROPEAN SOCIAL FUND,COVER,5000000564,"39,525.00"
Department for Work and Pensions,Housing Benefits,13/05/2011,HOUSING BENEFIT ADMIN,WWG HOUSING BENEFIT,CLACKMANNANSHIRE COUNCIL,2020887061,"39,489.00"
Department for Work and Pensions,Employment Programmes,13/05/2011,FND,WWEG EMPLOYMENT PROGRAMMES,SERCO LTD,2020886628,"39,474.00"
Department for Work and Pensions,Corporate,04/05/2011,COMPUTER SERVICES,CORPORATE IT,HUTCHISON 3G UK LTD,2020719506,"39,458.22"
Department for Work and Pensions,Housing Benefits,13/05/2011,HOUSING BENEFIT ADMIN,WWG HOUSING BENEFIT,HAMBLETON DISTRICT COUNCIL,2020887129,"39,421.00"
Department for Work and Pensions,Jobcentre Plus,26/05/2011,OTHER RECEIVABLES,BALANCE SHEET PAYMENTS,CLAVERHOUSE GROUP,2021085156,"39,008.62"
Department for Work and Pensions,Employment Programmes,10/05/2011,FND,WWEG EMPLOYMENT PROGRAMMES,FOURSTAR EMPLOYMENT & SKILLS LTD,2020792036,"38,847.00"
Department for Work and Pensions,Jobcentre Plus,23/05/2011,ACCOMMODATION COSTS,JOBCENTRE PLUS,DTZ,1004803,"38,714.93"
Department for Work and Pensions,Employment Programmes,27/05/2011,FND,WWEG EMPLOYMENT PROGRAMMES,MAXIMUS EMPLOYMENT UK LTD,2021096020,"38,500.00"
Department for Work and Pensions,Housing Benefits,13/05/2011,HOUSING BENEFIT ADMIN,WWG HOUSING BENEFIT,MID SUFFOLK DISTRICT COUNCIL,2020887200,"38,488.00"
Department for Work and Pensions,Employment Programmes,23/05/2011,FND,WWEG EMPLOYMENT PROGRAMMES,INGEUS UK LTD,2020996142,"38,350.00"
Department for Work and Pensions,Corporate,31/05/2011,ACCOMMODATION COSTS,GROUP FINANCE,TELEREAL TRILLIUM,2021107377,"38,302.98"
Department for Work and Pensions,Housing Benefits,13/05/2011,HOUSING BENEFIT ADMIN,WWG HOUSING BENEFIT,EAST DORSET DISTRICT COUNCIL,2020887092,"38,262.00"
Department for Work and Pensions,Employment Programmes,03/05/2011,FND,WWEG EMPLOYMENT PROGRAMMES,SERCO LTD,2020691862,"38,232.00"
Department for Work and Pensions,Employment Programmes,27/05/2011,FND,WWEG EMPLOYMENT PROGRAMMES,SERCO LTD,2021096652,"38,232.00"
Department for Work and Pensions,Corporate,20/05/2011,COMPUTER SERVICES,CHANGE MANAGEMENT DIRECTORATE,SPECIALIST COMPUTER CENTRES PLC,2020992153,"38,232.00"
Department for Work and Pensions,Corporate,03/05/2011,COMPUTER SERVICES,SHARED SERVICES,FUJITSU SERVICES LTD,2020690949,"38,033.00"
Department for Work and Pensions,Housing Benefits,13/05/2011,HOUSING BENEFIT ADMIN,WWG HOUSING BENEFIT,FYLDE BOROUGH COUNCIL,2020887118,"37,921.00"
Department for Work and Pensions,Corporate,17/05/2011,APPS DEV,CORPORATE IT,HP ENTERPRISE SERVICES UK LTD,2020900355,"37,793.92"
Department for Work and Pensions,Employment Programmes,17/05/2011,ACCESS TO WORK,WWEG EMPLOYMENT PROGRAMMES,DORSET POLICE AUTHORITY,2020897337,"37,683.12"
Department for Work and Pensions,Employment Programmes,04/05/2011,FND,WWEG EMPLOYMENT PROGRAMMES,WORKING LINKS,2020765661,"37,665.00"
Department for Work and Pensions,Employment Programmes,20/05/2011,FND,WWEG EMPLOYMENT PROGRAMMES,WORKING LINKS,2020992476,"37,665.00"
Department for Work and Pensions,Housing Benefits,13/05/2011,HOUSING BENEFIT ADMIN,WWG HOUSING BENEFIT,SELBY DISTRICT COUNCIL,2020887271,"37,652.00"
Department for Work and Pensions,Employment Programmes,20/05/2011,YOUNG PERSON'S GUARANTEE,WWEG EMPLOYMENT PROGRAMMES,LONDON BOROUGH OF LAMBETH LEMBETH FIRST,2020990648,"37,650.00"
Department for Work and Pensions,Employment Programmes,16/05/2011,HELP FOR DISABLED PEOPLE,WWEG EMPLOYMENT PROGRAMMES,RNIB ROYAL NATIONAL INSTITUTE FOR THE BLIND,2020893254,"37,543.33"
Department for Work and Pensions,Employment Programmes,18/05/2011,YOUNG PERSON'S GUARANTEE,WWEG EMPLOYMENT PROGRAMMES,BUCKINGHAMSHIRE COUNTY COUNCIL,2020914108,"37,500.00"
Department for Work and Pensions,Corporate,31/05/2011,ACCOMMODATION COSTS,SHARED SERVICES,TELEREAL TRILLIUM,2021107379,"37,411.07"
Department for Work and Pensions,Housing Benefits,13/05/2011,HOUSING BENEFIT ADMIN,WWG HOUSING BENEFIT,CHILTERN DISTRICT COUNCIL,2020887054,"37,274.00"
Department for Work and Pensions,Employment Programmes,23/05/2011,FND,WWEG EMPLOYMENT PROGRAMMES,SERCO LTD,2020997752,"37,246.00"
Department for Work and Pensions,Employment Programmes,13/05/2011,FND,WWEG EMPLOYMENT PROGRAMMES,A4E LTD,2020881624,"37,191.00"
Department for Work and Pensions,Corporate,11/05/2011,OTHER PROJECTS,GROUP FINANCE,PARK ROAD COMMUNITY CREDIT UNION LTD,2020855087,"37,125.00"
Department for Work and Pensions,Jobcentre Plus,26/05/2011,OTHER RECEIVABLES,BALANCE SHEET PAYMENTS,TRAINING WEST LANCASHIRE LTD,2021090620,"37,092.55"
Department for Work and Pensions,Corporate,05/05/2011,OTHER GOODS AND SERVICES,EG SUMMARY,THE UNIVERSITY OF WARWICK,2020773499,"37,000.00"
Department for Work and Pensions,Housing Benefits,13/05/2011,HOUSING BENEFIT ADMIN,WWG HOUSING BENEFIT,ROCHFORD DISTRICT COUNCIL,2020887254,"36,812.00"
Department for Work and Pensions,Employment Programmes,26/05/2011,YOUNG PERSON'S GUARANTEE,WWEG EMPLOYMENT PROGRAMMES,REDCAR & CLEVELAND BOROUGH COUNCIL,2021089674,"36,750.00"
Department for Work and Pensions,Jobcentre Plus,04/05/2011,ACCOMMODATION COSTS,JOBCENTRE PLUS,TELEREAL TRILLIUM,2020763734,"36,744.29"
Department for Work and Pensions,Jobcentre Plus,19/05/2011,ACCOMMODATION COSTS,JOBCENTRE PLUS,COPELAND BOROUGH COUNCIL,1004798,"36,714.00"
Department for Work and Pensions,Corporate,09/05/2011,TEMPORARY (TEMP) STAFF COSTS,CORPORATE  IT,CAPITA RESOURCING LTD,2020782870,"36,658.03"
Department for Work and Pensions,Jobcentre Plus,26/05/2011,OTHER RECEIVABLES,BALANCE SHEET PAYMENTS,TNG BUSINESS SUPPORT LTD.,2021090608,"36,657.99"
Department for Work and Pensions,Employment Programmes,17/05/2011,ACCESS TO WORK,WWEG EMPLOYMENT PROGRAMMES,ROYAL BRITISH LEGION INDUSTRIES,2020904319,"36,377.58"
Department for Work and Pensions,Housing Benefits,13/05/2011,HOUSING BENEFIT ADMIN,WWG HOUSING BENEFIT,BROMSGROVE DISTRICT COUNCIL,2020887031,"36,360.00"
Department for Work and Pensions,Housing Benefits,13/05/2011,HOUSING BENEFIT ADMIN,WWG HOUSING BENEFIT,BLABY DISTRICT COUNCIL,2020887011,"36,318.00"
Department for Work and Pensions,Employment Programmes,27/05/2011,FND,WWEG EMPLOYMENT PROGRAMMES,PERTEMPS,2021096270,"36,163.00"
Department for Work and Pensions,Corporate,06/05/2011,MANAGEMENT CONSULTANCY,CORPORATE  IT,HP ENTERPRISE SERVICES UK LTD,2020777825,"36,160.00"
Department for Work and Pensions,Corporate,25/05/2011,ACCOMMODATION COSTS,GROUP FINANCE,TELEREAL TRILLIUM,2021079260,"36,104.21"
Department for Work and Pensions,Housing Benefits,13/05/2011,HOUSING BENEFIT ADMIN,WWG HOUSING BENEFIT,ADUR DISTRICT COUNCIL,2020886993,"36,057.00"
Department for Work and Pensions,Jobcentre Plus,03/05/2011,OTHER RECEIVABLES,BALANCE SHEET PAYMENTS,SHAW TRUST LTD,2020691865,"36,000.09"
Department for Work and Pensions,Corporate,03/05/2011,OTHER PROJECTS,GROUP FINANCE,CORNISH COMMUNITY BANKING,2020689438,"36,000.00"
Department for Work and Pensions,Employment Programmes,17/05/2011,WORKSTEP,WWEG EMPLOYMENT PROGRAMMES,RHONDDA CYNON TAFF CBC,2020907102,"36,000.00"
Department for Work and Pensions,Housing Benefits,13/05/2011,HOUSING BENEFIT ADMIN,WWG HOUSING BENEFIT,MALVERN HILLS DISTRICT COUNCIL,2020887192,"35,954.00"
Department for Work and Pensions,Jobcentre Plus,06/05/2011,ACCOMMODATION COSTS,JOBCENTRE PLUS,BRADFORD METROPOLITAN BOROUGH COUNCIL,2020782306,"35,884.79"
Department for Work and Pensions,Employment Programmes,20/05/2011,YOUNG PERSON'S GUARANTEE,WWEG EMPLOYMENT PROGRAMMES,SCOTTISH WILDLIFE TRUST,2020992126,"35,795.03"
Department for Work and Pensions,Employment Programmes,03/05/2011,FND,WWEG EMPLOYMENT PROGRAMMES,SKILLS TRAINING UK LIMITED,2020691885,"35,775.00"
Department for Work and Pensions,Employment Programmes,23/05/2011,FND,WWEG EMPLOYMENT PROGRAMMES,SKILLS TRAINING UK LIMITED,2020997761,"35,775.00"
Department for Work and Pensions,Employment Programmes,25/05/2011,FND,WWEG EMPLOYMENT PROGRAMMES,SERCO LTD,2021076116,"35,750.00"
Department for Work and Pensions,Employment Programmes,19/05/2011,ACCESS TO WORK,WWEG EMPLOYMENT PROGRAMMES,ACTION DEAFNESS,2020979297,"35,580.00"
Department for Work and Pensions,Housing Benefits,13/05/2011,HOUSING BENEFIT ADMIN,WWG HOUSING BENEFIT,EAST RENFREWSHIRE COUNCIL,2020887099,"35,320.00"
Department for Work and Pensions,Corporate,17/05/2011,APPS DEV,CORPORATE IT,HP ENTERPRISE SERVICES UK LTD,2020900355,"35,163.24"
Department for Work and Pensions,Employment Programmes,27/05/2011,FND,WWEG EMPLOYMENT PROGRAMMES,A4E LTD,2021092778,"35,124.00"
Department for Work and Pensions,European Social Fund,09/05/2011,LOW VALUE PROCUREMENT,WWEG EUROPEAN SOCIAL FUND,ESSEX COUNTY COUNCIL,5000000565,"35,099.00"
Department for Work and Pensions,Jobcentre Plus,03/05/2011,OTHER RECEIVABLES,BALANCE SHEET PAYMENTS,KENNEDY SCOTT LTD,2020691261,"34,991.18"
Department for Work and Pensions,Jobcentre Plus,26/05/2011,OTHER RECEIVABLES,BALANCE SHEET PAYMENTS,KENNEDY SCOTT LTD,2021087805,"34,991.18"
Department for Work and Pensions,Housing Benefits,13/05/2011,HOUSING BENEFIT ADMIN,WWG HOUSING BENEFIT,DAVENTRY DISTRICT COUNCIL,2020887078,"34,956.00"
Department for Work and Pensions,Corporate,12/05/2011,COMPUTER SERVICES,CORPORATE IT,ACCENTURE UK LTD,2020874771,"34,921.51"
Department for Work and Pensions,Employment Programmes,19/05/2011,FND,WWEG EMPLOYMENT PROGRAMMES,SERCO LTD,2020983889,"34,884.00"
Department for Work and Pensions,Employment Programmes,25/05/2011,FND,WWEG EMPLOYMENT PROGRAMMES,WORKING LINKS,2021081151,"34,875.00"
Department for Work and Pensions,Employment Programmes,03/05/2011,YOUNG PERSON'S GUARANTEE,WWEG EMPLOYMENT PROGRAMMES,COMMUNITY SKILLS PARTNERSHIP,2020689437,"34,830.90"
Department for Work and Pensions,Corporate,10/05/2011,ACCOMMODATION COSTS,GROUP FINANCE,TELEREAL TRILLIUM,2020798730,"34,691.03"
Department for Work and Pensions,Housing Benefits,13/05/2011,HOUSING BENEFIT ADMIN,WWG HOUSING BENEFIT,MOLE VALLEY DISTRICT COUNCIL,2020887205,"34,684.00"
Department for Work and Pensions,Employment Programmes,12/05/2011,FND,WWEG EMPLOYMENT PROGRAMMES,REMPLOY LTD,2020878612,"34,658.00"
Department for Work and Pensions,Housing Benefits,13/05/2011,HOUSING BENEFIT ADMIN,WWG HOUSING BENEFIT,NORTH WARWICKSHIRE DISTRICT COUNCIL,2020887225,"34,654.00"
Department for Work and Pensions,Employment Programmes,04/05/2011,FND,WWEG EMPLOYMENT PROGRAMMES,A4E LTD,2020699285,"34,636.00"
Department for Work and Pensions,Employment Programmes,09/05/2011,FND,WWEG EMPLOYMENT PROGRAMMES,A4E LTD,2020782587,"34,636.00"
Department for Work and Pensions,European Social Fund,17/05/2011,ESF NON-PREFUNDED EXPENDITURE,WWEG EUROPEAN SOCIAL FUND,SHAPING NORFOLKS FUTURE,5000000579,"34,589.00"
Department for Work and Pensions,Employment Programmes,03/05/2011,YOUNG PERSON'S GUARANTEE,WWEG EMPLOYMENT PROGRAMMES,BUCKINGHAMSHIRE COUNTY COUNCIL,2020689299,"34,500.00"
Department for Work and Pensions,Corporate,16/05/2011,COMPUTER SERVICES,CORPORATE AND SUPPORT SERVICES,HP ENTERPRISE SERVICES UK LTD,2020891593,"34,426.71"
Department for Work and Pensions,Employment Programmes,31/05/2011,NDDP,WWEG EMPLOYMENT PROGRAMMES,SEETEC,2021107043,"34,392.20"
Department for Work and Pensions,Employment Programmes,24/05/2011,YOUNG PERSON'S GUARANTEE,WWEG EMPLOYMENT PROGRAMMES,BRISTOL CITY COUNCIL,2021000045,"34,350.00"
Department for Work and Pensions,Employment Programmes,05/05/2011,FND,WWEG EMPLOYMENT PROGRAMMES,SKILLS TRAINING UK LIMITED,2020773322,"34,344.00"
Department for Work and Pensions,Employment Programmes,06/05/2011,FND,WWEG EMPLOYMENT PROGRAMMES,WORKING LINKS,2020780621,"34,298.00"
Department for Work and Pensions,Housing Benefits,13/05/2011,HOUSING BENEFIT ADMIN,WWG HOUSING BENEFIT,FOREST HEATH DISTRICT COUNCIL,2020887116,"34,169.00"
Department for Work and Pensions,Employment Programmes,24/05/2011,YOUNG PERSON'S GUARANTEE,WWEG EMPLOYMENT PROGRAMMES,COLCHESTER BOROUGH COUNCIL,2021000709,"34,058.70"
Department for Work and Pensions,Employment Programmes,17/05/2011,YOUNG PERSON'S GUARANTEE,WWEG EMPLOYMENT PROGRAMMES,WALSALL METROPOLITAN BOROUGH COUNCIL,2020905839,"34,050.00"
Department for Work and Pensions,Employment Programmes,23/05/2011,YOUNG PERSON'S GUARANTEE,WWEG EMPLOYMENT PROGRAMMES,SOCIAL ENTERPRISE LONDON,2020997768,"34,050.00"
Department for Work and Pensions,Jobcentre Plus,26/05/2011,OTHER RECEIVABLES,BALANCE SHEET PAYMENTS,COVENTRY CITY COUNCIL,2021085172,"34,000.00"
Department for Work and Pensions,Employment Programmes,10/05/2011,FND,WWEG EMPLOYMENT PROGRAMMES,THE WISE GROUP,2020798749,"33,930.00"
Department for Work and Pensions,Employment Programmes,24/05/2011,YOUNG PERSON'S GUARANTEE,WWEG EMPLOYMENT PROGRAMMES,WALSALL METROPOLITAN BOROUGH COUNCIL,2021008786,"33,900.00"
Department for Work and Pensions,Corporate,11/05/2011,COMPUTER SERVICES,CORPORATE IT,ACCENTURE,2020805942,"33,821.59"
Department for Work and Pensions,Corporate,20/05/2011,TEMPORARY (TEMP) STAFF COSTS,CORPORATE  IT,CAPITA RESOURCING LTD,2020987599,"33,815.45"
Department for Work and Pensions,Employment Programmes,13/05/2011,FND,WWEG EMPLOYMENT PROGRAMMES,PERTEMPS,2020885976,"33,669.00"
Department for Work and Pensions,Corporate,31/05/2011,ACCOMMODATION COSTS,GROUP FINANCE,TELEREAL TRILLIUM,2021107379,"33,641.02"
Department for Work and Pensions,Housing Benefits,13/05/2011,HOUSING BENEFIT ADMIN,WWG HOUSING BENEFIT,TANDRIDGE DISTRICT COUNCIL,2020887319,"33,605.00"
Department for Work and Pensions,Employment Programmes,17/05/2011,YOUNG PERSON'S GUARANTEE,WWEG EMPLOYMENT PROGRAMMES,LONDON BOROUGH OF GREENWICH,2020902280,"33,600.00"
Department for Work and Pensions,Employment Programmes,26/05/2011,FND,WWEG EMPLOYMENT PROGRAMMES,WORKING LINKS,2021090816,"33,480.00"
Department for Work and Pensions,Employment Programmes,12/05/2011,FND,WWEG EMPLOYMENT PROGRAMMES,SERCO LTD,2020879093,"33,453.00"
Department for Work and Pensions,Housing Benefits,13/05/2011,HOUSING BENEFIT ADMIN,WWG HOUSING BENEFIT,SURREY HEATH BOROUGH COUNCIL,2020887313,"33,368.00"
Department for Work and Pensions,Jobcentre Plus,06/05/2011,OTHER RECEIVABLES,BALANCE SHEET PAYMENTS,ABERDEEN FOYER,2020775394,"33,349.75"
Department for Work and Pensions,Jobcentre Plus,03/05/2011,OTHER RECEIVABLES,BALANCE SHEET PAYMENTS,SCOUT ENTERPRISES WESTERN LTD,2020691853,"33,337.50"
Department for Work and Pensions,Corporate,23/05/2011,TELEPHONE AND POSTAGE,GROUP FINANCE,UK MAIL,2020997916,"33,241.47"
Department for Work and Pensions,Jobcentre Plus,06/05/2011,OTHER RECEIVABLES,BALANCE SHEET PAYMENTS,SKILLS TRAINING UK LTD,2020780287,"33,228.75"
Department for Work and Pensions,Employment Programmes,17/05/2011,ND 18-24 AND 25+,WWEG EMPLOYMENT PROGRAMMES,WORKING LINKS,2020905859,"33,104.70"
Department for Work and Pensions,Employment Programmes,20/05/2011,FND,WWEG EMPLOYMENT PROGRAMMES,SERCO LTD,2020992134,"33,048.00"
Department for Work and Pensions,Employment Programmes,17/05/2011,YOUNG PERSON'S GUARANTEE,WWEG EMPLOYMENT PROGRAMMES,AVON & SOMERSET PROBATION SERVICE,2020895744,"33,000.00"
Department for Work and Pensions,Employment Programmes,06/05/2011,FND,WWEG EMPLOYMENT PROGRAMMES,THE PLUSS ORGANISATION,2020780470,"32,995.34"
Department for Work and Pensions,Employment Programmes,06/05/2011,ACCESS TO WORK,WWEG EMPLOYMENT PROGRAMMES,DEAFABILITY PRODUCTIONS LTD,2020776202,"32,946.00"
Department for Work and Pensions,Jobcentre Plus,03/05/2011,OTHER RECEIVABLES,BALANCE SHEET PAYMENTS,TOMORROWS PEOPLE TRUST LTD,2020691984,"32,916.36"
Department for Work and Pensions,Employment Programmes,26/05/2011,FND,WWEG EMPLOYMENT PROGRAMMES,SKILLS TRAINING UK LIMITED,2021090353,"32,913.00"
Department for Work and Pensions,Employment Programmes,10/05/2011,FND,WWEG EMPLOYMENT PROGRAMMES,CALDER UK LTD,2020789576,"32,764.00"
Department for Work and Pensions,Employment Programmes,20/05/2011,FND,WWEG EMPLOYMENT PROGRAMMES,PERTEMPS,2020991423,"32,752.00"
Department for Work and Pensions,Employment Programmes,03/05/2011,ACCESS TO WORK,WWEG EMPLOYMENT PROGRAMMES,ELLINGHAM EMPLOYMENT SERVICES,2020690919,"32,726.29"
Department for Work and Pensions,Employment Programmes,19/05/2011,YOUNG PERSON'S GUARANTEE,WWEG EMPLOYMENT PROGRAMMES,NORTH AYRSHIRE COUNCIL,2020982858,"32,700.00"
Department for Work and Pensions,Jobcentre Plus,12/05/2011,OTHER RECEIVABLES,BALANCE SHEET PAYMENTS,SHAW TRUST LTD,2020879098,"32,602.48"
Department for Work and Pensions,Jobcentre Plus,03/05/2011,OTHER GOODS AND SERVICES,JOBCENTRE PLUS,VALUATION OFFICE AGENCY,2020692016,"32,600.00"
Department for Work and Pensions,Housing Benefits,13/05/2011,HOUSING BENEFIT ADMIN,WWG HOUSING BENEFIT,BRENTWOOD DISTRICT COUNCIL,2020887026,"32,562.00"
Department for Work and Pensions,Corporate,03/05/2011,TEMPORARY (TEMP) STAFF COSTS,CORPORATE  IT,CAPITA RESOURCING LTD,2020689402,"32,337.54"
Department for Work and Pensions,Employment Programmes,31/05/2011,FND,WWEG EMPLOYMENT PROGRAMMES,CALDER UK LTD,2021099706,"32,266.00"
Department for Work and Pensions,Corporate,24/05/2011,MANAGEMENT CONSULTANCY,CORPORATE IT,TRIBAL CONSULTING LTD,2021008566,"32,224.85"
Department for Work and Pensions,Employment Programmes,03/05/2011,FND,WWEG EMPLOYMENT PROGRAMMES,SERCO LTD,2020691862,"32,130.00"
Department for Work and Pensions,Employment Programmes,09/05/2011,YOUNG PERSON'S GUARANTEE,WWEG EMPLOYMENT PROGRAMMES,AVON & SOMERSET PROBATION SERVICE,2020782611,"31,950.00"
Department for Work and Pensions,Jobcentre Plus,12/05/2011,OTHER RECEIVABLES,BALANCE SHEET PAYMENTS,THE INTRAINING GROUP,2020879304,"31,852.94"
Department for Work and Pensions,"Pension, Disability Carers Services",27/05/2011,ACCOMMODATION COSTS,PENSIONS & DISABILITY CARERS SERVICE,SOUTHERN ELECTRIC PLC,2021096674,"31,849.60"
Department for Work and Pensions,Employment Programmes,12/05/2011,EP GENERIC PROVIDER PAYMENTS,WWEG EMPLOYMENT PROGRAMMES,REED IN PARTNERSHIP,2020878607,"31,829.00"
Department for Work and Pensions,Corporate,20/05/2011,OTHER GOODS AND SERVICES,EG SUMMARY,ECORYS,2020989267,"31,822.00"
Department for Work and Pensions,Housing Benefits,13/05/2011,HOUSING BENEFIT ADMIN,WWG HOUSING BENEFIT,MALDON DISTRICT COUNCIL,2020887191,"31,728.00"
Department for Work and Pensions,Jobcentre Plus,26/05/2011,OTHER RECEIVABLES,BALANCE SHEET PAYMENTS,SHAW TRUST LTD,2021090342,"31,580.86"
Department for Work and Pensions,Housing Benefits,13/05/2011,HOUSING BENEFIT ADMIN,WWG HOUSING BENEFIT,NORTH DORSET DISTRICT COUNCIL,2020887215,"31,530.00"
Department for Work and Pensions,Corporate,11/05/2011,OTHER PROJECTS,GROUP FINANCE,KNOWSLEY CREDIT UNION,2020838451,"31,500.00"
Department for Work and Pensions,Employment Programmes,19/05/2011,FND,WWEG EMPLOYMENT PROGRAMMES,SKILLS TRAINING UK LIMITED,2020983915,"31,482.00"
Department for Work and Pensions,Corporate,10/05/2011,APPS DEV,CHANGE MANAGEMENT DIRECTORATE,HP ENTERPRISE SERVICES UK LTD,2020792603,"31,218.50"
Department for Work and Pensions,Employment Programmes,10/05/2011,YOUNG PERSON'S GUARANTEE,WWEG EMPLOYMENT PROGRAMMES,WEST LINDSEY DISTRICT COUNCIL,2020800232,"31,200.00"
Department for Work and Pensions,Jobcentre Plus,19/05/2011,OTHER RECEIVABLES,BALANCE SHEET PAYMENTS,BISCOM RESOURCE MANAGEMENT,2020979472,"31,172.40"
Department for Work and Pensions,Employment Programmes,09/05/2011,FND,WWEG EMPLOYMENT PROGRAMMES,MAXIMUS EMPLOYMENT UK LTD,2020785558,"31,120.00"
Department for Work and Pensions,Corporate,20/05/2011,TEMPORARY (TEMP) STAFF COSTS,GROUP FINANCE,CAPITA RESOURCING LTD,2020987599,"31,102.47"
Department for Work and Pensions,Employment Programmes,06/05/2011,FND,WWEG EMPLOYMENT PROGRAMMES,CALDER UK LTD,2020775850,"31,032.00"
Department for Work and Pensions,Employment Programmes,16/05/2011,FND,WWEG EMPLOYMENT PROGRAMMES,A4E LTD,2020888754,"31,006.00"
Department for Work and Pensions,Housing Benefits,13/05/2011,HOUSING BENEFIT ADMIN,WWG HOUSING BENEFIT,EPSOM & EWELL BOROUGH COUNCIL,2020887108,"30,963.00"
Department for Work and Pensions,Corporate,31/05/2011,ACCOMMODATION COSTS,GROUP FINANCE,TELEREAL TRILLIUM,2021107378,"30,957.22"
Department for Work and Pensions,Corporate,13/05/2011,OTHER PROJECTS,GROUP FINANCE,LANCASHIRE COMMUNITY FINANCE IPS LTD,2020885223,"30,750.00"
Department for Work and Pensions,Corporate,13/05/2011,PRINTING STATIONERY IT CONSUMABLES,GROUP FINANCE,XEROX UK LTD 3W,2020886957,"30,717.67"
Department for Work and Pensions,Jobcentre Plus,19/05/2011,OTHER RECEIVABLES,BALANCE SHEET PAYMENTS,WORKING LINKS,2020984348,"30,705.00"
Department for Work and Pensions,Employment Programmes,03/05/2011,JSP ESF DEL P COSTS,WWEG EMPLOYMENT PROGRAMMES,INGEUS UK LTD,2020691064,"30,692.12"
Department for Work and Pensions,Employment Programmes,12/05/2011,YOUNG PERSON'S GUARANTEE,WWEG EMPLOYMENT PROGRAMMES,WEST BERKSHIRE TRAINING CONSORTIUM,2020879461,"30,600.00"
Department for Work and Pensions,Corporate,13/05/2011,TEMPORARY (TEMP) STAFF COSTS,CORPORATE  IT,CAPITA RESOURCING LTD,2020882044,"30,543.66"
Department for Work and Pensions,Employment Programmes,26/05/2011,FND,WWEG EMPLOYMENT PROGRAMMES,SERCO LTD,2021090336,"30,267.00"
Department for Work and Pensions,Employment Programmes,31/05/2011,FND,WWEG EMPLOYMENT PROGRAMMES,SERCO LTD,2021107045,"30,267.00"
Department for Work and Pensions,Employment Programmes,05/05/2011,ACCESS TO WORK,WWEG EMPLOYMENT PROGRAMMES,SCOUT ENTERPRISES WESTERN LTD,2020773301,"30,232.32"
Department for Work and Pensions,Corporate,13/05/2011,TEMPORARY (TEMP) STAFF COSTS,CORPORATE  IT,CAPITA RESOURCING LTD,2020882044,"30,184.45"
Department for Work and Pensions,Employment Programmes,20/05/2011,FND,WWEG EMPLOYMENT PROGRAMMES,WORKING LINKS,2020992476,"30,030.00"
Department for Work and Pensions,Corporate,12/05/2011,BANKING AND ENCASHMENT COSTS,GROUP FINANCE,CITIBANK GLOBAL CORPORATE BANKING,2020875264,"30,000.00"
Department for Work and Pensions,Corporate,24/05/2011,BANKING AND ENCASHMENT COSTS,GROUP FINANCE,CITIBANK GLOBAL CORPORATE BANKING,2021000691,"30,000.00"
Department for Work and Pensions,Employment Programmes,11/05/2011,WORKSTEP,WWEG EMPLOYMENT PROGRAMMES,WIGAN MBC,2020871651,"30,000.00"
Department for Work and Pensions,Corporate,23/05/2011,PROFESSIONAL FEES,CORPORATE AND SUPPORT SERVICES,RS CONSULTING LTD,2020997475,"30,000.00"
Department for Work and Pensions,Jobcentre Plus,19/05/2011,OTHER RECEIVABLES,BALANCE SHEET PAYMENTS,SHROPSHIRE COUNTY COUNCIL,2020983900,"30,000.00"
Department for Work and Pensions,Corporate,24/05/2011,CONSULTANCY FEES,EG SUMMARY,DLA PIPER UK,2021001350,"29,970.34"
Department for Work and Pensions,Employment Programmes,31/05/2011,YOUNG PERSON'S GUARANTEE,WWEG EMPLOYMENT PROGRAMMES,REDCAR & CLEVELAND BOROUGH COUNCIL,2021106135,"29,850.00"
Department for Work and Pensions,Employment Programmes,09/05/2011,FND,WWEG EMPLOYMENT PROGRAMMES,INGEUS UK LTD,2020784615,"29,784.00"
Department for Work and Pensions,Jobcentre Plus,26/05/2011,OTHER RECEIVABLES,BALANCE SHEET PAYMENTS,PHOENIX ENTERPRISES ROTHERHAM LTD,2021089311,"29,694.74"
Department for Work and Pensions,Employment Programmes,27/05/2011,FND,WWEG EMPLOYMENT PROGRAMMES,A4E LTD,2021092778,"29,688.00"
Department for Work and Pensions,Employment Programmes,03/05/2011,FND,WWEG EMPLOYMENT PROGRAMMES,WORKING LINKS,2020692063,"29,621.00"
Department for Work and Pensions,Employment Programmes,05/05/2011,FND,WWEG EMPLOYMENT PROGRAMMES,WORKING LINKS,2020773649,"29,621.00"
Department for Work and Pensions,"Pension, Disability Carers Services",10/05/2011,TELEPHONE AND POSTAGE,PENSIONS & DISABILITY CARERS SERVICE,ROYAL MAIL GROUP PLC,2020797235,"29,588.33"
Department for Work and Pensions,Employment Programmes,16/05/2011,WORKING NEIGHBOURHOOD PILOTS,WWEG EMPLOYMENT PROGRAMMES,DEPARTMENT FOR COMMUNITIES & LOCAL GOVERNMENT,2002610,"29,520.00"
Department for Work and Pensions,Corporate,24/05/2011,PRINTING STATIONERY IT CONSUMABLES,SHARED SERVICES,XEROX UK LTD 3W,2021008800,"29,493.95"
Department for Work and Pensions,Employment Programmes,25/05/2011,YOUNG PERSON'S GUARANTEE,WWEG EMPLOYMENT PROGRAMMES,RNIB ROYAL NATIONAL INSTITUTE FOR THE BLIND,2021067796,"29,421.95"
Department for Work and Pensions,Employment Programmes,26/05/2011,FND,WWEG EMPLOYMENT PROGRAMMES,SERCO LTD,2021090336,"29,376.00"
Department for Work and Pensions,Employment Programmes,27/05/2011,ND 18-24 AND 25+,WWEG EMPLOYMENT PROGRAMMES,TURNING POINT,2021096783,"29,375.52"
Department for Work and Pensions,Employment Programmes,20/05/2011,FND,WWEG EMPLOYMENT PROGRAMMES,SERCO LTD,2020992134,"29,250.00"
Department for Work and Pensions,Jobcentre Plus,06/05/2011,OTHER RECEIVABLES,BALANCE SHEET PAYMENTS,TNG LTD,2020780483,"29,166.67"
Department for Work and Pensions,Jobcentre Plus,06/05/2011,OTHER RECEIVABLES,BALANCE SHEET PAYMENTS,SCOUT ENTERPRISES WESTERN LTD,2020780260,"29,142.02"
Department for Work and Pensions,Employment Programmes,09/05/2011,FND,WWEG EMPLOYMENT PROGRAMMES,INGEUS UK LTD,2020784615,"29,127.00"
Department for Work and Pensions,Corporate,31/05/2011,ACCOMMODATION COSTS,GROUP FINANCE,TELEREAL TRILLIUM,2021107377,"29,086.32"
Department for Work and Pensions,Employment Programmes,09/05/2011,ND 18-24 AND 25+,WWEG EMPLOYMENT PROGRAMMES,EVERYDAY SKILLS,2020784327,"29,036.67"
Department for Work and Pensions,Corporate,23/05/2011,OTHER PROJECTS,GROUP FINANCE,DERWENT & SOLWAY HOUSING ASSOCIATION,2020994440,"28,975.00"
Department for Work and Pensions,Employment Programmes,19/05/2011,YOUNG PERSON'S GUARANTEE,WWEG EMPLOYMENT PROGRAMMES,IXION HOLDINGS LTD,2020981224,"28,950.00"
Department for Work and Pensions,Housing Benefits,13/05/2011,HOUSING BENEFIT ADMIN,WWG HOUSING BENEFIT,HARBOROUGH DISTRICT COUNCIL,2020887130,"28,886.00"
Department for Work and Pensions,Employment Programmes,16/05/2011,FND,WWEG EMPLOYMENT PROGRAMMES,MAXIMUS EMPLOYMENT UK LTD,2020892702,"28,875.00"
Department for Work and Pensions,Corporate,10/05/2011,ACCOMMODATION COSTS,GROUP FINANCE,TELEREAL TRILLIUM,2020798730,"28,857.00"
Department for Work and Pensions,Employment Programmes,23/05/2011,YOUNG PERSON'S GUARANTEE,WWEG EMPLOYMENT PROGRAMMES,WALSALL METROPOLITAN BOROUGH COUNCIL,2020997984,"28,800.00"
Department for Work and Pensions,Corporate,23/05/2011,OTHER ADMINISTRATION COSTS,CORPORATE AND SUPPORT SERVICES,PENDRAGON,2020997310,"28,800.00"
Department for Work and Pensions,Employment Programmes,17/05/2011,FND,WWEG EMPLOYMENT PROGRAMMES,SERCO LTD,2020905240,"28,781.00"
Department for Work and Pensions,Employment Programmes,31/05/2011,FND,WWEG EMPLOYMENT PROGRAMMES,THE WISE GROUP,2021107390,"28,710.00"
Department for Work and Pensions,Employment Programmes,20/05/2011,HELP FOR DISABLED PEOPLE,WWEG EMPLOYMENT PROGRAMMES,ENHAM,2020989280,"28,681.75"
Department for Work and Pensions,Housing Benefits,13/05/2011,HOUSING BENEFIT ADMIN,WWG HOUSING BENEFIT,CHRISTCHURCH BOROUGH COUNCIL,2020887056,"28,680.00"
Department for Work and Pensions,Employment Programmes,09/05/2011,FND,WWEG EMPLOYMENT PROGRAMMES,SERCO LTD,2020786346,"28,674.00"
Department for Work and Pensions,Employment Programmes,10/05/2011,FND,WWEG EMPLOYMENT PROGRAMMES,SERCO LTD,2020798298,"28,674.00"
Department for Work and Pensions,Jobcentre Plus,19/05/2011,OTHER RECEIVABLES,BALANCE SHEET PAYMENTS,TNG LTD,2020984152,"28,651.66"
Department for Work and Pensions,Employment Programmes,24/05/2011,FND,WWEG EMPLOYMENT PROGRAMMES,REMPLOY LTD,2021007318,"28,633.00"
Department for Work and Pensions,Employment Programmes,04/05/2011,FND,WWEG EMPLOYMENT PROGRAMMES,SKILLS TRAINING UK LIMITED,2020760626,"28,627.00"
Department for Work and Pensions,Jobcentre Plus,06/05/2011,OTHER RECEIVABLES,BALANCE SHEET PAYMENTS,VOLUNTARY ACTION VALE ROYAL,2020780557,"28,547.56"
Department for Work and Pensions,Employment Programmes,03/05/2011,FND,WWEG EMPLOYMENT PROGRAMMES,CALDER UK LTD,2020689398,"28,543.00"
Department for Work and Pensions,Employment Programmes,25/05/2011,FND,WWEG EMPLOYMENT PROGRAMMES,CALDER UK LTD,2021022427,"28,543.00"
Department for Work and Pensions,Employment Programmes,20/05/2011,FND,WWEG EMPLOYMENT PROGRAMMES,A4E LTD,2020987116,"28,451.00"
Department for Work and Pensions,Housing Benefits,13/05/2011,HOUSING BENEFIT ADMIN,WWG HOUSING BENEFIT,WEST DEVON BOROUGH COUNCIL,2020887348,"28,428.00"
Department for Work and Pensions,Employment Programmes,27/05/2011,YOUNG PERSON'S GUARANTEE,WWEG EMPLOYMENT PROGRAMMES,INTERLINK VOLUNTARY ACTION,2021098120,"28,317.90"
Department for Work and Pensions,"Pension, Disability Carers Services",13/05/2011,OTHER GOODS AND SERVICES,PENSIONS & DISABILITY CARERS SERVICE,MM TELEPERFORMANCE,2020885571,"28,292.55"
Department for Work and Pensions,Corporate,20/05/2011,COMPUTER SERVICES,GROUP FINANCE,SPECIALIST COMPUTER CENTRES PLC,2020992153,"28,272.78"
Department for Work and Pensions,Employment Programmes,20/05/2011,FND,WWEG EMPLOYMENT PROGRAMMES,A4E LTD,2020987116,"28,248.00"
Department for Work and Pensions,Employment Programmes,12/05/2011,YOUNG PERSON'S GUARANTEE,WWEG EMPLOYMENT PROGRAMMES,ADCRIS CIC,2020874779,"28,227.05"
Department for Work and Pensions,Housing Benefits,13/05/2011,HOUSING BENEFIT ADMIN,WWG HOUSING BENEFIT,UTTLESFORD DISTRICT COUNCIL,2020887335,"28,131.00"
Department for Work and Pensions,Housing Benefits,13/05/2011,HOUSING BENEFIT ADMIN,WWG HOUSING BENEFIT,DERBYSHIRE DALES DISTRICT COUNCIL,2020887081,"28,096.00"
Department for Work and Pensions,Corporate,09/05/2011,TEMPORARY (TEMP) STAFF COSTS,CORPORATE  IT,CAPITA RESOURCING LTD,2020782870,"28,018.49"
Department for Work and Pensions,Employment Programmes,31/05/2011,WORKSTEP,WWEG EMPLOYMENT PROGRAMMES,RBLI EMPLOYMENT SERVICES,2021106132,"28,000.00"
Department for Work and Pensions,Employment Programmes,20/05/2011,WORKSTEP,WWEG EMPLOYMENT PROGRAMMES,NEWPORT CITY COUNCIL,2020991180,"28,000.00"
Department for Work and Pensions,Employment Programmes,19/05/2011,DAF,WWEG EMPLOYMENT PROGRAMMES,MICROCOM TRAINING LTD,2020982674,"27,999.11"
Department for Work and Pensions,Employment Programmes,03/05/2011,ND 18-24 AND 25+,WWEG EMPLOYMENT PROGRAMMES,TURNING POINT SERVICES LTD,2020691993,"27,982.26"
Department for Work and Pensions,Corporate,10/05/2011,APPS DEV,CORPORATE AND SUPPORT SERVICES,HP ENTERPRISE SERVICES UK LTD,2020792603,"27,818.88"
Department for Work and Pensions,Employment Programmes,04/05/2011,FND,WWEG EMPLOYMENT PROGRAMMES,A4E LTD,2020699285,"27,733.00"
Department for Work and Pensions,Employment Programmes,23/05/2011,FND,WWEG EMPLOYMENT PROGRAMMES,FOURSTAR EMPLOYMENT & SKILLS LTD,2020995910,"27,731.00"
Department for Work and Pensions,Employment Programmes,19/05/2011,ND 18-24 AND 25+,WWEG EMPLOYMENT PROGRAMMES,WORKING LINKS,2020984346,"27,692.00"
Department for Work and Pensions,Employment Programmes,13/05/2011,YOUNG PERSON'S GUARANTEE,WWEG EMPLOYMENT PROGRAMMES,HARMONY HOUSE DAGENHAM,2020884315,"27,630.72"
Department for Work and Pensions,Housing Benefits,13/05/2011,HOUSING BENEFIT ADMIN,WWG HOUSING BENEFIT,SOUTH NORTHANTS COUNCIL,2020887290,"27,583.00"
Department for Work and Pensions,Corporate,11/05/2011,TELEPHONE AND POSTAGE,GROUP FINANCE,POST OFFICE LTD,2020855140,"27,500.00"
Department for Work and Pensions,Employment Programmes,16/05/2011,ND 18-24 AND 25+,WWEG EMPLOYMENT PROGRAMMES,THE LIVERPOOL SOCIAL PARTNERSHIP,2020893762,"27,439.53"
Department for Work and Pensions,Employment Programmes,04/05/2011,FND,WWEG EMPLOYMENT PROGRAMMES,PERTEMPS,2020748934,"27,434.00"
Department for Work and Pensions,Employment Programmes,19/05/2011,FND,WWEG EMPLOYMENT PROGRAMMES,PERTEMPS,2020983110,"27,434.00"
Department for Work and Pensions,Employment Programmes,09/05/2011,FND,WWEG EMPLOYMENT PROGRAMMES,WORKING LINKS,2020786616,"27,363.00"
Department for Work and Pensions,Employment Programmes,20/05/2011,YOUNG PERSON'S GUARANTEE,WWEG EMPLOYMENT PROGRAMMES,COMMUNITY SKILLS PARTNERSHIP,2020987627,"27,239.55"
Department for Work and Pensions,Employment Programmes,05/05/2011,FND,WWEG EMPLOYMENT PROGRAMMES,MAXIMUS EMPLOYMENT UK LTD,2020772244,"27,230.00"
Department for Work and Pensions,Employment Programmes,13/05/2011,FND,WWEG EMPLOYMENT PROGRAMMES,A4E LTD,2020881624,"27,214.00"
Department for Work and Pensions,Housing Benefits,13/05/2011,HOUSING BENEFIT ADMIN,WWG HOUSING BENEFIT,WEST SOMERSET DISTRICT COUNCIL,2020887355,"27,186.00"
Department for Work and Pensions,Employment Programmes,04/05/2011,ND 18-24 AND 25+,WWEG EMPLOYMENT PROGRAMMES,MAXIMUS EMPLOYMENT & TRAINING LTD,2020743420,"27,051.15"
Department for Work and Pensions,Corporate,13/05/2011,TEMPORARY (TEMP) STAFF COSTS,CORPORATE  IT,CAPITA RESOURCING LTD,2020882044,"27,028.21"
Department for Work and Pensions,Employment Programmes,06/05/2011,FND,WWEG EMPLOYMENT PROGRAMMES,SERCO LTD,2020780271,"27,028.00"
Department for Work and Pensions,Jobcentre Plus,26/05/2011,OTHER RECEIVABLES,BALANCE SHEET PAYMENTS,BIRMINGHAM CHAMBER TRAINING,2021084710,"27,019.64"
Department for Work and Pensions,Employment Programmes,25/05/2011,FND,WWEG EMPLOYMENT PROGRAMMES,WORKING LINKS,2021081151,"26,950.00"
Department for Work and Pensions,Employment Programmes,04/05/2011,FND,WWEG EMPLOYMENT PROGRAMMES,A4E LTD,2020699285,"26,910.00"
Department for Work and Pensions,Corporate,12/05/2011,APPS DEV,CORPORATE  IT,HP ENTERPRISE SERVICES UK LTD,2020876496,"26,819.91"
Department for Work and Pensions,Jobcentre Plus,03/05/2011,OTHER RECEIVABLES,BALANCE SHEET PAYMENTS,SEETEC,2020691858,"26,757.27"
Department for Work and Pensions,Corporate,24/05/2011,COMPUTER SERVICES,CORPORATE AND SUPPORT SERVICES,FUJITSU SERVICES,2021002991,"26,342.20"
Department for Work and Pensions,Housing Benefits,13/05/2011,HOUSING BENEFIT ADMIN,WWG HOUSING BENEFIT,HART DISTRICT COUNCIL,2020887133,"26,089.00"
Department for Work and Pensions,Employment Programmes,16/05/2011,FND,WWEG EMPLOYMENT PROGRAMMES,INGEUS UK LTD,2020891634,"26,078.00"
Department for Work and Pensions,Employment Programmes,05/05/2011,FND,WWEG EMPLOYMENT PROGRAMMES,CALDER UK LTD,2020768838,"26,068.00"
Department for Work and Pensions,Employment Programmes,16/05/2011,WORKSTEP,WWEG EMPLOYMENT PROGRAMMES,CARMARTHENSHIRE COUNTY COUNCIL,2020894822,"26,000.00"
Department for Work and Pensions,Corporate,10/05/2011,APPS DEV,SHARED SERVICES,HP ENTERPRISE SERVICES UK LTD,2020792603,"25,973.84"
Department for Work and Pensions,Corporate,03/05/2011,OTHER PROJECTS,GROUP FINANCE,ST MACHAR CREDIT UNION,2020691900,"25,950.00"
Department for Work and Pensions,Housing Benefits,13/05/2011,HOUSING BENEFIT ADMIN,WWG HOUSING BENEFIT,RYEDALE DISTRICT COUNCIL,2020887264,"25,805.00"
